Workbook

Sheet 1. INFORMACION ACUMULADA
A2: INFORMACIÓN GESTION CONTRACTUAL
A3: DEL 1 DE ENERO AL 31 DE DICIEMBRE DE 2023
A5: 1. Entidad | E5: Alcaldia Local La Candelaria | H5: 2. Sector | I5: Gobierno
A6: 3. Presupuesto Disponible Inversión Directa PREDIS (BOGDATA) | E6: 32049065123 | H6: 5. Presupuesto Disponible Funcionamiento PREDIS (BOGDATA) | I6: 3155737493 | AI6: 7. Nombre de quien diligencia el formato | AK6: PAULA ANDREA VILLOTA DELGADO
A7: 4. Presupuesto Comprometido de Inversión Directa según PREDIS (BOGDATA) | E7: 32038450914 | H7: 6. Presupuesto Comprometido Funcionamiento según PREDIS (BOGDATA) | I7: 3124954130 | AI7: Cargo | AK7: AUXILIAR ADMINISTRATIVO
AI8: Dependencia | AK8: CONTRATACION
AI9: Teléfono | AK9: 3143208836
AI10: Correo Electrónico | AK10: paula.villota@gobiernobogota.gov.co
A11: 0 | V11: 2- INFORMACION FINANCIERA | AC11: 3 - PLAZOS | AI11: 4. CESION | AM11: 5. ESTADO | AN11: 6. % Avance y/o cumplimiento
A12: 1 | B12: 2 | C12: 3 | E12: 4 | F12: 5 | G12: 6 | H12: 7 | I12: 8 | N12: 9 | O12: 10 | P12: 11 | V12: 12 | W12: 13 | X12: 14 | Y12: 15 | Z12: 16 | AA12: 17 | AB12: 18 | AC12: 19 | AD12: 20 | AE12: 21 | AF12: 22 | AG12: 23 | AH12: 24 | AI12: 25 | AJ12: 26 | AK12: 27 | AL12: 28 | AM12: 29 | AN12: 30
A13: Número Contrato | B13: Año | C13: Número de proceso contractual SECOP | D13: Link proceso SECOP | E13: Tipo de contrato | F13: Modalidad de Selección | G13: Procedimiento o causal | H13: Objeto | I13: Afectación | J13: Plan de Desarrollo Distrital | K13: Número Programa | L13: Equivalencia número de programa | M13: Propósito | N13: Número Proyecto | O13: Número de proponentes | P13: Número de Identificación del contratista (Cédula o NIT sin puntos, comas ni caracteres especiales y sin digito de verificación) | Q13: Nombre del contratista (según el caso: nombres y apellidos o Razón social y Tipo societario) | R13: Naturaleza Jurídica | S13: Número de Identificación del integrante del Consorcio o U.T. (Cédula o NIT sin puntos, comas ni caracteres especiales y sin digito de verificación) | T13: Nombre del Integrante del Consorcio o U.T. y Tipo societario (Según el caso: nombres y apellidos o razón social y tipo societario) | U13: % Participación (indicar solo el numero del porcentaje, sin caracteres especiales) | V13: Vigencias futuras | W13: Valor Inicial del contrato | X13: Valor total reducciones (En valor negativo) | Y13: Número de adiciones | Z13: Valor total de adiciones | AA13: Valor Final | AB13: Giros (Valor en pesos) | AC13: Fecha de suscripción (DD/MM/AAAA) | AD13: Fecha de inicio (DD/MM/AAAA) | AE13: Fecha de terminación (DD/MM/AAAA) | AF13: Plazo en días | AG13: Número de prórrogas | AH13: Prorroga en días | AI13: Número de Identificación del cesionario (NIT sin digito de verificación) | AJ13: Nombre cesionario | AK13: Fecha cesión (DD/MM/AAAA) | AL13: Valor cesión | AM13: Estado | AN13: % Avance y/o Cumplimiento
A14: FDLC-CPS-001-2023 | B14: 2023 | C14: FDLC-CPS-001-2023 | D14: https://community.secop.gov.co/Public/Tendering/OpportunityDetail/Index?noticeUID=CO1.NTC.3742036&isFromPublicArea=True&isModal=true&asPopupView=true | E14: Contrato de Prestación de Servicios Profesionales y de Apoyo a la gestión | F14: CONTRATACION DIRECTA | G14: No aplica | H14: PRESTAR SERVICIOS PROFESIONALES ESPECIALIZADOS AL FONDO DE DESARROLLO LOCAL DE LA CANDELARIA PARA APOYAR LA COORDINACIÓN DE LA GESTIÓN CONTRACTUAL DE LA ENTIDAD Y DEMÁS ASUNTOS QUE SE REQUIERAN | I14: INVERSION | N14: O23011605570000002021 | O14: 1 | P14: 1140864695 | Q14: JAVIER DE JESUS TRESPALACIOS QUINTERO | R14: PERSONA NATURAL | T14: NO APLICA | U14: NO APLICA | W14: 88770000 | Y14: 2 | Z14: 20175002 | AA14: =+W14+X14+Z14 -> 108945002 | AB14: 85811000 | AC14: 2023-01-12 | AD14: 2023-01-12 | AE14: 2024-02-26 | AF14: 330 | AG14: 2 | AH14: 75 | AI14: N/A | AJ14: N/A | AK14: N/A | AM14: EJECUCION | AN14: =IF(ISERROR(AB14/AA14),"-",(AB14/AA14)) -> 0.7876543065
A15: FDLC-CPS-002-2023 | B15: 2023 | C15: FDLC-CPS-002-2023 | D15: https://community.secop.gov.co/Public/Tendering/OpportunityDetail/Index?noticeUID=CO1.NTC.3741867&isFromPublicArea=True&isModal=true&asPopupView=true | E15: Contrato de Prestación de Servicios Profesionales y de Apoyo a la gestión | F15: CONTRATACION DIRECTA | G15: No aplica | H15: APOYAR AL ALCALDE SA LOCAL EN LA PROMOCIÓNACOMPAÑAMIENTO COORDINACIÓN Y ATENCIÓN DE LASINSTANCIAS DE COORDINACIÓN INTERINSTITUCIONALES Y LASINSTANCIAS DE PARTICIPACIÓN LOCALES ASÍ COMO LOS PROCESOSCOMUNITARIOS EN LA LOCALIDAD | I15: INVERSION | N15: O23011605550000002019 | O15: 1 | P15: 1106786140 | Q15: MONICA ANDREA LEAL DIAZ | R15: PERSONA NATURAL | T15: NO APLICA | U15: NO APLICA | W15: 77000000 | Y15: N/A | Z15: 21000000 | AA15: =+W15+X15+Z15 -> 98000000 | AB15: 74200000 | AC15: 2023-01-12 | AD15: 2023-01-13 | AE15: 2024-03-12 | AF15: 330 | AG15: N/A | AH15: 90 | AI15: N/A | AJ15: N/A | AK15: N/A | AM15: EJECUCION | AN15: =IF(ISERROR(AB15/AA15),"-",(AB15/AA15)) -> 0.7571428571
A16: FDLC-CPS-003-2023 | B16: 2023 | C16: FDLC-CPS-003-2023 | D16: https://community.secop.gov.co/Public/Tendering/OpportunityDetail/Index?noticeUID=CO1.NTC.3741491&isFromPublicArea=True&isModal=true&asPopupView=true | E16: Contrato de Prestación de Servicios Profesionales y de Apoyo a la gestión | F16: CONTRATACION DIRECTA | G16: No aplica | H16: PRESTAR SERVICIOS ASISTENCIALES AL ÁREA DE GESTIÓN DE DESARROLLO LOCAL EN LAS ACTIVIDADES DE GESTIÓN ADMINISTRATIVA | I16: INVERSION | N16: O23011605570000002021 | O16: 1 | P16: 79648784 | Q16: JOSE RENE AGUIIRE TIJARO | R16: PERSONA NATURAL | T16: NO APLICA | U16: NO APLICA | W16: 29700000 | Y16: 2 | Z16: 14850002 | AA16: 44550002 | AB16: 28710000 | AC16: 2023-01-12 | AD16: 2023-01-12 | AE16: 2024-05-26 | AF16: 330 | AG16: 2 | AH16: 150 | AI16: N/A | AJ16: N/A | AK16: N/A | AM16: EJECUCION | AN16: 0.6444444155
A17: FDLC-CPS-004-2023 | B17: 2023 | C17: FDLC-CPS-004-2023 | D17: https://community.secop.gov.co/Public/Tendering/OpportunityDetail/Index?noticeUID=CO1.NTC.3742215&isFromPublicArea=True&isModal=true&asPopupView=true | E17: Contrato de Prestación de Servicios Profesionales y de Apoyo a la gestión | F17: CONTRATACION DIRECTA | G17: No aplica | H17: PRESTAR SERVICIOS DE APOYO EN LAS ACTIVIDADES DE PROTECCIÓN CUIDADO Y CONSERVACIÓN DE LA MALLA VIAL COMO COMPONENTE PATRIMONIAL DE LA CANDELARIA | I17: INVERSION | N17: O23011604490000002020 | O17: 1 | P17: 52854525 | Q17: ESPERANZA BUITRAGO LOAIZA | R17: PERSONA NATURAL | T17: NO APLICA | U17: NO APLICA | W17: 9250000 | Y17: N/A | Z17: 0 | AA17: 9250000 | AB17: 9250000 | AC17: 2023-01-12 | AD17: 2023-01-13 | AE17: 2023-06-12 | AF17: 150 | AG17: N/A | AH17: N/A | AI17: N/A | AJ17: N/A | AK17: N/A | AM17: TERMINADO | AN17: 1
A18: FDLC-CPS-005-2023 | B18: 2023 | C18: FDLC-CPS-005-2023 | D18: https://community.secop.gov.co/Public/Tendering/OpportunityDetail/Index?noticeUID=CO1.NTC.3741592&isFromPublicArea=True&isModal=true&asPopupView=true | E18: Contrato de Prestación de Servicios Profesionales y de Apoyo a la gestión | F18: CONTRATACION DIRECTA | G18: No aplica | H18: PRESTAR SERVICIOS PROFESIONALES DE APOYO EN LA COORDINACIÓN DE LAS CASAS COMUNITARIAS DE LA LOCALIDAD DE LA CANDELARIA DE CONFORMIDAD CON EL ACUERDO LOCAL 006 DE 2013 | I18: INVERSION | N18: O23011605570000002021 | O18: 1 | P18: 69027208 | Q18: MARIA TERESA BECERRA | R18: PERSONA NATURAL | T18: NO APLICA | U18: NO APLICA | W18: 49654000 | Y18: N/A | Z18: 0 | AA18: 49654000 | AB18: 43334400 | AC18: 2023-01-12 | AD18: 2023-01-13 | AE18: 2023-12-12 | AF18: 330 | AG18: N/A | AH18: N/A | AI18: N/A | AJ18: N/A | AK18: N/A | AM18: TERMINADO | AN18: 0.8727272727
A19: FDLC-CPS-006-2023 | B19: 2023 | C19: FDLC-CPS-006-2023 | D19: https://community.secop.gov.co/Public/Tendering/OpportunityDetail/Index?noticeUID=CO1.NTC.3741914&isFromPublicArea=True&isModal=true&asPopupView=true | E19: Contrato de Prestación de Servicios Profesionales y de Apoyo a la gestión | F19: CONTRATACION DIRECTA | G19: No aplica | H19: PRESTAR SERVICIOS DE APOYO EN LA EMISORA VIRTUAL DE LAALCALDÍA LOCAL DE LA CANDELARIA | I19: INVERSION | N19: O23011605570000002021 | O19: 1 | P19: 14250858 | Q19: RICARDO ABEL ROLDAN CORREA | R19: PERSONA NATURAL | T19: NO APLICA | U19: NO APLICA | W19: 27500000 | Y19: 2 | Z19: 13750002 | AA19: 41250002 | AB19: 26500000 | AC19: 2023-01-12 | AD19: 2023-01-13 | AE19: 2024-05-27 | AF19: 330 | AG19: 2 | AH19: 165 | AI19: N/A | AJ19: N/A | AK19: N/A | AM19: EJECUCION | AN19: 0.6424242113
A20: FDLC-CPS-007-2023 | B20: 2023 | C20: FDLC-CPS-007-2023 | D20: https://community.secop.gov.co/Public/Tendering/OpportunityDetail/Index?noticeUID=CO1.NTC.3743811&isFromPublicArea=True&isModal=true&asPopupView=true | E20: Contrato de Prestación de Servicios Profesionales y de Apoyo a la gestión | F20: CONTRATACION DIRECTA | G20: No aplica | H20: PRESTACIÓN DE SERVICIOS DE APOYO AL ÁREA DE GESTIÓN DEDESARROLLO LOCAL DE LA ALCALDÍA LOCAL DE LA CANDELARIAPARA PROMOVER LA GESTIÓN Y LAS CONVOCATORIAS REALIZADASPOR LA ALCALDÍA LOCAL EN BENEFICIO DE LA COMUNIDAD | I20: INVERSION | N20: O23011605570000002021 | O20: 1 | P20: 41621560 | Q20: NELLY PARRA TOCORA | R20: PERSONA NATURAL | T20: NO APLICA | U20: NO APLICA | W20: 29975000 | Y20: 2 | Z20: 14987502 | AA20: 44962502 | AB20: 28885000 | AC20: 2023-01-12 | AD20: 2023-01-13 | AE20: 2024-05-27 | AF20: 330 | AG20: 2 | AH20: 165 | AI20: N/A | AJ20: N/A | AK20: N/A | AM20: EJECUCION | AN20: 0.6424242138
A21: FDLC-CPS-008-2023 | B21: 2023 | C21: FDLC-CPS-008-2023 | D21: https://community.secop.gov.co/Public/Tendering/OpportunityDetail/Index?noticeUID=CO1.NTC.3742129&isFromPublicArea=True&isModal=true&asPopupView=true | E21: Contrato de Prestación de Servicios Profesionales y de Apoyo a la gestión | F21: CONTRATACION DIRECTA | G21: No aplica | H21: PRESTAR SERVICIOS PROFESIONALES AL FONDO DE DESARROLLO LOCAL DE LA CANDELARIA COMO ABOGADO DE APOYO AL DESPACHO DE EL YO LA ALCALDE SA LOCAL EN LAS DIFERENTES ACTIVIDADES Y FUNCIONES QUE LE SEAN ASIGNADAS | I21: INVERSION | N21: O23011605570000002021 | O21: 1 | P21: 52314352 | Q21: CONSTANZA DEL PILAR LEYTON RICO | R21: PERSONA NATURAL | T21: NO APLICA | U21: NO APLICA | W21: 77000000 | Y21: 1 | Z21: 21000001 | AA21: 98000001 | AB21: 74200000 | AC21: 2023-01-12 | AD21: 2023-01-13 | AE21: 2024-03-12 | AF21: 330 | AG21: 1 | AH21: 90 | AI21: N/A | AJ21: N/A | AK21: N/A | AM21: EJECUCION | AN21: 0.7571428494
A22: FDLC-CPS-009-2023 | B22: 2023 | C22: FDLC-CPS-009-2023 | D22: https://community.secop.gov.co/Public/Tendering/OpportunityDetail/Index?noticeUID=CO1.NTC.3741768&isFromPublicArea=True&isModal=true&asPopupView=true | E22: Contrato de Prestación de Servicios Profesionales y de Apoyo a la gestión | F22: CONTRATACION DIRECTA | G22: No aplica | H22: PRESTACIÓN DE SERVICIOS PROFESIONALES AL FONDO DE DESARROLLO LOCAL DE LA CANDELARIA PARA ATENDER LAS PETICIONES QUEJAS RECLAMOS YO SOLICITUDES PRESENTADAS POR LA CIUDADANÍA DE CONFORMIDAD CON LOS TÉRMINOS LEGALES ESTABLECIDOS Y APOYAR LAS RESPUESTAS REQUERIDAS POR LOS ENTES DE CONTROL | I22: INVERSION | N22: O23011605570000002021 | O22: 1 | P22: 52514816 | Q22: LILIANA BASTIDAS LINARES | R22: PERSONA NATURAL | T22: NO APLICA | U22: NO APLICA | W22: 40000000 | Y22: 1 | Z22: 5000001 | AA22: 45000001 | AB22: 45000000 | AC22: 2023-01-12 | AD22: 2023-01-13 | AE22: 2023-10-12 | AF22: 240 | AG22: 1 | AH22: 30 | AI22: N/A | AJ22: N/A | AK22: N/A | AM22: TERMINADO | AN22: 0.9999999778
A23: FDLC-CPS-010-2023 | B23: 2023 | C23: FDLC-CPS-010-2023 | D23: https://community.secop.gov.co/Public/Tendering/OpportunityDetail/Index?noticeUID=CO1.NTC.3742124&isFromPublicArea=True&isModal=true&asPopupView=true | E23: Contrato de Prestación de Servicios Profesionales y de Apoyo a la gestión | F23: CONTRATACION DIRECTA | G23: No aplica | H23: PRESTAR SERVICIOS PROFESIONALES AL FONDO DE DESARROLLO LOCAL DE LA CANDELARIA COMO ADMINISTRADOR DE RED LOCAL YCOMO ENLACE CON LA SECRETARÍA DISTRITAL DE GOBIERNO BRINDANDO SOPORTE EN MATERIA DE SISTEMAS SOFTWARE Y HARDWARE A LOS USUARIOS INTERNOS Y EXTERNOS DE LA ENTIDAD | I23: INVERSION | N23: O23011605570000002021 | O23: 1 | P23: 79814029 | Q23: AGUSTIN LARA BELTRAN | R23: PERSONA NATURAL | T23: NO APLICA | U23: NO APLICA | W23: 66000000 | Y23: 2 | Z23: 33000002 | AA23: 99000002 | AB23: 63600000 | AC23: 2023-01-12 | AD23: 2023-01-13 | AE23: 2024-05-27 | AF23: 330 | AG23: 2 | AH23: 165 | AI23: N/A | AJ23: N/A | AK23: N/A | AM23: EJECUCION | AN23: 0.6424242294
A24: FDLC-CPS-011-2023 | B24: 2023 | C24: FDLC-CPS-011-2023 | D24: https://community.secop.gov.co/Public/Tendering/OpportunityDetail/Index?noticeUID=CO1.NTC.3741798&isFromPublicArea=True&isModal=true&asPopupView=true | E24: Contrato de Prestación de Servicios Profesionales y de Apoyo a la gestión | F24: CONTRATACION DIRECTA | G24: No aplica | H24: PRESTAR SERVICIOS DE APOYO ADMINISTRATIVO Y ASISTENCIAL AL FONDO DE DESARROLLO LOCAL DE LA CANDELARIA EN EL CENTRO DE INFORMACIÓN Y DOCUMENTACIÓN CDI PARA LA NOTIFICACIÓN DE CORRESPONDENCIA DE LA ENTIDAD | I24: INVERSION | N24: O23011605570000002021 | O24: 1 | P24: 1026283437 | Q24: JOSE LUIS RINCÓN JIMENEZ | R24: PERSONA NATURAL | T24: NO APLICA | U24: NO APLICA | W24: 27500000 | Y24: N/A | Z24: 0 | AA24: 27500000 | AB24: 26500000 | AC24: 2023-01-12 | AD24: 2023-01-13 | AE24: 2023-12-12 | AF24: 330 | AG24: N/A | AH24: N/A | AI24: N/A | AJ24: N/A | AK24: N/A | AM24: TERMINADO | AN24: 0.9636363636
A25: FDLC-CPS-012-2023 | B25: 2023 | C25: FDLC-CPS-012-2023 | D25: https://community.secop.gov.co/Public/Tendering/OpportunityDetail/Index?noticeUID=CO1.NTC.3742218&isFromPublicArea=True&isModal=true&asPopupView=true | E25: Contrato de Prestación de Servicios Profesionales y de Apoyo a la gestión | F25: CONTRATACION DIRECTA | G25: No aplica | H25: PRESTAR SERVICIOS DE APOYO AL FONDO DE DESARROLLO LOCALDE LA CANDELARIA COMO CONDUCTORA DE LOS VEHÍCULOS ACARGO DE LA ENTIDAD | I25: INVERSION | N25: O23011605570000002021 | O25: 1 | P25: 79976012 | Q25: OSCAR JAVIER BEJARANO MENDEZ | R25: PERSONA NATURAL | T25: NO APLICA | U25: NO APLICA | W25: 27500000 | Y25: 2 | Z25: 13750002 | AA25: =+W25+X25+Z25 -> 41250002 | AB25: 26500000 | AC25: 2023-01-12 | AD25: 2023-01-13 | AE25: 2024-05-27 | AF25: 330 | AG25: 2 | AH25: 165 | AI25: 93086512 | AJ25: CESION DE BLADIMIR OVIEDO RUIZ | AK25: 2023-06-23 | AM25: EJECUCION | AN25: 0.6424242113
A26: FDLC-CPS-013-2023 | B26: 2023 | C26: FDLC-CPS-013-2023 | D26: https://community.secop.gov.co/Public/Tendering/OpportunityDetail/Index?noticeUID=CO1.NTC.3744720&isFromPublicArea=True&isModal=true&asPopupView=true | E26: Contrato de Prestación de Servicios Profesionales y de Apoyo a la gestión | F26: CONTRATACION DIRECTA | G26: No aplica | H26: PRESTAR SERVICIOS PROFESIONALES AL FONDO DE DESARROLLOLOCAL DE LA CANDELARIA EN LOS TRÁMITES RELACIONADOS CONLOS PROCESOS PRECONTRACTUALES CONTRACTUALES Y POSCONTRACTUALES QUE SE ADELANTEN A TRAVÉS DE SECOP I Y II ASÍCOMO LA ADQUISICIÓN DE BIENES Y SERVICIOS A TRAVÉS DE LATIENDA VIRTUAL DEL ESTADO COLOMBIANO | I26: INVERSION | N26: O23011605570000002021 | O26: 1 | P26: 1128272452 | Q26: ALVARO ANDRES GONZALEZ SAAVEDRA | R26: PERSONA NATURAL | T26: NO APLICA | U26: NO APLICA | W26: 69300000 | Y26: 2 | Z26: 18900002 | AA26: =+W26+X26+Z26 -> 88200002 | AB26: 66780000 | AC26: 2023-01-12 | AD26: 2023-01-13 | AE26: 2024-03-12 | AF26: 330 | AG26: 2 | AH26: 60 | AI26: 9690552 | AJ26: CESION DE GUSTAVO ALFONSO MARTINEZ BADILLO | AK26: 2023-12-14 | AM26: EJECUCION | AN26: 0.75714284
A27: FDLC-CPS-014-2023 | B27: 2023 | C27: FDLC-CPS-014-2023 | D27: https://community.secop.gov.co/Public/Tendering/OpportunityDetail/Index?noticeUID=CO1.NTC.3746747&isFromPublicArea=True&isModal=true&asPopupView=true | E27: Contrato de Prestación de Servicios Profesionales y de Apoyo a la gestión | F27: CONTRATACION DIRECTA | G27: No aplica | H27: PRESTAR SERVICIOS DE APOYO AL FONDO DE DESARROLLO LOCAL DE LA CANDELARIA COMO CONDUCTORA DE LOS VEHÍCULOS A CARGO DE LA ENTIDAD Y APOYO LOGÍSTICO QUE LE SEAN ASIGNADOS | I27: INVERSION | N27: O23011605570000002021 | O27: 1 | P27: 91238879 | Q27: VICTOR MANUEL ORTIZ CARDENAS | R27: PERSONA NATURAL | T27: NO APLICA | U27: NO APLICA | W27: 29920000 | Y27: 2 | Z27: 14960002 | AA27: 44880002 | AB27: 28832000 | AC27: 2023-01-12 | AD27: 2023-01-13 | AE27: 2024-05-27 | AF27: 330 | AG27: 2 | AH27: 165 | AI27: N/A | AJ27: N/A | AK27: N/A | AM27: EJECUCION | AN27: 0.6424242138
A28: FDLC-CPS-015-2023 | B28: 2023 | C28: FDLC-CPS-015-2023 | D28: https://community.secop.gov.co/Public/Tendering/OpportunityDetail/Index?noticeUID=CO1.NTC.3755149&isFromPublicArea=True&isModal=true&asPopupView=true | E28: Contrato de Prestación de Servicios Profesionales y de Apoyo a la gestión | F28: CONTRATACION DIRECTA | G28: No aplica | H28: PRESTACIÓN DE SERVICIOS PROFESIONALES AL FONDO DEDESARROLLO LOCAL DE LA CANDELARIA PARA ATENDER LASPETICIONES QUEJAS RECLAMOS YO SOLICITUDES PRESENTADASPOR LA CIUDADANÍA DE CONFORMIDAD CON LOS TÉRMINOSLEGALES ESTABLECIDOS Y APOYAR LAS RESPUESTAS REQUERIDASPOR LOS ENTES DE CONTROL | I28: INVERSION | N28: O23011605570000002021 | O28: 1 | P28: 79331453 | Q28: EMELINO TAPIA MATURANA | R28: PERSONA NATURAL | T28: NO APLICA | U28: NO APLICA | W28: 40000000 | Y28: 2 | Z28: 10000002 | AA28: 50000002 | AB28: 50000000 | AC28: 2023-01-13 | AD28: 2023-01-16 | AE28: 2023-11-15 | AF28: 240 | AG28: 2 | AH28: 60 | AI28: N/A | AJ28: N/A | AK28: N/A | AM28: TERMINADO | AN28: 0.99999996
A29: FDLC-CPS-016-2023 | B29: 2023 | C29: FDLC-CPS-016-2023 | D29: https://community.secop.gov.co/Public/Tendering/OpportunityDetail/Index?noticeUID=CO1.NTC.3755614&isFromPublicArea=True&isModal=true&asPopupView=true | E29: Contrato de Prestación de Servicios Profesionales y de Apoyo a la gestión | F29: CONTRATACION DIRECTA | G29: No aplica | H29: PRESTAR SERVICIOS DE APOYO EN LAS ACTIVIDADES DEPROTECCIÓN CUIDADO Y CONSERVACIÓN DE LA MALLA VIAL COMOCOMPONENTE PATRIMONIAL DE LA CANDELARIA | I29: INVERSION | N29: O23011604490000002020 | O29: 1 | P29: 1001281981 | Q29: YEISON ESMIK GOMEZ HERNANDEZ | R29: PERSONA NATURAL | T29: NO APLICA | U29: NO APLICA | W29: 9250000 | Y29: N/A | Z29: 0 | AA29: 9250000 | AB29: 8325000 | AC29: 2023-01-13 | AD29: 2023-01-16 | AE29: 2023-06-15 | AF29: 150 | AG29: N/A | AH29: N/A | AI29: N/A | AJ29: N/A | AK29: N/A | AM29: TERMINADO | AN29: 0.9
A30: FDLC-CPS-017-2023 | B30: 2023 | C30: FDLC-CPS-017-2023 | D30: https://community.secop.gov.co/Public/Tendering/OpportunityDetail/Index?noticeUID=CO1.NTC.3758351&isFromPublicArea=True&isModal=true&asPopupView=true | E30: Contrato de Prestación de Servicios Profesionales y de Apoyo a la gestión | F30: CONTRATACION DIRECTA | G30: No aplica | H30: PRESTAR SERVICIOS PROFESIONALES PARA APOYAR EN LA FORMULACION TECNICA Y SEGUIMIENTOS DE PLANES POLITICAS PROGRAMAS Y PROYECTOS RELACIONADOS CON OBRAS E INFRAESTRUCTURA QUE DESARROLLE LA ALCALDIA LOCAL DE LA CANDELARIA | I30: INVERSION | N30: O23011604490000002020 | O30: 1 | P30: 1014240286 | Q30: JORGE ALBERTO OJEDA GONZALEZ | R30: PERSONA NATURAL | T30: NO APLICA | U30: NO APLICA | W30: 27084000 | Y30: N/A | Z30: 0 | AA30: 27084000 | AB30: 23773733 | AC30: 2023-01-13 | AD30: 2023-01-16 | AE30: 2023-06-23 | AF30: 180 | AG30: N/A | AH30: N/A | AI30: N/A | AJ30: N/A | AK30: N/A | AM30: TERMINADO | AN30: 0.8777777655
A31: FDLC-CPS-018-2023 | B31: 2023 | C31: FDLC-CPS-018-2023 | D31: https://community.secop.gov.co/Public/Tendering/OpportunityDetail/Index?noticeUID=CO1.NTC.3753375&isFromPublicArea=True&isModal=true&asPopupView=true | E31: Contrato de Prestación de Servicios Profesionales y de Apoyo a la gestión | F31: CONTRATACION DIRECTA | G31: No aplica | H31: PRESTAR SERVICIOS DE APOYO ADMINISTRATIVO Y ASISTENCIAL AL FONDO DE DESARROLLO LOCAL DE LA CANDELARIA EN EL CENTRO DE INFORMACIÓN Y DOCUMENTACIÓN CDI PARA LA NOTIFICACIÓN DE CORRESPONDENCIA DE LA ENTIDAD | I31: INVERSION | N31: O23011605570000002021 | O31: 1 | P31: 79651770 | Q31: MARBYN ALFONSO SABOGAL SANCHEZ | R31: PERSONA NATURAL | T31: NO APLICA | U31: NO APLICA | W31: 27500000 | Y31: 2 | Z31: 13750002 | AA31: 41250002 | AB31: 26250000 | AC31: 2023-01-13 | AD31: 2023-01-16 | AE31: 2024-05-30 | AF31: 330 | AG31: 2 | AH31: 165 | AI31: N/A | AJ31: N/A | AK31: N/A | AM31: EJECUCION | AN31: 0.6363636055
A32: FDLC-CPS-019-2023 | B32: 2023 | C32: FDLC-CPS-019-2023 | D32: https://community.secop.gov.co/Public/Tendering/OpportunityDetail/Index?noticeUID=CO1.NTC.3752451&isFromPublicArea=True&isModal=true&asPopupView=true | E32: Contrato de Prestación de Servicios Profesionales y de Apoyo a la gestión | F32: CONTRATACION DIRECTA | G32: No aplica | H32: APOYAR AL EQUIPO DE PRENSA Y COMUNICACIONES DE LA ALCALDÍA LOCAL EN LA REALIZACIÓN Y PUBLICACIÓN DE CONTENIDOS DE REDES SOCIALES Y CANALES DE DIVULGACIÓN DIGITAL SITIO WEB DE LA ALCALDÍA LOCAL | I32: INVERSION | N32: O23011605570000002021 | O32: 1 | P32: 1022931048 | Q32: ADRIANA MARITZA GARAVITO GARCIA | R32: PERSONA NATURAL | T32: NO APLICA | U32: NO APLICA | W32: 57200000 | Y32: 2 | Z32: 28600002 | AA32: 85800002 | AB32: 54600000 | AC32: 2023-01-16 | AD32: 2023-01-16 | AE32: 2024-05-30 | AF32: 330 | AG32: 2 | AH32: 165 | AI32: N/A | AJ32: N/A | AK32: N/A | AM32: EJECUCION | AN32: 0.6363636215
A33: FDLC-CPS-020-2023 | B33: 2023 | C33: FDLC-CPS-020-2023 | D33: https://community.secop.gov.co/Public/Tendering/OpportunityDetail/Index?noticeUID=CO1.NTC.3755172&isFromPublicArea=True&isModal=true&asPopupView=true | E33: Contrato de Prestación de Servicios Profesionales y de Apoyo a la gestión | F33: CONTRATACION DIRECTA | G33: No aplica | H33: PRESTAR SERVICIOS PROFESIONALES ESPECIALIZADOS AL FONDO DE DESARROLLO LOCAL DE LA CANDELARIA EN EL DESPACHO DE LA ALCALDESA LOCAL EN LA ORIENTACIÓN DE ASUNTOS JURÍDICOS Y ADMINISTRATIVOS QUE SE REQUIERAN ASÍ COMO EN LA INTERLOCUCIÓN CON LOS ACTORES SOCIALES Y POLÍTICOS DE LA LOCALIDAD | I33: INVERSION | N33: O23011605570000002021 | O33: 1 | P33: 80239278 | Q33: JOHN FREDY PULIDO RINCON | R33: PERSONA NATURAL | T33: NO APLICA | U33: NO APLICA | W33: 88770000 | Y33: N/A | Z33: 0 | AA33: 88770000 | AB33: 85542000 | AC33: 2023-01-13 | AD33: 2023-01-13 | AE33: 2023-12-12 | AF33: 330 | AG33: N/A | AH33: N/A | AI33: N/A | AJ33: N/A | AK33: N/A | AM33: TERMINADO | AN33: 0.9636363636
A34: FDLC-CPS-021-2023 | B34: 2023 | C34: FDLC-CPS-021-2023 | D34: https://community.secop.gov.co/Public/Tendering/OpportunityDetail/Index?noticeUID=CO1.NTC.3759573&isFromPublicArea=True&isModal=true&asPopupView=true | E34: Contrato de Prestación de Servicios Profesionales y de Apoyo a la gestión | F34: CONTRATACION DIRECTA | G34: No aplica | H34: PRESTAR SERVICIOS PROFESIONALES COMO ABOGADO DE APOYO A LA IDENTIFICACIÓN ANÁLISIS REPARTO Y SEGUIMIENTO DE EXPEDIENTES PROCESALES EN EL ÁREA DE GESTIÓN POLICIVA DE LA ALCALDÍA LOCAL DE LACANDELARIA | I34: INVERSION | N34: O23011605570000002023 | O34: 1 | P34: 1010178744 | Q34: YENNI LORENA INFANTE GARCIA | R34: PERSONA NATURAL | T34: NO APLICA | U34: NO APLICA | W34: 66000000 | Y34: N/A | Z34: 0 | AA34: 66000000 | AB34: 62600000 | AC34: 2023-01-16 | AD34: 2023-01-18 | AE34: 2023-12-17 | AF34: 330 | AG34: N/A | AH34: N/A | AI34: 1032356337 | AJ34: CESION DE ANDRES FERNANDO RIVERA SOLINA | AK34: 2023-03-16 | AM34: TERMINADO | AN34: 0.9484848485
A35: FDLC-CPS-022-2023 | B35: 2023 | C35: FDLC-CPS-022-2023 | D35: https://community.secop.gov.co/Public/Tendering/OpportunityDetail/Index?noticeUID=CO1.NTC.3758462&isFromPublicArea=True&isModal=true&asPopupView=true | E35: Contrato de Prestación de Servicios Profesionales y de Apoyo a la gestión | F35: CONTRATACION DIRECTA | G35: No aplica | H35: PRESTAR SERVICIOS PROFESIONALES PARA APOYAR EN LA FORMULACIÓN TÉCNICA Y SEGUIMIENTOS DE PLANES POLÍTICAS PROGRAMAS Y PROYECTOS RELACIONADOS CON OBRAS E INFRAESTRUCTURA QUE DESARROLLE LA ALCALDÍA LOCAL DE LA CANDELARIA | I35: INVERSION | N35: O23011604490000002020 | O35: 1 | P35: 1014267890 | Q35: BRYAN FELIPE PRIETO MANZANO | R35: PERSONA NATURAL | T35: NO APLICA | U35: NO APLICA | W35: 27084000 | Y35: N/A | Z35: 0 | AA35: 27084000 | AB35: 23773733 | AC35: 2023-01-13 | AD35: 2023-01-16 | AE35: 2023-06-23 | AF35: 150 | AG35: N/A | AH35: N/A | AI35: 1030548945 | AJ35: CESION DE JOSE DUVAN ARIAS NARANJO | AK35: 2023-01-26 | AM35: TERMINADO | AN35: 0.8777777655
A36: FDLC-CPS-023-2023 | B36: 2023 | C36: FDLC-CPS-023-2023 | D36: https://community.secop.gov.co/Public/Tendering/OpportunityDetail/Index?noticeUID=CO1.NTC.3767233&isFromPublicArea=True&isModal=true&asPopupView=true | E36: Contrato de Prestación de Servicios Profesionales y de Apoyo a la gestión | F36: CONTRATACION DIRECTA | G36: No aplica | H36: PRESTAR SERVICIOS PROFESIONALES PARA APOYAR EN LA FORMULACION PRESENTACIÓN EVALUACIÓN Y SEGUIMIENTO JURÍDICO DE LOS PROYECTOS DE INVERSION DE LA ALCALDÍA LOCAL DE LA CANDELARIA | I36: INVERSION | N36: O23011605570000002021 | O36: 1 | P36: 80120031 | Q36: LUIS ALFONSO ORJUELA ORTIZ | R36: PERSONA NATURAL | T36: NO APLICA | U36: NO APLICA | W36: 36112000 | Y36: 1 | Z36: 9028001 | AA36: 45140001 | AB36: 36112000 | AC36: 2023-01-20 | AD36: 2023-01-24 | AE36: 2023-11-23 | AF36: 240 | AG36: 1 | AH36: 60 | AI36: N/A | AJ36: N/A | AK36: NA | AM36: TERMINADO | AN36: 0.7999999823
A37: FDLC-CPS-024-2023 | B37: 2023 | C37: FDLC-CPS-024-2023 | D37: https://community.secop.gov.co/Public/Tendering/OpportunityDetail/Index?noticeUID=CO1.NTC.3759713&isFromPublicArea=True&isModal=true&asPopupView=true | E37: Contrato de Prestación de Servicios Profesionales y de Apoyo a la gestión | F37: CONTRATACION DIRECTA | G37: No aplica | H37: PRESTAR SERVICIOS PROFESIONALES AL FONDO DE DESARROLLO LOCAL DE LA CANDELARIA PARA APOYAR EN LA FORMULACION PRESENTACIÓN EVALUACIÓN Y SEGUIMIENTO DE LOS PROYECTOS DE INVERSION EN LA LOCALIDAD | I37: INVERSION | N37: O23011605570000002021 | O37: 1 | P37: 1078826087 | Q37: TATIANA NIYIRIT MORENO QUINTERO | R37: PERSONA NATURAL | T37: NO APLICA | U37: NO APLICA | W37: 27084000 | Y37: N/A | Z37: 0 | AA37: 27084000 | AB37: 15046066 | AC37: 2023-01-16 | AD37: 2023-01-18 | AE37: 2023-07-15 | AF37: 180 | AG37: N/A | AH37: N/A | AI37: 52219649 | AJ37: CESION DE INDIRA BETANCOURT MACUASE | AK37: 2023-04-28 | AM37: TERMINADO | AN37: 0.5555333776
A38: FDLC-CPS-025-2023 | B38: 2023 | C38: FDLC-CPS-025-2023 | D38: https://community.secop.gov.co/Public/Tendering/OpportunityDetail/Index?noticeUID=CO1.NTC.3770950&isFromPublicArea=True&isModal=true&asPopupView=true | E38: Contrato de Prestación de Servicios Profesionales y de Apoyo a la gestión | F38: CONTRATACION DIRECTA | G38: No aplica | H38: PRESTAR SERVICIOS DE APOYO EN LAS ACTIVIDADES DE PROTECCIÓN CUIDADO Y CONSERVACIÓN DE LA MALLA VIAL COMO COMPONENTE PATRIMONIAL DE LA CANDELARIA | I38: INVERSION | N38: O23011604490000002020 | O38: 1 | P38: 1000832141 | Q38: LAURA CATALINA MORA NIETO | R38: PERSONA NATURAL | T38: NO APLICA | U38: NO APLICA | W38: 9250000 | Y38: N/A | Z38: 0 | AA38: 9250000 | AB38: 9250000 | AC38: 2023-01-16 | AD38: 2023-01-18 | AE38: 2023-06-17 | AF38: 150 | AG38: N/A | AH38: N/A | AI38: N/A | AJ38: N/A | AK38: N/A | AM38: TERMINADO | AN38: 1
A39: FDLC-CPS-026-2023 | B39: 2023 | C39: FDLC-CPS-026-2023 | D39: https://community.secop.gov.co/Public/Tendering/OpportunityDetail/Index?noticeUID=CO1.NTC.3765575&isFromPublicArea=True&isModal=true&asPopupView=true | E39: Contrato de Prestación de Servicios Profesionales y de Apoyo a la gestión | F39: CONTRATACION DIRECTA | G39: No aplica | H39: PRESTAR SERVICIOS PROFESIONALES AL FONDO DE DESARROLLO LOCAL DE LA CANDELARIA EN LOS TRÁMITES RELACIONADOS CON LOS PROCESOS PRECONTRACTUALES CONTRACTUALES Y POS CONTRACTUALES QUE SE ADELANTEN A TRAVÉS DE SECOP I Y II ASÍ COMO LA ADQUISICIÓN DE BIENES Y SERVICIOS A TRAVÉS DE LA TIENDA VIRTUAL DEL ESTADO COLOMBIANO | I39: INVERSION | N39: O23011605570000002021 | O39: 1 | P39: 1032456470 | Q39: DIANA CATHERINE GONZALEZ MOLANO | R39: PERSONA NATURAL | T39: NO APLICA | U39: NO APLICA | W39: 69300000 | X39: -36330000 | Y39: N/A | Z39: 0 | AA39: 32970000 | AB39: 32970000 | AC39: 2023-01-16 | AD39: 2023-01-16 | AE39: 2023-06-22 | AF39: 330 | AG39: N/A | AH39: N/A | AI39: N/A | AJ39: N/A | AK39: N/A | AM39: TERMINADO | AN39: 1
A40: FDLC-CPS-027-2023 | B40: 2023 | C40: FDLC-CPS-027-2023 | D40: https://community.secop.gov.co/Public/Tendering/OpportunityDetail/Index?noticeUID=CO1.NTC.3767128&isFromPublicArea=True&isModal=true&asPopupView=true | E40: Contrato de Prestación de Servicios Profesionales y de Apoyo a la gestión | F40: CONTRATACION DIRECTA | G40: No aplica | H40: PRESTAR SERVICIOS PROFESIONALES AL FONDO DE DESARROLLO LOCAL DE LA CANDELARIA EN LOS TRÁMITES RELACIONADOS CON LOS PROCESOS PRECONTRACTUALES CONTRACTUALES Y POS CONTRACTUALES QUE SE ADELANTEN A TRAVÉS DE SECOP I Y II ASÍ COMO LA ADQUISICIÓN DE BIENES Y SERVICIOS A TRAVÉS DE LA TIENDA VIRTUAL DEL ESTADO COLOMBIANO | I40: INVERSION | N40: O23011605570000002021 | O40: 1 | P40: 1032363826 | Q40: PAOLA ANDREA PADILLA AYARZA | R40: PERSONA NATURAL | T40: NO APLICA | U40: NO APLICA | W40: 77000000 | Y40: 1 | Z40: 14000001 | AA40: =+W40+X40+Z40 -> 91000001 | AB40: 73500000 | AC40: 2023-01-16 | AD40: 2023-01-16 | AE40: 2024-02-15 | AF40: 150 | AG40: 1 | AH40: 60 | AI40: N/A | AJ40: N/A | AK40: N/A | AM40: TERMINADO | AN40: 0.8076922988
A41: FDLC-CPS-028-2023 | B41: 2023 | C41: FDLC-CPS-028-2023 | D41: https://community.secop.gov.co/Public/Tendering/OpportunityDetail/Index?noticeUID=CO1.NTC.3770456&isFromPublicArea=True&isModal=true&asPopupView=true | E41: Contrato de Prestación de Servicios Profesionales y de Apoyo a la gestión | F41: CONTRATACION DIRECTA | G41: No aplica | H41: PRESTAR SERVICIOS PROFESIONALES ESPECIALIZADOS PARA APOYAR JURÍDICAMENTE AL FONDO DE DESARROLLO LOCAL DE LA CANDELARIA EN LA EJECUCIÓN DE LAS FASES PRECONTRACTUAL CONTRACTUAL Y POSCONTRACTUAL DE LOS PLANES PROGRAMAS Y PROYECTOS DE INFRAESTRUCTURA | I41: INVERSION | N41: O23011604490000002020 | O41: 1 | P41: 1018418431 | Q41: CARLOS EDUARDO LINARES CASTELLANOS | R41: PERSONA NATURAL | T41: NO APLICA | U41: NO APLICA | W41: 88770000 | Y41: 1 | Z41: 24210001 | AA41: 112980001 | AB41: 84735000 | AC41: 2023-01-16 | AD41: 2023-01-16 | AE41: 2024-03-14 | AF41: 330 | AG41: 1 | AH41: 90 | AI41: N/A | AJ41: N/A | AK41: N/A | AM41: EJECUCION | AN41: 0.7499999934
A42: FDLC-CPS-029-2023 | B42: 2023 | C42: FDLC-CPS-029-2023 | D42: https://community.secop.gov.co/Public/Tendering/OpportunityDetail/Index?noticeUID=CO1.NTC.3767508&isFromPublicArea=True&isModal=true&asPopupView=true | E42: Contrato de Prestación de Servicios Profesionales y de Apoyo a la gestión | F42: CONTRATACION DIRECTA | G42: No aplica | H42: PRESTAR SERVICIOS PROFESIONALES PARA REALIZAR LA COORDINACION TÉCNICA Y OPERATIVA DEL SEGUIMIENTO DE PLANES POLÍTICAS PROGRAMAS Y PROYECTOS DE INFRAESTRUCTURA Y OBRAS CIVILES QUE DESARROLLE LA ALCALDÍA LOCAL DE LA CANDELARIA EN EL MARCO DEL PLAN DE DESARROLLO LOCAL 20212024 | I42: INVERSION | N42: O23011604490000002020 | O42: 1 | P42: 1049626361 | Q42: FABIAN HUMBERTO SALAMANCA JIMENEZ | R42: PERSONA NATURAL | T42: NO APLICA | U42: NO APLICA | W42: 56000000 | Y42: 2 | Z42: 14000002 | AA42: 70000002 | AB42: 73266667 | AC42: 2023-01-16 | AD42: 2023-01-17 | AE42: 2024-01-16 | AF42: 240 | AG42: 2 | AH42: 120 | AI42: N/A | AJ42: N/A | AK42: N/A | AM42: TERMINADO | AN42: 1.046666642
A43: FDLC-CPS-030-2023 | B43: 2023 | C43: FDLC-CPS-030-2023 | D43: https://community.secop.gov.co/Public/Tendering/OpportunityDetail/Index?noticeUID=CO1.NTC.3767199&isFromPublicArea=True&isModal=true&asPopupView=true | E43: Contrato de Prestación de Servicios Profesionales y de Apoyo a la gestión | F43: CONTRATACION DIRECTA | G43: No aplica | H43: PRESTAR SERVICIOS ASISTENCIALES ALÁREA DE GESTIÓN DE DESARROLLO LOCAL EN LOS PROCESOS RELACIONADOS CON LASACTIVIDADES DE GESTION ADMINISTRATIVA DE LA ALCALDÍA LOCAL DE LA CANDELARIA | I43: INVERSION | N43: O23011605570000002021 | O43: 1 | P43: 1024462041 | Q43: EULER GIOVANNY GAVIRIA SANCHEZ | R43: PERSONA NATURAL | T43: NO APLICA | U43: NO APLICA | W43: 26400000 | X43: 0 | Y43: 1 | Z43: 2400001 | AA43: 28800001 | AB43: 25120000 | AC43: 2023-01-16 | AD43: 2023-01-17 | AE43: 2024-01-16 | AF43: 330 | AG43: 1 | AH43: 30 | AI43: N/A | AJ43: N/A | AK43: N/A | AM43: TERMINADO | AN43: 0.8722221919
A44: FDLC-CPS-031-2023 | B44: 2023 | C44: FDLC-CPS-031-2023 | D44: https://community.secop.gov.co/Public/Tendering/OpportunityDetail/Index?noticeUID=CO1.NTC.3767569&isFromPublicArea=True&isModal=true&asPopupView=true | E44: Contrato de Prestación de Servicios Profesionales y de Apoyo a la gestión | F44: CONTRATACION DIRECTA | G44: No aplica | H44: PRESTAR SERVICIOS PROFESIONALES PARA APOYAR AL ALCALDE LOCAL DE LA CANDELARIA EN LA GESTIÓN DE LOS ASUNTOS RELACIONADOS CON SEGURIDAD CIUDADANA CONVIVENCIA Y PREVENCIÓN DE CONFLICTIVIDADES VIOLENCIAS Y DELITOS EN LA LOCALIDAD DE CONFORMIDAD CON EL MARCO NORMATIVO APLICABLE EN LA MATERIA | I44: INVERSION | N44: O23011605570000002021 | O44: 1 | P44: 1102807537 | Q44: JOSE MARIA CONDE AREVALO | R44: PERSONA NATURAL | T44: NO APLICA | U44: NO APLICA | W44: 77000000 | X44: 0 | Y44: 1 | Z44: 7000001 | AA44: 84000001 | AB44: 72800000 | AC44: 2023-01-17 | AD44: 2023-01-19 | AE44: 2024-01-18 | AF44: 330 | AG44: 1 | AH44: 30 | AI44: N/A | AJ44: N/A | AK44: N/A | AM44: TERMINADO | AN44: 0.8666666563
A45: FDLC-CPS-032-2023 | B45: 2023 | C45: FDLC-CPS-032-2023 | D45: https://community.secop.gov.co/Public/Tendering/OpportunityDetail/Index?noticeUID=CO1.NTC.3769353&isFromPublicArea=True&isModal=true&asPopupView=true | E45: Contrato de Prestación de Servicios Profesionales y de Apoyo a la gestión | F45: CONTRATACION DIRECTA | G45: No aplica | H45: PRESTAR SERVICIOS PROFESIONALES EN EL DESPACHO DE LA ALCALDÍA LOCAL DE LA CANDELARIA PARA EL SEGUIMIENTO JURÍDICO EN MATERIA DE CONTRATACIÓN ESTATAL A LOS PROCESOS DE FORMULACIÓN EJECUCIÓN CONTROL DE POLÍTICAS PLANES Y PROGRAMAS DE INVERSIÓN EN EL MARCO DEL PLAN DE DESARROLLO LOCAL | I45: INVERSION | N45: O23011605570000002021 | O45: 1 | P45: 1010198763 | Q45: CARLOS MAURICIO PALOMAR COVALEDA | R45: PERSONA NATURAL | T45: NO APLICA | U45: NO APLICA | W45: 77000000 | Y45: 1 | Z45: 14000001 | AA45: 91000001 | AB45: 73500000 | AC45: 2023-01-16 | AD45: 2023-01-16 | AE45: 2024-02-15 | AF45: 330 | AG45: 1 | AH45: 60 | AI45: N/A | AJ45: N/A | AK45: N/A | AM45: TERMINADO | AN45: 0.8076922988
A46: FDLC-CPS-033-2023 | B46: 2023 | C46: FDLC-CPS-033-2023 | D46: https://community.secop.gov.co/Public/Tendering/OpportunityDetail/Index?noticeUID=CO1.NTC.3770798&isFromPublicArea=True&isModal=true&asPopupView=true | E46: Contrato de Prestación de Servicios Profesionales y de Apoyo a la gestión | F46: CONTRATACION DIRECTA | G46: No aplica | H46: PRESTAR SERVICIOS ESPECIALIZADOS DE PLANEACIÓN ESTRATÉGICA EN EL DESPACHO DE LA ALCALDÍA LOCAL DE LA CANDELARIA PARA LA COORDINACIÓN FORMULACIÓN EJECUCIÓN Y CONTROL DE POLÍTICAS PLANES Y PROGRAMAS DE INVERSIÓN EN EL MARCO DEL CUMPLIMIENTO DEL PLAN DE DESARROLLO LOCAL | I46: INVERSION | N46: O23011605570000002021 | O46: 1 | P46: 1026255127 | Q46: DELIO ALCIBIADES LADINO PEÑA | R46: PERSONA NATURAL | T46: NO APLICA | U46: NO APLICA | W46: 88770000 | Y46: 1 | Z46: 24210001 | AA46: 112980001 | AB46: 84735000 | AC46: 2023-01-16 | AD46: 2023-01-16 | AE46: 2024-03-15 | AF46: 330 | AG46: 1 | AH46: 90 | AI46: N/A | AJ46: N/A | AK46: N/A | AM46: EJECUCION | AN46: 0.7499999934
A47: FDLC-CPS-034-2023 | B47: 2023 | C47: FDLC-CPS-034-2023 | D47: https://community.secop.gov.co/Public/Tendering/OpportunityDetail/Index?noticeUID=CO1.NTC.3781966&isFromPublicArea=True&isModal=true&asPopupView=true | E47: Contrato de Prestación de Servicios Profesionales y de Apoyo a la gestión | F47: CONTRATACION DIRECTA | G47: No aplica | H47: PRESTAR SERVICIOS DE APOYO EN LAS ACTIVIDADES DE SEGURIDADY CONVIVENCIA CIUDADANA DE ACUERDO A LAS NECESIDADES YESTRATEGIAS DE LA ALCALDÍA LOCAL DE LA CANDELARIA | I47: INVERSION | N47: O23011605570000002021 | O47: 1 | P47: 39781586 | Q47: ALEXI NORVEI OSORIO RUIZ | R47: PERSONA NATURAL | T47: NO APLICA | U47: NO APLICA | W47: 20680000 | Y47: N/A | Z47: 0 | AA47: 20680000 | AB47: 19614667 | AC47: 2023-01-17 | AD47: 2023-01-18 | AE47: 2023-12-17 | AF47: 330 | AG47: N/A | AH47: N/A | AI47: N/A | AJ47: N/A | AK47: N/A | AM47: TERMINADO | AN47: 0.9484848646
A48: FDLC-CPS-035-2023 | B48: 2023 | C48: FDLC-CPS-035-2023 | D48: https://community.secop.gov.co/Public/Tendering/OpportunityDetail/Index?noticeUID=CO1.NTC.3773156&isFromPublicArea=True&isModal=true&asPopupView=true | E48: Contrato de Prestación de Servicios Profesionales y de Apoyo a la gestión | F48: CONTRATACION DIRECTA | G48: No aplica | H48: PRESTAR SERVICIOS PROFESIONALES AL FONDO DE DESARROLLOLOCAL DE LA CANDELARIA EN LA PLANEACIÓN SEGUIMIENTO YEJECUCIÓN DE LAS ACTIVIDADES AMBIENTALES EN CUMPLIMIENTODE LAS METAS DEL PLAN DE DESARROLLO LOCAL | I48: INVERSION | N48: O23011605570000002021 | O48: 1 | P48: 1013628927 | Q48: DAISSY TATIANA FAJARDO VELASCO | R48: PERSONA NATURAL | T48: NO APLICA | U48: NO APLICA | W48: 66000000 | Y48: 1 | Z48: 18000001 | AA48: 84000001 | AB48: 62800000 | AC48: 2023-01-17 | AD48: 2023-01-17 | AE48: 2024-03-16 | AF48: 330 | AG48: 1 | AH48: 90 | AI48: N/A | AJ48: N/A | AK48: N/A | AM48: EJECUCION | AN48: 0.7476190387
A49: FDLC-CPS-036-2023 | B49: 2023 | C49: FDLC-CPS-036-2023 | D49: https://community.secop.gov.co/Public/Tendering/OpportunityDetail/Index?noticeUID=CO1.NTC.3773179&isFromPublicArea=True&isModal=true&asPopupView=true | E49: Contrato de Prestación de Servicios Profesionales y de Apoyo a la gestión | F49: CONTRATACION DIRECTA | G49: No aplica | H49: PRESTAR SERVICIOS DE APOYO TÉCNICO AL FONDO DEDESARROLLO LOCAL DE LA CANDELARIA EN LOS PROCEDIMIENTOSADMINISTRATIVOS Y OPERATIVOS QUE LE SEAN ASIGNADOS | I49: INVERSION | N49: O23011605570000002021 | O49: 1 | P49: 93118919 | Q49: ALFONSO CASTAÑEDA BUSTAMANTE | R49: PERSONA NATURAL | T49: NO APLICA | U49: NO APLICA | W49: 13685000 | Y49: N/A | Z49: 0 | AA49: 13685000 | AB49: 13685000 | AC49: 2023-01-18 | AD49: 2023-01-19 | AE49: 2023-06-18 | AF49: 150 | AG49: N/A | AH49: N/A | AI49: N/A | AJ49: N/A | AK49: N/A | AM49: TERMINADO | AN49: 1
A50: FDLC-CPS-037-2023 | B50: 2023 | C50: FDLC-CPS-037-2023 | D50: https://community.secop.gov.co/Public/Tendering/OpportunityDetail/Index?noticeUID=CO1.NTC.3773270&isFromPublicArea=True&isModal=true&asPopupView=true | E50: Contrato de Prestación de Servicios Profesionales y de Apoyo a la gestión | F50: CONTRATACION DIRECTA | G50: No aplica | H50: PRESTAR LOS SERVICIOS PROFESIONALES PARA APOYAR EN ELCUBRIMIENTO ELABORACIÓN DIFUSIÓN GESTIÓN Y PUBLICACIÓNDE CONTENIDOS INSTITUCIONALES Y MATERIAL GRÁFICO DECOMUNICACIÓN EN LAS REDES SOCIALES HERRAMIENTASINSTITUCIONALES DE COMUNICACIÓN Y PÁGINA WEB DE LA ALCALDÍALOCAL DE LA CANDELARIA | I50: INVERSION | N50: O23011605570000002021 | O50: 1 | P50: 1032488659 | Q50: KEVIN SEBASTIAN MELO RIVERA | R50: PERSONA NATURAL | T50: NO APLICA | U50: NO APLICA | W50: 56793000 | Y50: 2 | Z50: 10326002 | AA50: 67119002 | AB50: 54039400 | AC50: 2023-01-17 | AD50: 2023-01-17 | AE50: 2024-02-16 | AF50: 330 | AG50: 2 | AH50: 60 | AI50: N/A | AJ50: N/A | AK50: N/A | AM50: TERMINADO | AN50: 0.8051281811
A51: FDLC-CPS-038-2023 | B51: 2023 | C51: FDLC-CPS-038-2023 | D51: https://community.secop.gov.co/Public/Tendering/OpportunityDetail/Index?noticeUID=CO1.NTC.3771845&isFromPublicArea=True&isModal=true&asPopupView=true | E51: Contrato de Prestación de Servicios Profesionales y de Apoyo a la gestión | F51: CONTRATACION DIRECTA | G51: No aplica | H51: PRESTAR SERVICIOS DE APOYO TÉCNICO AL FONDO DE DESARROLLO LOCAL DE LA CANDELARIA PARA APOYAR EN LA IMPLEMENTACIÓN CARGA MANEJO VALIDACIÓN Y ACTUALIZACIÓN DE LA INFORMACIÓN REQUERIDA EN EL APLICATIVO SIPSE LOCAL Y DEMÁS APLICATIVOS DE GESTIÓN LOCAL | I51: INVERSION | N51: O23011605570000002021 | O51: 1 | P51: 1014177764 | Q51: EDGAR OSWALDO NAVARRETE VANEGAS | R51: PERSONA NATURAL | T51: NO APLICA | U51: NO APLICA | W51: 34100000 | Y51: 1 | Z51: 3100001 | AA51: 37200001 | AB51: 32550000 | AC51: 2023-01-16 | AD51: 2023-01-16 | AE51: 2024-05-30 | AF51: 330 | AG51: 1 | AH51: 30 | AI51: N/A | AJ51: N/A | AK51: N/A | AM51: EJECUCION | AN51: 0.8749999765
A52: FDLC-CPS-039-2023 | B52: 2023 | C52: FDLC-CPS-039-2023 | D52: https://community.secop.gov.co/Public/Tendering/OpportunityDetail/Index?noticeUID=CO1.NTC.3777240&isFromPublicArea=True&isModal=true&asPopupView=true | E52: Contrato de Prestación de Servicios Profesionales y de Apoyo a la gestión | F52: CONTRATACION DIRECTA | G52: No aplica | H52: PRESTAR SERVICIOS DE APOYO EN LAS ACTIVIDADES DE SEGURIDAD Y CONVIVENCIA CIUDADANA DE ACUERDO A LAS NECESIDADES Y ESTRATEGIAS DE LA ALCALDÍA LOCAL DE LA CANDELARIA | I52: INVERSION | N52: O23011605570000002021 | O52: 1 | P52: 1051654292 | Q52: TITO JOSE MUTIS VALEST | R52: PERSONA NATURAL | T52: NO APLICA | U52: NO APLICA | W52: 20680000 | Y52: 2 | Z52: 10340002 | AA52: 31020002 | AB52: 19552000 | AC52: 2023-01-17 | AD52: 2023-01-19 | AE52: 2024-06-03 | AF52: 330 | AG52: 2 | AH52: 165 | AI52: N/A | AJ52: N/A | AK52: N/A | AM52: EJECUCION | AN52: 0.6303029897
A53: FDLC-CPS-040-2023 | B53: 2023 | C53: FDLC-CPS-040-2023 | D53: https://community.secop.gov.co/Public/Tendering/OpportunityDetail/Index?noticeUID=CO1.NTC.3781329&isFromPublicArea=True&isModal=true&asPopupView=true | E53: Contrato de Prestación de Servicios Profesionales y de Apoyo a la gestión | F53: CONTRATACION DIRECTA | G53: No aplica | H53: PRESTACIÓN DE SERVICIOS DE APOYO TÉCNICO AL FONDO DE DESARROLLO LOCAL DE LA CANDELARIA EN LOS ASUNTOS RELACIONADOS CON LOS PROCESOS DEL ALMACÉN DE LA ENTIDAD | I53: INVERSION | N53: O23011605570000002021 | O53: 1 | P53: 12139994 | Q53: JUAN CARLOS PUENTES NARVAEZ | R53: PERSONA NATURAL | T53: NO APLICA | U53: NO APLICA | W53: 42900000 | X53: 0 | Y53: 2 | Z53: 21450002 | AA53: 64350002 | AB53: 40820000 | AC53: 2023-01-17 | AD53: 2023-01-17 | AE53: 2024-05-31 | AF53: 330 | AG53: 2 | AH53: 165 | AI53: N/A | AJ53: N/A | AK53: N/A | AM53: EJECUCION | AN53: 0.6343434146
A54: FDLC-CPS-041-2023 | B54: 2023 | C54: FDLC-CPS-041-2023 | D54: https://community.secop.gov.co/Public/Tendering/OpportunityDetail/Index?noticeUID=CO1.NTC.3781837&isFromPublicArea=True&isModal=true&asPopupView=true | E54: Contrato de Prestación de Servicios Profesionales y de Apoyo a la gestión | F54: CONTRATACION DIRECTA | G54: No aplica | H54: PRESTAR SERVICIOS PROFESIONALES AL FONDO DE DESARROLLO LOCAL DE LA CANDELARIA PARA APOYAR Y FORTALECER LAS GESTIONES CONTABLES DE LA ENTIDAD APOYANDO EL PROCESO DE CAUSACIÓN CONTABLE | I54: INVERSION | N54: O23011605570000002021 | O54: 1 | P54: 52520044 | Q54: PAOLA ANDREA OYUELA VARGAS | R54: PERSONA NATURAL | T54: NO APLICA | U54: NO APLICA | W54: 60500000 | Y54: 2 | Z54: 30250002 | AA54: 90750002 | AB54: 57383333 | AC54: 2023-01-17 | AD54: 2023-01-18 | AE54: 2024-06-02 | AF54: 330 | AG54: 2 | AH54: 165 | AI54: N/A | AJ54: N/A | AK54: N/A | AM54: EJECUCION | AN54: 0.6323232147
A55: FDLC-CPS-042-2023 | B55: 2023 | C55: FDLC-CPS-042-2023 | D55: https://community.secop.gov.co/Public/Tendering/OpportunityDetail/Index?noticeUID=CO1.NTC.3782152&isFromPublicArea=True&isModal=true&asPopupView=true | E55: Contrato de Prestación de Servicios Profesionales y de Apoyo a la gestión | F55: CONTRATACION DIRECTA | G55: No aplica | H55: PRESTAR SERVICIOS PROFESIONALES AL FONDO DE DESARROLLO LOCAL DE LA CANDELARIA PARA APOYAR Y FORTALECER LAS GESTIONES CONTABLES DE LA ENTIDAD | I55: INVERSION | N55: O23011605570000002021 | O55: 1 | P55: 52540545 | Q55: ALEXANDRA CASTILLO ARDILA | R55: PERSONA NATURAL | T55: NO APLICA | U55: NO APLICA | W55: 49654000 | Y55: N/A | Z55: 0 | AA55: =+W55+X55+Z55 -> 49654000 | AB55: 38068067 | AC55: 2023-01-17 | AD55: 2023-01-18 | AE55: 2023-12-17 | AF55: 330 | AG55: N/A | AH55: N/A | AI55: N/A | AJ55: N/A | AK55: N/A | AM55: TERMINADO | AN55: 0.7666666734
A56: FDLC-CPS-043-2023 | B56: 2023 | C56: FDLC-CPS-043-2023 | D56: https://community.secop.gov.co/Public/Tendering/OpportunityDetail/Index?noticeUID=CO1.NTC.3782531&isFromPublicArea=True&isModal=true&asPopupView=true | E56: Contrato de Prestación de Servicios Profesionales y de Apoyo a la gestión | F56: CONTRATACION DIRECTA | G56: No aplica | H56: PRESTAR SERVICIOS DE APOYO TÉCNICO Y ADMINISTRATIVO CONRELACIÓN A LOS PROYECTOS DE OBRAS E INFRAESTRUCTURA QUEDESARROLLE LA ALCALDÍA LOCAL DE LA CANDELARIA Y LOS DEMÁSREQUERIDOS POR EL DESPACHO DEL LA ALCALDE SA LOCAL | I56: INVERSION | N56: O23011604490000002020 | O56: 1 | P56: 52305372 | Q56: ELCY JEANETH PULIDO AMORTEGUI | R56: PERSONA NATURAL | T56: NO APLICA | U56: NO APLICA | W56: 44000000 | Y56: 1 | Z56: 10000001 | AA56: 54000001 | AB56: 41866667 | AC56: 2023-01-17 | AD56: 2023-01-17 | AE56: 2024-03-01 | AF56: 330 | AG56: 1 | AH56: 75 | AI56: N/A | AJ56: N/A | AK56: N/A | AM56: EJECUCION | AN56: 0.7753086338
A57: FDLC-CPS-044-2023 | B57: 2023 | C57: FDLC-CPS-044-2023 | D57: https://community.secop.gov.co/Public/Tendering/OpportunityDetail/Index?noticeUID=CO1.NTC.3784015&isFromPublicArea=True&isModal=true&asPopupView=true | E57: Contrato de Prestación de Servicios Profesionales y de Apoyo a la gestión | F57: CONTRATACION DIRECTA | G57: No aplica | H57: PRESTAR SERVICIOS PROFESIONALES DE APOYO PARA LAPLANEACIÓN IMPLEMENTACIÓN Y FORTALECIMIENTO DEPROYECTOS RELACIONADOS CON LAS ACTIVIDADES DEL TURISMO ATRAVÉS DE LA GESTIÓN ARTICULACIÓN E INTERLOCUCIÓN CONCIUDADANÍA Y ENTIDADES PÚBLICAS Y PRIVADAS DE LA LOCALIDADDE LA CANDELARIA | I57: INVERSION | N57: O23011605570000002021 | O57: 1 | P57: 1024571510 | Q57: PAULA MEDELLIN LEON | R57: PERSONA NATURAL | T57: NO APLICA | U57: NO APLICA | W57: 36112000 | Y57: 1 | Z57: 15347601 | AA57: =+W57+X57+Z57 -> 51459601 | AB57: 47096067 | AC57: 2023-01-18 | AD57: 2023-01-18 | AE57: 2023-12-29 | AF57: NA | AG57: 1 | AH57: 102 | AI57: N/A | AJ57: N/A | AK57: N/A | AM57: TERMINADO | AN57: 0.9152046671
A58: FDLC-CPS-045-2023 | B58: 2023 | C58: FDLC-CPS-045-2023 | D58: https://community.secop.gov.co/Public/Tendering/OpportunityDetail/Index?noticeUID=CO1.NTC.3797797&isFromPublicArea=True&isModal=true&asPopupView=true | E58: Contrato de Prestación de Servicios Profesionales y de Apoyo a la gestión | F58: CONTRATACION DIRECTA | G58: No aplica | H58: PRESTAR SERVICIOS ASISTENCIALES AL ÁREA DE GESTIÓN DE DESARROLLO LOCAL EN LOS PROCESOS Y ACTIVIDADES DE GESTIÓN ADMINISTRATIVA DE LA ALCALDÍA LOCAL DE LA CANDELARIA | I58: INVERSION | N58: O23011605570000002021 | O58: 1 | P58: 19458700 | Q58: OSCAR BARRERA ARROYAVE | R58: PERSONA NATURAL | T58: NO APLICA | U58: NO APLICA | W58: 19800000 | Y58: N/A | Z58: 0 | AA58: 19800000 | AB58: 18400000 | AC58: 2023-01-19 | AD58: 2023-01-24 | AE58: 2023-12-23 | AF58: 330 | AG58: N/A | AH58: N/A | AI58: N/A | AJ58: N/A | AK58: N/A | AM58: TERMINADO | AN58: 0.9292929293
A59: FDLC-CPS-046-2023 | B59: 2023 | C59: FDLC-CPS-046-2023 | D59: https://community.secop.gov.co/Public/Tendering/OpportunityDetail/Index?noticeUID=CO1.NTC.3789845&isFromPublicArea=True&isModal=true&asPopupView=true | E59: Contrato de Prestación de Servicios Profesionales y de Apoyo a la gestión | F59: CONTRATACION DIRECTA | G59: No aplica | H59: APOYAR JURÍDICAMENTE A LA JUNTA ADMINISTRADORA LOCAL CON EL FIN DE CONTRIBUIR AL ADECUADO CUMPLIMIENTO DE LAS ATRIBUCIONES A SU CARGO | I59: INVERSION | N59: O23011605570000002021 | O59: 1 | P59: 1045707561 | Q59: RICHARD ANDRES DIAZ NIÑO | R59: PERSONA NATURAL | T59: NO APLICA | U59: NO APLICA | W59: 51700000 | Y59: N/A | Z59: 0 | AA59: 51700000 | AB59: 48880000 | AC59: 2023-01-18 | AD59: 2023-01-19 | AE59: 2023-12-18 | AF59: 330 | AG59: N/A | AH59: N/A | AI59: N/A | AJ59: N/A | AK59: N/A | AM59: TERMINADO | AN59: 0.9454545455
A60: FDLC-CPS-047-2023 | B60: 2023 | C60: FDLC-CPS-047-2023 | D60: https://community.secop.gov.co/Public/Tendering/OpportunityDetail/Index?noticeUID=CO1.NTC.3788067&isFromPublicArea=True&isModal=true&asPopupView=true | E60: Contrato de Prestación de Servicios Profesionales y de Apoyo a la gestión | F60: CONTRATACION DIRECTA | G60: No aplica | H60: PRESTAR SERVICIOS PROFESIONALES AL FONDO DE DESARROLLO LOCAL PARA APOYAR LA FORMULACIÓN EJECUCIÓN SEGUIMIENTO Y MEJORA CONTINUA DE LAS HERRAMIENTAS QUE CONFORMAN LA GESTIÓN AMBIENTAL INSTITUCIONAL DE LA ALCALDÍA LOCAL | I60: INVERSION | N60: O23011605570000002021 | O60: 1 | P60: 53032345 | Q60: SULY PAOLA CONTRERAS CRUZ | R60: PERSONA NATURAL | T60: NO APLICA | U60: NO APLICA | W60: 66000000 | Y60: N/A | Z60: 0 | AA60: 66000000 | AB60: 62400000 | AC60: 2023-01-18 | AD60: 2023-01-19 | AE60: 2023-12-18 | AF60: 330 | AG60: N/A | AH60: N/A | AI60: N/A | AJ60: N/A | AK60: N/A | AM60: TERMINADO | AN60: 0.9454545455
A61: FDLC-CPS-048-2023 | B61: 2023 | C61: FDLC-CPS-048-2023 | D61: https://community.secop.gov.co/Public/Tendering/OpportunityDetail/Index?noticeUID=CO1.NTC.3789923&isFromPublicArea=True&isModal=true&asPopupView=true | E61: Contrato de Prestación de Servicios Profesionales y de Apoyo a la gestión | F61: CONTRATACION DIRECTA | G61: No aplica | H61: PRESTAR SERVICIOS DE APOYO EN LAS ACTIVIDADES DE PROTECCIÓN CUIDADO Y CONSERVACIÓN DE LA MALLA VIAL COMO COMPONENTE PATRIMONIAL DE LA CANDELARIA | I61: INVERSION | N61: O23011604490000002020 | O61: 1 | P61: 79596330 | Q61: SINUHE WALTARI AYURE VELASQUEZ | R61: PERSONA NATURAL | T61: NO APLICA | U61: NO APLICA | W61: 9250000 | Y61: N/A | Z61: 0 | AA61: 9250000 | AB61: 8695000 | AC61: 2023-01-18 | AD61: 2023-01-31 | AE61: 2023-06-20 | AF61: 150 | AG61: N/A | AH61: N/A | AI61: 1070331732 | AJ61: CESION DE IVONNE JULIETH ROJAS ROJAS | AK61: 2023-02-22 | AM61: TERMINADO | AN61: 0.94
A62: FDLC-CPS-049-2023 | B62: 2023 | C62: FDLC-CPS-049-2023 | D62: https://community.secop.gov.co/Public/Tendering/OpportunityDetail/Index?noticeUID=CO1.NTC.3789591&isFromPublicArea=True&isModal=true&asPopupView=true | E62: Contrato de Prestación de Servicios Profesionales y de Apoyo a la gestión | F62: CONTRATACION DIRECTA | G62: No aplica | H62: PRESTAR SERVICIOS PROFESIONALES PARA APOYAR JURÍDICAMENTE EL CUMPLIMIENTO DE LAS COMISIONES JUDICIALES ORDENADAS AL ALCALDESA LOCAL ASÍ COMO LA ATENCIÓN DE PETICIONES REQUERIMIENTOS Y ACCIONES CONSTITUCIONALES ORIGINADAS EN EL TRÁMITE DE DESPACHOS COMISORIOS | I62: INVERSION | N62: O23011605570000002023 | O62: 1 | P62: 1026271323 | Q62: CAMILO ALBERTO PARDO VERGARA | R62: PERSONA NATURAL | T62: NO APLICA | U62: NO APLICA | W62: 36112000 | Y62: 1 | Z62: 13542001 | AA62: 49654001 | AB62: 46795133 | AC62: 2023-01-18 | AD62: 2023-01-20 | AE62: 2023-12-19 | AF62: NA | AG62: 1 | AH62: 90 | AI62: N/A | AJ62: N/A | AK62: N/A | AM62: TERMINADO | AN62: 0.9424242167
A63: FDLC-CPS-050-2023 | B63: 2023 | C63: FDLC-CPS-050-2023 | D63: https://community.secop.gov.co/Public/Tendering/OpportunityDetail/Index?noticeUID=CO1.NTC.3790008&isFromPublicArea=True&isModal=true&asPopupView=true | E63: Contrato de Prestación de Servicios Profesionales y de Apoyo a la gestión | F63: CONTRATACION DIRECTA | G63: No aplica | H63: PRESTAR SERVICIOS ASISTENCIALES AL ÁREA DE GESTIÓN DE DESARROLLO LOCAL EN LOS PROCESOS RELACIONADOS CON LAS ACTIVIDADES DE GESTION ADMINISTRATIVA DE LA ALCALDÍA LOCAL DE LA CANDELARIA | I63: INVERSION | N63: O23011605570000002021 | O63: 1 | P63: 52709184 | Q63: LUZ ANGELA ORTIZ SANTOS | R63: PERSONA NATURAL | T63: NO APLICA | U63: NO APLICA | W63: 26400000 | Y63: N/A | Z63: 0 | AA63: 26400000 | AB63: 24000000 | AC63: 2023-01-20 | AD63: 2023-01-31 | AE63: 2023-12-30 | AF63: 330 | AG63: N/A | AH63: N/A | AI63: N/A | AJ63: N/A | AK63: N/A | AM63: TERMINADO | AN63: 0.9090909091
A64: FDLC-CPS-051-2023 | B64: 2023 | C64: FDLC-CPS-051-2023 | D64: https://community.secop.gov.co/Public/Tendering/OpportunityDetail/Index?noticeUID=CO1.NTC.3790304&isFromPublicArea=True&isModal=true&asPopupView=true | E64: Contrato de Prestación de Servicios Profesionales y de Apoyo a la gestión | F64: CONTRATACION DIRECTA | G64: No aplica | H64: PRESTAR SERVICIOS PROFESIONALES EN LA PLANEACIÓN Y SEGUIMIENTO DE LOS PROYECTOS CULTURALES ARTÍSTICOS Y PATRIMONIALES DE LA ENTIDAD Y DEMÁS ASIGNADOS POR EL ÁREA DE GESTIÓN DEL DESARROLLO LOCAL PARA EL CUMPLIMIENTO DE LAS METAS DEL PLAN DE DESARROLLO LOCAL 20212024 | I64: INVERSION | N64: O23011601210000001625 | O64: 1 | P64: 1024462252 | Q64: HECTOR JULIO CEDANO MARTINEZ | R64: PERSONA NATURAL | T64: NO APLICA | U64: NO APLICA | W64: 30000000 | X64: 3333334 | Y64: N/A | Z64: 0 | AA64: 33333334 | AB64: 26666666 | AC64: 2023-01-18 | AD64: 2023-01-19 | AE64: 2023-06-26 | AF64: 180 | AG64: N/A | AH64: N/A | AI64: N/A | AJ64: N/A | AK64: N/A | AM64: TERMINADO | AN64: 0.799999964
A65: FDLC-CPS-052-2023 | B65: 2023 | C65: FDLC-CPS-052-2023 | D65: https://community.secop.gov.co/Public/Tendering/OpportunityDetail/Index?noticeUID=CO1.NTC.3791858&isFromPublicArea=True&isModal=true&asPopupView=true | E65: Contrato de Prestación de Servicios Profesionales y de Apoyo a la gestión | F65: CONTRATACION DIRECTA | G65: No aplica | H65: PRESTAR EL APOYO SECRETARIAL A LA JUNTA ADMINISTRADORA LOCAL | I65: INVERSION | N65: O23011605570000002021 | O65: 1 | P65: 51879946 | Q65: ISABEL CRISTINA BULLA RODRIGUEZ | R65: PERSONA NATURAL | T65: NO APLICA | U65: NO APLICA | W65: 29700000 | Y65: 2 | Z65: 5400002 | AA65: 35100002 | AB65: 28080000 | AC65: 2023-01-19 | AD65: 2023-01-19 | AE65: 2024-02-18 | AF65: 330 | AG65: 2 | AH65: 30 | AI65: N/A | AJ65: N/A | AK65: N/A | AM65: TERMINADO | AN65: 0.7999999544
A66: FDLC-CPS-053-2023 | B66: 2023 | C66: FDLC-CPS-053-2023 | D66: https://community.secop.gov.co/Public/Tendering/OpportunityDetail/Index?noticeUID=CO1.NTC.3792042&isFromPublicArea=True&isModal=true&asPopupView=true | E66: Contrato de Prestación de Servicios Profesionales y de Apoyo a la gestión | F66: CONTRATACION DIRECTA | G66: No aplica | H66: PRESTAR SERVICIOS PROFESIONALES AL FONDO DE DESARROLLO LOCAL DE LA CANDELARIA PARA LA PLANEACIÓN FORMULACIÓN YSEGUIMIENTO DE PLANES POLITICAS PROGRAMAS Y PROYECTOS DE INVERSIÓN RELACIONADOS CON EDUCACIÓN Y DEMÁS ASIGNADOS POR EL ÁREA DE GESTIÓN DEL DESARROLLO LOCAL PARA EL CUMPLIMIENTO DE LAS METAS DEL PLAN DE DESARROLLO LOCAL 20212024 | I66: INVERSION | N66: O23011601170000001607 | O66: 1 | P66: 41648295 | Q66: ISABEL SANCHEZ RODRIGUEZ | R66: PERSONA NATURAL | T66: NO APLICA | U66: NO APLICA | W66: 40000000 | Y66: N/A | Z66: 0 | AA66: 40000000 | AB66: 26333333 | AC66: 2023-01-18 | AD66: 2023-01-19 | AE66: 2023-06-26 | AF66: 240 | AG66: N/A | AH66: N/A | AI66: N/A | AJ66: N/A | AK66: N/A | AM66: TERMINADO | AN66: 0.658333325
A67: FDLC-CPS-054-2023 | B67: 2023 | C67: FDLC-CPS-054-2023 | D67: https://community.secop.gov.co/Public/Tendering/OpportunityDetail/Index?noticeUID=CO1.NTC.3793699&isFromPublicArea=True&isModal=true&asPopupView=true | E67: Contrato de Prestación de Servicios Profesionales y de Apoyo a la gestión | F67: CONTRATACION DIRECTA | G67: No aplica | H67: PRESTAR SERVICIOS DE APOYO EN LAS ACTIVIDADES DE SEGURIDAD Y CONVIVENCIA CIUDADANA DE ACUERDO A LAS NECESIDADES Y ESTRATEGIAS DE LA ALCALDIA LOCAL DE LA CANDELARIA | I67: INVERSION | N67: O23011605570000002021 | O67: 1 | P67: 78698367 | Q67: FELIPE RICARDO CAUSIL VIDAL | R67: PERSONA NATURAL | T67: NO APLICA | U67: NO APLICA | W67: 20680000 | Y67: 1 | Z67: 1880001 | AA67: =+W67+X67+Z67 -> 22560001 | AB67: 19288667 | AC67: 2023-01-18 | AD67: 2023-01-24 | AE67: 2024-01-23 | AF67: 330 | AG67: 1 | AH67: 30 | AI67: 79914457 | AJ67: CESION DE TARCISIO TORO ZAMBRANO | AK67: 2023-02-21 | AM67: TERMINADO | AN67: 0.8549940667
A68: FDLC-CPS-055-2023 | B68: 2023 | C68: FDLC-CPS-055-2023 | D68: https://community.secop.gov.co/Public/Tendering/OpportunityDetail/Index?noticeUID=CO1.NTC.3793939&isFromPublicArea=True&isModal=true&asPopupView=true | E68: Contrato de Prestación de Servicios Profesionales y de Apoyo a la gestión | F68: CONTRATACION DIRECTA | G68: No aplica | H68: PRESTAR SERVICIOS DE APOYO EN LAS ACTIVIDADES DE SEGURIDAD Y CONVIVENCIA CIUDADANA DE ACUERDO A LAS NECESIDADES Y ESTRATEGIAS DE LA ALCALDIA LOCAL DE LA CANDELARIA | I68: INVERSION | N68: O23011605570000002021 | O68: 1 | P68: 52060667 | Q68: NELLY CONTRERAS ROJAS | R68: PERSONA NATURAL | T68: NO APLICA | U68: NO APLICA | W68: 20680000 | Y68: 2 | Z68: 10340002 | AA68: 31020002 | AB68: 19238667 | AC68: 2023-01-19 | AD68: 2023-01-24 | AE68: 2024-06-08 | AF68: 330 | AG68: 2 | AH68: 165 | AI68: N/A | AJ68: N/A | AK68: N/A | AM68: EJECUCION | AN68: 0.620201991
A69: FDLC-CPS-056-2023 | B69: 2023 | C69: FDLC-CPS-056-2023 | D69: https://community.secop.gov.co/Public/Tendering/OpportunityDetail/Index?noticeUID=CO1.NTC.3912831&isFromPublicArea=True&isModal=true&asPopupView=true | E69: Contrato de Prestación de Servicios Profesionales y de Apoyo a la gestión | F69: CONTRATACION DIRECTA | G69: No aplica | H69: PRESTAR SERVICIOS ASISTENCIALES AL FONDO DE DESARROLLO LOCAL DE LA CANDELARIA EN LA ADMINISTRACIÓN DE LAS CASAS COMUNITARIAS DE LA LOCALIDAD DE CONFORMIDAD CON EL ACUERDO LOCAL 006 DE 2013 CONVIRTIÉNDOLAS EN EPICENTRO DE REVITALIZACIÓN DE MIPYMES Y EMPRENDIMIENTOS LOCALES | I69: INVERSION | N69: O23011601060000001628 | O69: 1 | P69: 79889820 | Q69: DREZZSSHER NOTCREHJVISCH BHAWKT ORTIZ | R69: PERSONA NATURAL | T69: NO APLICA | U69: NO APLICA | W69: 29700000 | Y69: N/A | Z69: 0 | AA69: 29700000 | AB69: 26820000 | AC69: 2023-02-02 | AD69: 2023-02-03 | AE69: 2023-12-31 | AF69: 330 | AG69: N/A | AH69: N/A | AI69: N/A | AJ69: N/A | AK69: N/A | AM69: TERMINADO | AN69: 0.903030303
A70: FDLC-CPS-057-2023 | B70: 2023 | C70: FDLC-CPS-057-2023 | D70: https://community.secop.gov.co/Public/Tendering/OpportunityDetail/Index?noticeUID=CO1.NTC.3793857&isFromPublicArea=True&isModal=true&asPopupView=true | E70: Contrato de Prestación de Servicios Profesionales y de Apoyo a la gestión | F70: CONTRATACION DIRECTA | G70: No aplica | H70: PRESTAR SERVICIOS DE APOYO EN LAS ACTIVIDADES DEPROTECCIÓN CUIDADO Y CONSERVACIÓN DE LA MALLA VIAL COMOCOMPONENTE PATRIMONIAL DE LA CANDELARIA | I70: INVERSION | N70: O23011604490000002020 | O70: 1 | P70: 65788328 | Q70: EMPERATRIZ GONZALEZ PALENCIA | R70: PERSONA NATURAL | T70: NO APLICA | U70: NO APLICA | W70: 9250000 | Y70: N/A | Z70: 0 | AA70: 9250000 | AB70: 9250000 | AC70: 2023-01-19 | AD70: 2023-01-19 | AE70: 2023-06-18 | AF70: 150 | AG70: N/A | AH70: N/A | AI70: N/A | AJ70: N/A | AK70: N/A | AM70: TERMINADO | AN70: 1
A71: FDLC-CPS-058-2023 | B71: 2023 | C71: FDLC-CPS-058-2023 | D71: https://community.secop.gov.co/Public/Tendering/OpportunityDetail/Index?noticeUID=CO1.NTC.3799243&isFromPublicArea=True&isModal=true&asPopupView=true | E71: Contrato de Prestación de Servicios Profesionales y de Apoyo a la gestión | F71: CONTRATACION DIRECTA | G71: No aplica | H71: PRESTAR SERVICIOS DE APOYO EN LAS ACTIVIDADES DE SEGURIDAD Y CONVIVENCIA CIUDADANA DE ACUERDO A LAS NECESIDADES Y ESTRATEGIAS DE LA ALCALDIA LOCAL DE LA CANDELARIA | I71: INVERSION | N71: O23011605570000002021 | O71: 1 | P71: 1010195489 | Q71: SERGIO ANDRES SANABRIA VALENCIA | R71: PERSONA NATURAL | T71: NO APLICA | U71: NO APLICA | W71: 20680000 | Y71: N/A | Z71: 0 | AA71: 20680000 | AB71: 19238667 | AC71: 2023-01-19 | AD71: 2023-01-24 | AE71: 2023-12-23 | AF71: 330 | AG71: N/A | AH71: N/A | AI71: N/A | AJ71: N/A | AK71: N/A | AM71: TERMINADO | AN71: 0.9303030464
A72: FDLC-CPS-059-2023 | B72: 2023 | C72: FDLC-CPS-059-2023 | D72: https://community.secop.gov.co/Public/Tendering/OpportunityDetail/Index?noticeUID=CO1.NTC.3799889&isFromPublicArea=True&isModal=true&asPopupView=true | E72: Contrato de Prestación de Servicios Profesionales y de Apoyo a la gestión | F72: CONTRATACION DIRECTA | G72: No aplica | H72: PRESTAR SERVICIOS DE APOYO EN LAS ACTIVIDADES DE SEGURIDAD Y CONVIVENCIA CIUDADANA DE ACUERDO A LAS NECESIDADES Y ESTRATEGIAS DE LA ALCALDIA LOCAL DE LA CANDELARIA | I72: INVERSION | N72: O23011605570000002021 | O72: 1 | P72: 1010236602 | Q72: IVAN FELIPE SIERRA SANCHEZ | R72: PERSONA NATURAL | T72: NO APLICA | U72: NO APLICA | W72: 20680000 | Y72: 2 | Z72: 10340002 | AA72: 31020002 | AB72: 19238667 | AC72: 2023-01-19 | AD72: 2023-01-24 | AE72: 2024-06-08 | AF72: 330 | AG72: 2 | AH72: 165 | AI72: N/A | AJ72: N/A | AK72: N/A | AM72: EJECUCION | AN72: 0.620201991
A73: FDLC-CPS-060-2023 | B73: 2023 | C73: FDLC-CPS-060-2023 | D73: https://community.secop.gov.co/Public/Tendering/OpportunityDetail/Index?noticeUID=CO1.NTC.3800466&isFromPublicArea=True&isModal=true&asPopupView=true | E73: Contrato de Prestación de Servicios Profesionales y de Apoyo a la gestión | F73: CONTRATACION DIRECTA | G73: No aplica | H73: PRESTAR SERVICIOS PROFESIONALES AL FONDO DE DESARROLLO LOCAL DE LA CANDELARIA PARA APOYAR EN LA PLANEACIÓN FORMULACIÓN VALUACIÓN Y SEGUIMIENTO DE LOS PROYECTOS SOCIALES Y DE SALUD EN LA LOCALIDAD PARA EL CUMPLIMIENTO DE LAS METAS DEL PLAN DE DESARROLLO LOCAL 20212024 | I73: INVERSION | N73: O23011601060000001664 | O73: 1 | P73: 1010190450 | Q73: VIVIANA LIZETH MONROY RAMIREZ | R73: PERSONA NATURAL | T73: NO APLICA | U73: NO APLICA | W73: 55000000 | Y73: 2 | Z73: 27500002 | AA73: 82500002 | AB73: 51833333 | AC73: 2023-01-19 | AD73: 2023-01-20 | AE73: 2024-06-04 | AF73: 330 | AG73: 2 | AH73: 165 | AI73: N/A | AJ73: N/A | AK73: N/A | AM73: EJECUCION | AN73: 0.628282809
A74: FDLC-CPS-061-2023 | B74: 2023 | C74: FDLC-CPS-061-2023 | D74: https://community.secop.gov.co/Public/Tendering/OpportunityDetail/Index?noticeUID=CO1.NTC.3801661&isFromPublicArea=True&isModal=true&asPopupView=true | E74: Contrato de Prestación de Servicios Profesionales y de Apoyo a la gestión | F74: CONTRATACION DIRECTA | G74: No aplica | H74: PRESTAR SERVICIOS PROFESIONALES PARA APOYAR EN LA PLANEACIÓN FORMULACIÓN EVALUACIÓN ARTICULACIÓN ACOMPAÑAMIENTO Y SEGUIMIENTO DEL PROYECTO DE INVERSIÓN 1777 LA CANDELARIA TERRITORIO DE PAZ Y RECONCILIACIÓN | I74: INVERSION | N74: O23011603390000001777 | O74: 1 | P74: 1026278853 | Q74: LEIDY TATIANA BERMUDEZ BARRIOS | R74: PERSONA NATURAL | T74: NO APLICA | U74: NO APLICA | W74: 36000000 | Y74: 2 | Z74: 18000002 | AA74: 54000002 | AB74: 54000000 | AC74: 2023-01-19 | AD74: 2023-01-24 | AE74: 2023-10-23 | AF74: 180 | AG74: 2 | AH74: 90 | AI74: 1020713269 | AJ74: CESION DE NICOLAS FERNANDEZ DE SOTO CAMACHO | AK74: 2023-06-08 | AM74: TERMINADO | AN74: 0.999999963
A75: FDLC-CPS-062-2023 | B75: 2023 | C75: FDLC-CPS-062-2023 | D75: https://community.secop.gov.co/Public/Tendering/OpportunityDetail/Index?noticeUID=CO1.NTC.3793729&isFromPublicArea=True&isModal=true&asPopupView=true | E75: Contrato de Prestación de Servicios Profesionales y de Apoyo a la gestión | F75: CONTRATACION DIRECTA | G75: No aplica | H75: PRESTAR SERVICIOS DE APOYO EN LAS ACTIVIDADES DE SEGURIDAD Y CONVIVENCIA CIUDADANA DE ACUERDO A LAS NECESIDADES Y ESTRATEGIAS DE LA ALCALDÍA LOCAL DE LA CANDELARIA | I75: INVERSION | N75: O23011605570000002021 | O75: 1 | P75: 24344028 | Q75: JULY ANDREA MONTAÑO PEÑA | R75: PERSONA NATURAL | T75: NO APLICA | U75: NO APLICA | W75: 20680000 | Y75: 2 | Z75: 10340002 | AA75: 31020002 | AB75: 19489333 | AC75: 2023-01-18 | AD75: 2023-01-20 | AE75: 2024-06-04 | AF75: 330 | AG75: 2 | AH75: 165 | AI75: N/A | AJ75: N/A | AK75: N/A | AM75: EJECUCION | AN75: 0.628282777
A76: FDLC-CPS-063-2023 | B76: 2023 | C76: FDLC-CPS-063-2023 | D76: https://community.secop.gov.co/Public/Tendering/OpportunityDetail/Index?noticeUID=CO1.NTC.3838806&isFromPublicArea=True&isModal=true&asPopupView=true | E76: Contrato de Prestación de Servicios Profesionales y de Apoyo a la gestión | F76: CONTRATACION DIRECTA | G76: No aplica | H76: PRESTAR SERVICIOS PROFESIONALES AL FONDO DE DESARROLLO LOCAL DE LA CANDELARIA EN LA ADMINISTRACIÓN DE LAS CASAS COMUNITARIAS DE LA LOCALIDAD DE LA CANDELARIA DE CONFORMIDAD CON EL ACUERDO LOCAL 006 DE 2013 | I76: INVERSION | N76: O23011605570000002021 | O76: 1 | P76: 32729605 | Q76: DERLY EFIGENIA LENIS MARTINEZ | R76: PERSONA NATURAL | T76: NO APLICA | U76: NO APLICA | W76: 36112000 | Y76: 1 | Z76: 4514001 | AA76: =+W76+X76+Z76 -> 40626001 | AB76: 40626000 | AC76: 2023-01-27 | AD76: 2023-01-31 | AE76: 2023-10-30 | AF76: 240 | AG76: 1 | AH76: 30 | AI76: 52856969 | AJ76: CESION DE INGRID ELIANA PARRA CAMARGO | AK76: 2023-05-15 | AM76: TERMINADO | AN76: 0.9999999754
A77: FDLC-CPS-064-2023 | B77: 2023 | C77: FDLC-CPS-064-2023 | D77: https://community.secop.gov.co/Public/Tendering/OpportunityDetail/Index?noticeUID=CO1.NTC.3838713&isFromPublicArea=True&isModal=true&asPopupView=true | E77: Contrato de Prestación de Servicios Profesionales y de Apoyo a la gestión | F77: CONTRATACION DIRECTA | G77: No aplica | H77: PRESTAR SERVICIOS PROFESIONALES AL ÁREA DE GESTIÓN DE DESARROLLO LOCAL DE LA ALCALDÍA LOCAL PARA LA IMPLEMENTACIÓN EJECUCIÓN Y SEGUIMIENTO DE LAS POLÍTICAS PROGRAMAS PLANES Y PROYECTOS RELACIONADOS CON EL DESARROLLO ECONÓMICO DE LAS EMPRESAS Y EMPRENDIMIENTOS CULTURALES Y CREATIVOS DE LA LOCALIDAD | I77: INVERSION | N77: O23011601060000001628 | O77: 1 | P77: 22668487 | Q77: ANA KAREN MIRANDA HERNANDEZ | R77: PERSONA NATURAL | T77: NO APLICA | U77: NO APLICA | W77: 66000000 | Y77: N/A | Z77: 0 | AA77: 66000000 | AB77: 60000000 | AC77: 2023-01-27 | AD77: 2023-01-31 | AE77: 2023-12-30 | AF77: 330 | AG77: N/A | AH77: N/A | AI77: N/A | AJ77: N/A | AK77: N/A | AM77: TERMINADO | AN77: 0.9090909091
A78: FDLC-CPS-065-2023 | B78: 2023 | C78: FDLC-CPS-065-2023 | D78: https://community.secop.gov.co/Public/Tendering/OpportunityDetail/Index?noticeUID=CO1.NTC.3860839&isFromPublicArea=True&isModal=true&asPopupView=true | E78: Contrato de Prestación de Servicios Profesionales y de Apoyo a la gestión | F78: CONTRATACION DIRECTA | G78: No aplica | H78: PRESTAR SERVICIOS PROFESIONALES AL FONDO DE DESARROLLO LOCAL DE LA CANDELARIA PARA LA PLANEACIÓN FORMULACIÓN EVALUACIÓN ARTICULACIÓN ACOMPAÑAMIENTO Y SEGUIMIENTO DE LOS PROYECTOS DE INVERSIÓN DE EDUCACIÓN INICIAL Y DE LOS DEMÁS QUE LE SEAN DESIGNADOS PARA EL CUMPLIMIENTO DEL PLAN DE DESARROLLO LOCAL | I78: INVERSION | N78: O23011601120000001608 | O78: 1 | P78: 1024570825 | Q78: GERALDINE NUÑEZ MONROY | R78: PERSONA NATURAL | T78: NO APLICA | U78: NO APLICA | W78: 27084000 | X78: -4965400 | Y78: N/A | Z78: 0 | AA78: 22118600 | AB78: 22118600 | AC78: 2023-01-27 | AD78: 2023-01-31 | AE78: 2023-06-27 | AF78: 180 | AG78: N/A | AH78: N/A | AI78: N/A | AJ78: N/A | AK78: N/A | AM78: TERMINADO | AN78: 1
A79: FDLC-CPS-066-2023 | B79: 2023 | C79: FDLC-CPS-066-2023 | D79: https://community.secop.gov.co/Public/Tendering/OpportunityDetail/Index?noticeUID=CO1.NTC.3846369&isFromPublicArea=True&isModal=true&asPopupView=true | E79: Contrato de Prestación de Servicios Profesionales y de Apoyo a la gestión | F79: CONTRATACION DIRECTA | G79: No aplica | H79: PRESTAR SERVICIOS DE APOYO EN LAS ACTIVIDADES DE SEGURIDAD Y CONVIVENCIA CIUDADANA DE ACUERDO A LAS NECESIDADES Y ESTRATEGIAS DE LA ALCALDÍA LOCAL DE LA CANDELARIA | I79: INVERSION | N79: O23011605570000002021 | O79: 1 | P79: 70528247 | Q79: MIGUEL TORRES REYES | R79: PERSONA NATURAL | T79: NO APLICA | U79: NO APLICA | W79: 20680000 | Y79: 2 | Z79: 10340002 | AA79: 31020002 | AB79: 19113333 | AC79: 2023-01-25 | AD79: 2023-01-26 | AE79: 2024-06-10 | AF79: 330 | AG79: 2 | AH79: 165 | AI79: N/A | AJ79: N/A | AK79: N/A | AM79: EJECUCION | AN79: 0.6161615657
A80: FDLC-CPS-067-2023 | B80: 2023 | C80: FDLC-CPS-067-2023 | D80: https://community.secop.gov.co/Public/Tendering/OpportunityDetail/Index?noticeUID=CO1.NTC.3806363&isFromPublicArea=True&isModal=False | E80: Contrato de Prestación de Servicios Profesionales y de Apoyo a la gestión | F80: CONTRATACION DIRECTA | G80: No aplica | H80: PRESTAR SERVICIOS DE APOYO TÉCNICO EN LAS DISTINTAS ETAPASDE LOS PROCESOS CONTRACTUALES Y PARA BRINDARACOMPAÑAMIENTO Y SEGUIMIENTO EN LA IMPLEMENTACIÓN DELSISTEMA DE GESTIÓN DE SEGURIDAD Y SALUD EN EL TRABAJO DE LAALCALDÍA LOCAL DE LA CANDELARIA | I80: INVERSION | N80: O23011605570000002021 | O80: 1 | P80: 1010203707 | Q80: MICHAEL FELIPE RAMIREZ GRACIA | R80: PERSONA NATURAL | T80: NO APLICA | U80: NO APLICA | W80: 44000000 | Y80: 2 | Z80: 22000002 | AA80: 66000002 | AB80: 41466667 | AC80: 2023-01-20 | AD80: 2023-01-20 | AE80: 2024-06-04 | AF80: 330 | AG80: 2 | AH80: 165 | AI80: N/A | AJ80: N/A | AK80: N/A | AM80: EJECUCION | AN80: =IF(ISERROR(AB80/AA80),"-",(AB80/AA80)) -> 0.6282828143
A81: FDLC-CPS-068-2023 | B81: 2023 | C81: FDLC-CPS-068-2023 | D81: https://community.secop.gov.co/Public/Tendering/OpportunityDetail/Index?noticeUID=CO1.NTC.3806800&isFromPublicArea=True&isModal=true&asPopupView=true | E81: Contrato de Prestación de Servicios Profesionales y de Apoyo a la gestión | F81: CONTRATACION DIRECTA | G81: No aplica | H81: PRESTAR SERVICIOS DE APOYO ADMINISTRATIVO Y ASISTENCIAL AL ÁRA DE GESTIÓN POLICIVA DE LA ALCALDÍA LOCAL DE LA CANDELARIA EN LAS LABORES OPERATIVAS DE IMPULSO DE LAS ACTUACIONES ADMINISTRATIVAS | I81: INVERSION | N81: O23011605570000002023 | O81: 1 | P81: 49729700 | Q81: NEREIDA HERNANDEZ FLOREZ | R81: PERSONA NATURAL | T81: NO APLICA | U81: NO APLICA | W81: 29700000 | Y81: 2 | Z81: 5400002 | AA81: 35100002 | AB81: 27630000 | AC81: 2023-01-20 | AD81: 2023-01-24 | AE81: 2024-02-24 | AF81: 330 | AG81: 2 | AH81: 60 | AI81: N/A | AJ81: N/A | AK81: N/A | AM81: EJECUCION | AN81: 0.7871794423
A82: FDLC-CPS-069-2023 | B82: 2023 | C82: FDLC-CPS-069-2023 | D82: https://community.secop.gov.co/Public/Tendering/OpportunityDetail/Index?noticeUID=CO1.NTC.3811594&isFromPublicArea=True&isModal=true&asPopupView=true | E82: Contrato de Prestación de Servicios Profesionales y de Apoyo a la gestión | F82: CONTRATACION DIRECTA | G82: No aplica | H82: PRESTAR SERVICIOS PROFESIONALES PARA APOYAR JURÍDICAMENTE EL CUMPLIMIENTO DE LAS COMISIONES JUDICIALES ORDENADAS AL ALCALDESA LOCAL ASÍ COMO LA ATENCIÓN DE PETICIONES REQUERIMIENTOS Y ACCIONES CONSTITUCIONALES ORIGINADAS EN EL TRÁMITE DE DESPACHOS COMISORIOS | I82: INVERSION | N82: O23011605570000002023 | O82: 1 | P82: 1026566529 | Q82: LINDA ALEXA PAOLA PRIETO GARZON | R82: PERSONA NATURAL | T82: NO APLICA | U82: NO APLICA | W82: 55000000 | Y82: 1 | Z82: 2333334 | AA82: 57333334 | AB82: 51166667 | AC82: 2023-01-20 | AD82: 2023-01-24 | AE82: 2024-01-06 | AF82: 330 | AG82: 1 | AH82: 14 | AI82: N/A | AJ82: N/A | AK82: N/A | AM82: TERMINADO | AN82: 0.8924418559
A83: FDLC-CPS-070-2023 | B83: 2023 | C83: FDLC-CPS-070-2023 | D83: https://community.secop.gov.co/Public/Tendering/OpportunityDetail/Index?noticeUID=CO1.NTC.3812125&isFromPublicArea=True&isModal=true&asPopupView=true | E83: Contrato de Prestación de Servicios Profesionales y de Apoyo a la gestión | F83: CONTRATACION DIRECTA | G83: No aplica | H83: PRESTAR SERVICIOS PROFESIONALES PARA APOYAR TÉCNICAMENTE LAS DISTINTAS ETAPAS DE LOS PROCESOS DE COMPETENCIA DE LAALCALDÍA LOCAL PARA LA DEPURACIÓN DE ACTUACIONES ADMINITRATIVAS | I83: INVERSION | N83: O23011605570000002023 | O83: 1 | P83: 79507928 | Q83: FRANCISCO JAVIER HIGUERA NOVA | R83: PERSONA NATURAL | T83: NO APLICA | U83: NO APLICA | W83: 60500000 | Y83: N/A | Z83: 0 | AA83: 60500000 | AB83: 56283333 | AC83: 2023-01-20 | AD83: 2023-01-24 | AE83: 2023-12-23 | AF83: 330 | AG83: N/A | AH83: N/A | AI83: N/A | AJ83: N/A | AK83: N/A | AM83: TERMINADO | AN83: 0.9303030248
A84: FDLC-CPS-071-2023 | B84: 2023 | C84: FDLC-CPS-071-2023 | D84: https://community.secop.gov.co/Public/Tendering/OpportunityDetail/Index?noticeUID=CO1.NTC.3811638&isFromPublicArea=True&isModal=true&asPopupView=true | E84: Contrato de Prestación de Servicios Profesionales y de Apoyo a la gestión | F84: CONTRATACION DIRECTA | G84: No aplica | H84: PRESTAR SERVICIOS PROFESIONALES PARA APOYARJURÍDICAMENTE LA EJECUCIÓN DE LAS ACCIONES REQUERIDASPARA EL TRÁMITE E IMPULSO PROCESAL DE LAS ACTUACIONESCONTRAVENCIONALES YO QUERELLAS QUE CURSEN EN LASINSPECCIONES DE POLICÍA DE LA LOCALIDAD DE LA CANDELARIA | I84: INVERSION | N84: O23011605570000002023 | O84: 1 | P84: 1018430013 | Q84: DIANA MARGARITA MONJE CARDENAS | R84: PERSONA NATURAL | T84: NO APLICA | U84: NO APLICA | W84: 60500000 | Y84: 2 | Z84: 30250002 | AA84: =+W84+X84+Z84 -> 90750002 | AB84: 55916667 | AC84: 2023-01-20 | AD84: 2023-01-26 | AE84: 2024-06-10 | AF84: 330 | AG84: 2 | AH84: 165 | AI84: N/A | AJ84: N/A | AK84: N/A | AM84: EJECUCION | AN84: 0.6161616063
A85: FDLC-CPS-072-2023 | B85: 2023 | C85: FDLC-CPS-072-2023 | D85: https://community.secop.gov.co/Public/Tendering/OpportunityDetail/Index?noticeUID=CO1.NTC.3812116&isFromPublicArea=True&isModal=true&asPopupView=true | E85: Contrato de Prestación de Servicios Profesionales y de Apoyo a la gestión | F85: CONTRATACION DIRECTA | G85: No aplica | H85: PRESTAR SERVICIOS PROFESIONALES AL FONDO DE DESARROLLO LOCAL DE LA CANDELARIA PARA APOYAR LA GESTION DE LOS ASUNTOS RELACIONADOS CON LA DESTINACIÓN DEL ESPACIO PÚBLICO SEGURIDAD CIUDADANA Y CONVIVENCIA EN LA LOCALIDAD | I85: INVERSION | N85: O23011605570000002021 | O85: 1 | P85: 11801160 | Q85: JIMMY ORLANDO CORDOBA VIVEROS | R85: PERSONA NATURAL | T85: NO APLICA | U85: NO APLICA | W85: 36000000 | X85: -5400000 | Y85: N/A | Z85: 0 | AA85: 30600000 | AB85: 30600000 | AC85: 2023-01-20 | AD85: 2023-01-24 | AE85: 2023-06-26 | AF85: 180 | AG85: N/A | AH85: N/A | AI85: N/A | AJ85: N/A | AK85: N/A | AM85: TERMINADO | AN85: 1
A86: FDLC-CPS-073-2023 | B86: 2023 | C86: FDLC-CPS-073-2023 | D86: https://community.secop.gov.co/Public/Tendering/OpportunityDetail/Index?noticeUID=CO1.NTC.3845378&isFromPublicArea=True&isModal=true&asPopupView=true | E86: Contrato de Prestación de Servicios Profesionales y de Apoyo a la gestión | F86: CONTRATACION DIRECTA | G86: No aplica | H86: PRESTAR APOYO ADMINISTRATIVO Y DE COMUNICACIONES A LA JUNTA ADMINISTRADORA LOCAL DE LA CANDELARIA | I86: INVERSION | N86: O23011605570000002021 | O86: 1 | P86: 1015403410 | Q86: ALVARO JAVIER SIERRA SANTOS | R86: PERSONA NATURAL | T86: NO APLICA | U86: NO APLICA | W86: 33000000 | Y86: N/A | Z86: 0 | AA86: =+W86+X86+Z86 -> 33000000 | AB86: 30500000 | AC86: 2023-01-25 | AD86: 2023-01-26 | AE86: 2023-12-25 | AF86: 330 | AG86: N/A | AH86: N/A | AI86: N/A | AJ86: N/A | AK86: N/A | AM86: TERMINADO | AN86: 0.9242424242
A87: FDLC-CPS-074-2023 | B87: 2023 | C87: FDLC-CPS-074-2023 | D87: https://community.secop.gov.co/Public/Tendering/OpportunityDetail/Index?noticeUID=CO1.NTC.3845739&isFromPublicArea=True&isModal=true&asPopupView=true | E87: Contrato de Prestación de Servicios Profesionales y de Apoyo a la gestión | F87: CONTRATACION DIRECTA | G87: No aplica | H87: PRESTAR SERVICIOS PROFESIONALES AL FONDO DE DESARROLLO LOCAL DE LA CANDELARIA EN LA PLANEACIÓN SEGUIMIENTO Y EJECUCIÓN DE LAS ACTIVIDADES AMBIENTALES EN CUMPLIMIENTO DE LAS METAS DEL PLAN DE DESARROLLO LOCAL | I87: INVERSION | N87: O23011605570000002021 | O87: 1 | P87: 92642179 | Q87: ALEX ALBERTO ARRIETA VILLABA | R87: PERSONA NATURAL | T87: NO APLICA | U87: NO APLICA | W87: 55000000 | Y87: N/A | Z87: 0 | AA87: 55000000 | AB87: 50833333 | AC87: 2023-01-25 | AD87: 2023-01-26 | AE87: 2023-12-25 | AF87: 330 | AG87: N/A | AH87: N/A | AI87: N/A | AJ87: N/A | AK87: N/A | AM87: TERMINADO | AN87: 0.9242424182
A88: FDLC-CPS-075-2023 | B88: 2023 | C88: FDLC-CPS-075-2023 | D88: https://community.secop.gov.co/Public/Tendering/OpportunityDetail/Index?noticeUID=CO1.NTC.3846113&isFromPublicArea=True&isModal=true&asPopupView=true | E88: Contrato de Prestación de Servicios Profesionales y de Apoyo a la gestión | F88: CONTRATACION DIRECTA | G88: No aplica | H88: APOYAR LA FORMULACIÓN GESTIÓN Y SEGUIMIENTO DE ACTIVIDADES ENFOCADAS A LA GESTIÓN AMBIENTAL EXTERNA ENCAMINADAS A LA MITIGACIÓN DE LOS DIFERENTES IMPACTOS AMBIENTALES Y LA CONSERVACIÓN DE LOS RECURSOS NATURALES DE LA LOCALIDAD | I88: INVERSION | N88: O23011602380000001705 | O88: 1 | P88: 1024482565 | Q88: SANDRA MILENA SANCHEZ GAMBA | R88: PERSONA NATURAL | T88: NO APLICA | U88: NO APLICA | W88: 77000000 | Y88: 1 | Z88: 5133334 | AA88: 82133334 | AB88: 71166667 | AC88: 2023-01-25 | AD88: 2023-01-26 | AE88: 2024-01-17 | AF88: 330 | AG88: 1 | AH88: 23 | AI88: N/A | AJ88: N/A | AK88: N/A | AM88: TERMINADO | AN88: 0.8664772698
A89: FDLC-CPS-076-2023 | B89: 2023 | C89: FDLC-CPS-076-2023 | D89: https://community.secop.gov.co/Public/Tendering/OpportunityDetail/Index?noticeUID=CO1.NTC.3846126&isFromPublicArea=True&isModal=true&asPopupView=true | E89: Contrato de Prestación de Servicios Profesionales y de Apoyo a la gestión | F89: CONTRATACION DIRECTA | G89: No aplica | H89: PRESTACIÓN DE SERVICIOS PROFESIONALES AL FONDO DE DESARROLLO LOCAL DE LA CANDELARIA PARA APOYAR EL SEGUIMIENTO EJECUCIÓN Y VISUALIZACIÓN DE LA GESTIÓN RELACIONADOS CON LOS PROYECTOS DE MUJERES EQUIDAD DE GÉNERO VIOLENCIA INTRAFAMILIAR CUIDADORAS Y CUIDADORES | I89: INVERSION | N89: O23011601060000001663 | O89: 1 | P89: 1128063760 | Q89: JEAN SEBASTIAN SANMIGUEL GARZON | R89: PERSONA NATURAL | T89: NO APLICA | U89: NO APLICA | W89: 36112000 | Y89: 1 | Z89: 5717734 | AA89: =+W89+X89+Z89 -> 41829734 | AB89: 34306410 | AC89: 2023-01-27 | AD89: 2023-02-06 | AE89: 2023-11-13 | AF89: 240 | AG89: 1 | AH89: 38 | AI89: 1022415943 | AJ89: CESION DE LIZETH CAROLINA NARNAJO MOLINA | AK89: 2023-06-21 | AM89: TERMINADO | AN89: 0.8201441109
A90: FDLC-CPS-077-2023 | B90: 2023 | C90: FDLC-CPS-077-2023 | D90: https://community.secop.gov.co/Public/Tendering/OpportunityDetail/Index?noticeUID=CO1.NTC.3846147&isFromPublicArea=True&isModal=true&asPopupView=true | E90: Contrato de Prestación de Servicios Profesionales y de Apoyo a la gestión | F90: CONTRATACION DIRECTA | G90: No aplica | H90: PRESTAR SERVICIOS PROFESIONALES AL FONDO DE DESARROLLO LOCAL DE LA CANDELARIA PARA LA PLANEACIÓN FORMULACIÓN EVALUACIÓN ARTICULACIÓN ACOMPAÑAMIENTO Y SEGUIMIENTO DEL PROYECTO DE INVERSIÓN1662 LA CANDELARIA TERRITORIO LIBRE DE VIOLENCIA INTRAFAMILIAR Y SEXUAL Y DE LOS PROYECTOS CON ENFOQUE DE GÉNERO DEL PLAN DE DESARROLLO LOCAL | I90: INVERSION | N90: O23011601060000001662 | O90: 1 | P90: 52087456 | Q90: JUANITA SABOGAL SALGADO | R90: PERSONA NATURAL | T90: NO APLICA | U90: NO APLICA | W90: 30000000 | X90: -4833334 | Y90: N/A | Z90: 0 | AA90: 25166666 | AB90: 25166666 | AC90: 2023-01-25 | AD90: 2023-01-26 | AE90: 2023-06-26 | AF90: 180 | AG90: N/A | AH90: N/A | AI90: N/A | AJ90: N/A | AK90: N/A | AM90: TERMINADO | AN90: 1
A91: FDLC-CPS-078-2023 | B91: 2023 | C91: FDLC-CPS-078-2023 | D91: https://community.secop.gov.co/Public/Tendering/OpportunityDetail/Index?noticeUID=CO1.NTC.3839428&isFromPublicArea=True&isModal=true&asPopupView=true | E91: Contrato de Prestación de Servicios Profesionales y de Apoyo a la gestión | F91: CONTRATACION DIRECTA | G91: No aplica | H91: PRESTAR SERVICIOS PROFESIONALES PARA APOYAR AL FONDO DE DESARROLLO LOCAL DE LA CANDELARIA EN LA FORMULACIÓN IMPLEMENTACIÓN Y SEGUIMIENTO DE LAS POLITICAS PLANES PROGRAMAS PROYECTOS Y ACTIVIDADES ARTÍSTICAS CULTURALES Y MUSICALES DE COMPETENCIA DE LA ENTIDAD | I91: INVERSION | N91: O23011601210000001625 | O91: 1 | P91: 1015442287 | Q91: FABIO DAVID HERNANDEZ UMAÑA | R91: PERSONA NATURAL | T91: NO APLICA | U91: NO APLICA | W91: 66000000 | Y91: 1 | Z91: 3000001 | AA91: =+W91+X91+Z91 -> 69000001 | AB91: 55400000 | AC91: 2023-01-27 | AD91: 2023-01-27 | AE91: 2024-01-10 | AF91: 330 | AG91: 1 | AH91: 15 | AI91: 1010207254 | AJ91: CESION DE ELY DAVID MURILLO CORDOBA | AK91: 2023-04-28 | AM91: TERMINADO | AN91: 0.8028985391
A92: FDLC-CPS-079-2023 | B92: 2023 | C92: FDLC-CPS-079-2023 | D92: https://community.secop.gov.co/Public/Tendering/OpportunityDetail/Index?noticeUID=CO1.NTC.3867645&isFromPublicArea=True&isModal=true&asPopupView=true | E92: Contrato de Prestación de Servicios Profesionales y de Apoyo a la gestión | F92: CONTRATACION DIRECTA | G92: No aplica | H92: PRESTAR SERVICIOS PROFESIONALES PARA LA PLANEACIÓN IMPLEMENTACIÓN Y FORTALECIMIENTO DE PROYECTOS RELACIONADOS CON LAS ACTIVIDADES DEL TURISMO LOCAL A TRAVÉS DE LA GESTIÓN ARTICULACIÓN E INTERLOCUCIÓN CON CIUDADANÍA Y ENTIDADES PÚBLICAS Y PRIVADAS LAS EMPRESAS Y EMPRENDIMIENTOS CULTURALES Y CREATIVOS DE LA LOCALIDAD DE LA CANDELARIA | I92: INVERSION | N92: O23011601240000001627 | O92: 1 | P92: 11803256 | Q92: HAROLD GARCIA CHAVERRA | R92: PERSONA NATURAL | T92: NO APLICA | U92: NO APLICA | W92: 50000000 | Y92: N/A | Z92: 0 | AA92: 50000000 | AB92: 50000000 | AC92: 2023-01-27 | AD92: 2023-01-30 | AE92: 2023-11-29 | AF92: 300 | AG92: N/A | AH92: N/A | AI92: N/A | AJ92: N/A | AK92: N/A | AM92: TERMINADO | AN92: 1
A93: FDLC-CPS-080-2023 | B93: 2023 | C93: FDLC-CPS-080-2023 | D93: https://community.secop.gov.co/Public/Tendering/OpportunityDetail/Index?noticeUID=CO1.NTC.3839544&isFromPublicArea=True&isModal=true&asPopupView=true | E93: Contrato de Prestación de Servicios Profesionales y de Apoyo a la gestión | F93: CONTRATACION DIRECTA | G93: No aplica | H93: PRESTAR SERVICIOS ASISTENCIALES AL FONDO DE DESARROLLO LOCAL DE LA CANDELARIA PARA LA ADMINISTRACIÓN DE LAS CASAS COMUNITARIAS DE LA LOCALIDAD DE CONFORMIDAD CON EL ACUERDO LOCAL 006 DE 2013 TRANSFORMÁNDOLAS EN ESPACIOS DE APROPIACIÓN PARA LA ELIMINACIÓN DE TODAS LAS FORMAS DE VIOLENCIA EN LA CANDELARIA | I93: INVERSION | N93: O23011601060000001662 | O93: 1 | P93: 41503480 | Q93: AURA ALICIA ZAMBRANO LOPEZ | R93: PERSONA NATURAL | T93: NO APLICA | U93: NO APLICA | W93: 29975000 | Y93: N/A | Z93: 0 | AA93: 29975000 | AB93: 27340833 | AC93: 2023-01-27 | AD93: 2023-01-30 | AE93: 2023-12-29 | AF93: 330 | AG93: N/A | AH93: N/A | AI93: N/A | AJ93: N/A | AK93: N/A | AM93: TERMINADO | AN93: 0.912121201
A94: FDLC-CPS-081-2023 | B94: 2023 | C94: FDLC-CPS-081-2023 | D94: https://community.secop.gov.co/Public/Tendering/OpportunityDetail/Index?noticeUID=CO1.NTC.3867804&isFromPublicArea=True&isModal=true&asPopupView=true | E94: Contrato de Prestación de Servicios Profesionales y de Apoyo a la gestión | F94: CONTRATACION DIRECTA | G94: No aplica | H94: PRESTAR SERVICIOS PROFESIONALES DE SEGUIMIENTO ADMINISTRATIVO TÉCNICO OPERATIVO Y LOGÍSTICO A LOS CONTRATOS Y O CONVENIOS DEL SECTOR CULTURAL Y CREATIVO SEGÚN DESIGNACIÓN DEL ALCALDE SA LOCAL | I94: INVERSION | N94: O23011601240000001627 | O94: 1 | P94: 1019091360 | Q94: ANDRES FELIPE REYES DIAZ | R94: PERSONA NATURAL | T94: NO APLICA | U94: NO APLICA | W94: 30000000 | Y94: N/A | Z94: 0 | AA94: 30000000 | AB94: 29666667 | AC94: 2023-01-27 | AD94: 2023-02-03 | AE94: 2023-08-02 | AF94: 180 | AG94: N/A | AH94: N/A | AI94: N/A | AJ94: N/A | AK94: N/A | AM94: TERMINADO | AN94: 0.9888889
A95: FDLC-CPS-082-2023 | B95: 2023 | C95: FDLC-CPS-082-2023 | D95: https://community.secop.gov.co/Public/Tendering/OpportunityDetail/Index?noticeUID=CO1.NTC.3840683&isFromPublicArea=True&isModal=true&asPopupView=true | E95: Contrato de Prestación de Servicios Profesionales y de Apoyo a la gestión | F95: CONTRATACION DIRECTA | G95: No aplica | H95: PRESTAR SERVICIOS PROFESIONALES AL FONDO DE DESARROLLO LOCAL DE LA CANDELARIA PARA APOYAR EN LA FORMULACION PRESENTACIÓN EVALUACIÓN Y SEGUIMIENTO DE LOS PROYECTOS DE INVERSION EN LALOCALIDAD | I95: INVERSION | N95: O23011605570000002021 | O95: 1 | P95: 51881732 | Q95: NUBIA PRIETO ORTEGON | R95: PERSONA NATURAL | T95: NO APLICA | U95: NO APLICA | W95: 27084000 | Y95: 1 | Z95: 13090601 | AA95: 40174601 | AB95: 40174600 | AC95: 2023-01-27 | AD95: 2023-02-01 | AE95: 2023-10-27 | AF95: 180 | AG95: 1 | AH95: 87 | AI95: N/A | AJ95: N/A | AK95: N/A | AM95: TERMINADO | AN95: 0.9999999751
A96: FDLC-CPS-083-2023 | B96: 2023 | C96: FDLC-CPS-083-2023 | D96: https://community.secop.gov.co/Public/Tendering/OpportunityDetail/Index?noticeUID=CO1.NTC.3847638&isFromPublicArea=True&isModal=true&asPopupView=true | E96: Contrato de Prestación de Servicios Profesionales y de Apoyo a la gestión | F96: CONTRATACION DIRECTA | G96: No aplica | H96: PRESTAR SERVICIOS DE APOYO ADMINISTRATIVO Y ASISTENCIAL ENLA GESTIÓN DE LA ALCALDÍA LOCAL DE LA CANDELARIA EN ELTRÁMITE DE LOS COMPARENDOS Y QUERELLAS DE CONFORMIDADCON LA LEY 1801 DE 2016 | I96: INVERSION | N96: O23011605570000002023 | O96: 1 | P96: 1116774188 | Q96: ALFREDO EMILIO NAJAR MOJICA | R96: PERSONA NATURAL | T96: NO APLICA | U96: NO APLICA | W96: 29700000 | Y96: N/A | Z96: 0 | AA96: 29700000 | AB96: 25020000 | AC96: 2023-01-25 | AD96: 2023-01-27 | AE96: 2023-12-26 | AF96: 330 | AG96: N/A | AH96: N/A | AI96: 1022956077 | AJ96: CESION DE JARRY EMERSON RIAÑO DELGADO | AK96: 2023-04-27 | AM96: TERMINADO | AN96: 0.8424242424
A97: FDLC-CPS-084-2023 | B97: 2023 | C97: FDLC-CPS-084-2023 | D97: https://community.secop.gov.co/Public/Tendering/OpportunityDetail/Index?noticeUID=CO1.NTC.3847523&isFromPublicArea=True&isModal=true&asPopupView=true | E97: Contrato de Prestación de Servicios Profesionales y de Apoyo a la gestión | F97: CONTRATACION DIRECTA | G97: No aplica | H97: PRESTAR SERVICIOS PROFESIONALES AL FONDO DE DESARROLLOLOCAL DE LA CANDELARIA PARA LA OPERACIÓN PRESTACIÓNSEGUIMIENTO Y CUMPLIMIENTO DE LOS PROCEDIMIENTOSADMINISTRATIVOS OPERATIVOS Y PROGRAMÁTICOS DEL SERVICIOAPOYO ECONÓMICO TIPO C QUE CONTRIBUYAN A LA GARANTÍA DELOS DERECHOS DE LA POBLACIÓN MAYOR EN EL MARCO DE LAPOLÍTICA PÚBLICA SOCIAL PARA EL ENVEJECIMIENTO Y LA VEJEZ ENEL DISTRITO CAPITAL A CARGO DE LA ALCALDÍA LOCAL | I97: INVERSION | N97: O23011601010000001605 | O97: 1 | P97: 1121847787 | Q97: JAIME ANDRES JIMENEZ POLANIA | R97: PERSONA NATURAL | T97: NO APLICA | U97: NO APLICA | W97: 55000000 | Y97: 2 | Z97: 10000002 | AA97: =+W97+X97+Z97 -> 65000002 | AB97: 50833333 | AC97: 2023-01-26 | AD97: 2023-01-26 | AE97: 2024-02-25 | AF97: 330 | AG97: 2 | AH97: 60 | AI97: N/A | AJ97: N/A | AK97: N/A | AM97: EJECUCION | AN97: 0.7820512529
A98: FDLC-CPS-085-2023 | B98: 2023 | C98: FDLC-CPS-085-2023 | D98: https://community.secop.gov.co/Public/Tendering/OpportunityDetail/Index?noticeUID=CO1.NTC.3847534&isFromPublicArea=True&isModal=true&asPopupView=true | E98: Contrato de Prestación de Servicios Profesionales y de Apoyo a la gestión | F98: CONTRATACION DIRECTA | G98: No aplica | H98: PRESTAR SERVICIOS TÉCNICOS PARA LA OPERACIÓN SEGUIMIENTOY CUMPLIMIENTO DE LOS PROCESOS Y PROCEDIMIENTOS DELSERVICIO APOYOS ECONÓMICOS TIPO C REQUERIDOS PARA ELOPORTUNO Y ADECUADO REGISTRO CRUCE Y REPORTE DE LOSDATOS EN EL SISTEMA MISIONAL SIRBE QUE CONTRIBUYAN A LAGARANTÍA DE LOS DERECHOS DE LA POBLACIÓN MAYOR EN ELMARCO DE LA POLÍTICA PÚBLICA SOCIAL PARA EL ENVEJECIMIENTOY LA VEJEZ EN EL DISTRITO CAPITAL A CARGO DE LA ALCALDÍA LOCAL | I98: INVERSION | N98: O23011601010000001605 | O98: 1 | P98: 80263860 | Q98: PEDRO SIERRA GARCIA | R98: PERSONA NATURAL | T98: NO APLICA | U98: NO APLICA | W98: 34650000 | Y98: 2 | Z98: 16400002 | AA98: 51050002 | AB98: 31920000 | AC98: 2023-01-25 | AD98: 2023-01-27 | AE98: 2024-06-01 | AF98: 330 | AG98: 2 | AH98: 165 | AI98: N/A | AJ98: N/A | AK98: N/A | AM98: EJECUCION | AN98: 0.6252693193
A99: FDLC-CPS-086-2023 | B99: 2023 | C99: FDLC-CPS-086-2023 | D99: https://community.secop.gov.co/Public/Tendering/OpportunityDetail/Index?noticeUID=CO1.NTC.3847544&isFromPublicArea=True&isModal=true&asPopupView=true | E99: Contrato de Prestación de Servicios Profesionales y de Apoyo a la gestión | F99: CONTRATACION DIRECTA | G99: No aplica | H99: APOYAR AL ALCALDE LOCAL EN LA FORMULACIÓN SEGUIMIENTO EIMPLEMENTACIÓN DE LA ESTRATEGIA LOCAL PARA LA TERMINACIÓNJURÍDICA DE LAS ACTUACIONES ADMINISTRATIVAS QUE CURSAN ENLA ALCALDÍA LOCAL | I99: INVERSION | N99: O23011605570000002023 | O99: 1 | P99: 52421137 | Q99: YEIMIT YORYEI ROMERO HUERTAS | R99: PERSONA NATURAL | T99: NO APLICA | U99: NO APLICA | W99: 78100000 | Y99: N/A | Z99: 0 | AA99: 78100000 | AB99: 72183333 | AC99: 2023-01-25 | AD99: 2023-01-26 | AE99: 2023-12-25 | AF99: 330 | AG99: N/A | AH99: N/A | AI99: 1022973767 | AJ99: CESION DE CAROLINA ROJAS CARVAJAL | AK99: 2023-03-01 | AM99: TERMINADO | AN99: 0.92424242
A100: FDLC-CPS-087-2023 | B100: 2023 | C100: FDLC-CPS-087-2023 | D100: https://community.secop.gov.co/Public/Tendering/OpportunityDetail/Index?noticeUID=CO1.NTC.3847496&isFromPublicArea=True&isModal=true&asPopupView=true | E100: Contrato de Prestación de Servicios Profesionales y de Apoyo a la gestión | F100: CONTRATACION DIRECTA | G100: No aplica | H100: PRESTAR SERVICIOS DE APOYO TÉCNICO EN LA IMPLEMENTACIÓNDE ACCIONES Y ESTRATEGIAS CULTURALES MUSICALES YARTÍSTICAS EN EL MARCO DE LAS POLÍTICAS PLANES PROGRAMASY PROYECTOS PARA EL CUMPLIMIENTO DE LAS METAS DEL PLAN DEDESARROLLO LOCAL 20212024 | I100: INVERSION | N100: O23011601210000001625 | O100: 1 | P100: 1105670710 | Q100: YURANY ALEJANDRA ORTEGA BERRIO | R100: PERSONA NATURAL | T100: NO APLICA | U100: NO APLICA | W100: 24000000 | Y100: 2 | Z100: 12000002 | AA100: 36000002 | AB100: 30400000 | AC100: 2023-01-25 | AD100: 2023-01-27 | AE100: 2024-01-26 | AF100: 240 | AG100: 2 | AH100: 120 | AI100: N/A | AJ100: N/A | AK100: N/A | AM100: TERMINADO | AN100: 0.8444443975
A101: FDLC-CPS-088-2023 | B101: 2023 | C101: FDLC-CPS-088-2023 | D101: https://community.secop.gov.co/Public/Tendering/OpportunityDetail/Index?noticeUID=CO1.NTC.3856867&isFromPublicArea=True&isModal=true&asPopupView=true | E101: Contrato de Prestación de Servicios Profesionales y de Apoyo a la gestión | F101: CONTRATACION DIRECTA | G101: No aplica | H101: PRESTAR SERVICIOS PROFESIONALES AL FONDO DE DESARROLLO LOCAL DE LA CANDELARIA EN LA PLANEACIÓN SEGUIMIENTO Y EJECUCIÓN DE LAS ACTIVIDADES AMBIENTALES PARA EL FOMENTO DE LA AGRICULTURA URBANA EN CUMPLIMIENTO DE LAS METAS DEL PLAN DE DESARROLLO LOCAL | I101: INVERSION | N101: O23011601240000001626 | O101: 1 | P101: 1026567955 | Q101: CRISTIAN CAMILO VILLABONA FIGUEROA | R101: PERSONA NATURAL | T101: NO APLICA | U101: NO APLICA | W101: 27084000 | Y101: N/A | Z101: 0 | AA101: 27084000 | AB101: 27084000 | AC101: 2023-01-26 | AD101: 2023-02-01 | AE101: 2023-07-31 | AF101: 180 | AG101: N/A | AH101: N/A | AI101: N/A | AJ101: N/A | AK101: N/A | AM101: TERMINADO | AN101: 1
A102: FDLC-CPS-089-2023 | B102: 2023 | C102: FDLC-CPS-089-2023 | D102: https://community.secop.gov.co/Public/Tendering/OpportunityDetail/Index?noticeUID=CO1.NTC.3849411&isFromPublicArea=True&isModal=true&asPopupView=true | E102: Contrato de Prestación de Servicios Profesionales y de Apoyo a la gestión | F102: CONTRATACION DIRECTA | G102: No aplica | H102: PRESTAR SERVICIOS PROFESIONALES AL FONDO DE DESARROLLO LOCAL DE LA CANDELARIA PARA LA FORMULACIÓN Y SEGUIMIENTODE PLANES POLITICAS PROGRAMAS Y PROYECTOS DE INVERSIÓN RELACIONADOS CON LA ESTRATEGIA DE CUIDADO PREVENCIÓN DE VIOLENCIAS Y PROYECTOS CON ENFOQUE DE GÉNERO DEL PLAN DE DESARROLLO LOCAL | I102: INVERSION | N102: O23011603400000001781 | O102: 1 | P102: 1022408072 | Q102: LAURA STHEFANIA DIAZ GUTIERREZ | R102: PERSONA NATURAL | T102: NO APLICA | U102: NO APLICA | W102: 27084000 | X102: -4965400 | Y102: N/A | Z102: 0 | AA102: 22118600 | AB102: 22118600 | AC102: 2023-01-27 | AD102: 2023-01-31 | AE102: 2023-06-27 | AF102: 180 | AG102: N/A | AH102: N/A | AI102: N/A | AJ102: N/A | AK102: N/A | AM102: TERMINADO | AN102: 1
A103: FDLC-CPS-090-2023 | B103: 2023 | C103: FDLC-CPS-090-2023 | D103: https://community.secop.gov.co/Public/Tendering/OpportunityDetail/Index?noticeUID=CO1.NTC.3849175&isFromPublicArea=True&isModal=true&asPopupView=true | E103: Contrato de Prestación de Servicios Profesionales y de Apoyo a la gestión | F103: CONTRATACION DIRECTA | G103: No aplica | H103: PRESTAR SERVICIOS DE APOYO ADMINISTRATIVO Y ASISTENCIAL EN LA GESTIÓN DE LA ALCALDÍA LOCAL DE LA CANDELARIA EN EL TRÁMITEDE LOS COMPARENDOS Y QUERELLAS DE CONFORMIDAD CON LA LEY 1801 DE 2016 | I103: INVERSION | N103: O23011605570000002023 | O103: 1 | P103: 79951133 | Q103: WILSON HAISBER RAMIREZ REINA | R103: PERSONA NATURAL | T103: NO APLICA | U103: NO APLICA | W103: 29700000 | Y103: N/A | Z103: 0 | AA103: 29700000 | AB103: 27360000 | AC103: 2023-01-26 | AD103: 2023-01-27 | AE103: 2023-12-26 | AF103: 330 | AG103: N/A | AH103: N/A | AI103: N/A | AJ103: N/A | AK103: N/A | AM103: TERMINADO | AN103: 0.9212121212
A104: FDLC-CPS-091-2023 | B104: 2023 | C104: FDLC-CPS-091-2023 | D104: https://community.secop.gov.co/Public/Tendering/OpportunityDetail/Index?noticeUID=CO1.NTC.3849901&isFromPublicArea=True&isModal=true&asPopupView=true | E104: Contrato de Prestación de Servicios Profesionales y de Apoyo a la gestión | F104: CONTRATACION DIRECTA | G104: No aplica | H104: PRESTAR SERVICIOS DE APOYO EN LAS ACTIVIDADES DE SEGURIDAD Y CONVIVENCIA CIUDADANA DE ACUERDO A LAS NECESIDADES Y ESTRATEGIAS DE LA ALCALDIA LOCAL DE LA CANDELARIA | I104: INVERSION | N104: O23011605570000002021 | O104: 1 | P104: 79745860 | Q104: WILSON JAIR GONZALEZ BELTRAN | R104: PERSONA NATURAL | T104: NO APLICA | U104: NO APLICA | W104: 20680000 | Y104: 2 | Z104: 10340002 | AA104: 31020002 | AB104: 19050667 | AC104: 2023-01-26 | AD104: 2023-01-27 | AE104: 2024-06-15 | AF104: 330 | AG104: 2 | AH104: 165 | AI104: N/A | AJ104: N/A | AK104: N/A | AM104: EJECUCION | AN104: 0.6141413853
A105: FDLC-CPS-092-2023 | B105: 2023 | C105: FDLC-CPS-092-2023 | D105: https://community.secop.gov.co/Public/Tendering/OpportunityDetail/Index?noticeUID=CO1.NTC.3847646&isFromPublicArea=True&isModal=true&asPopupView=true | E105: Contrato de Prestación de Servicios Profesionales y de Apoyo a la gestión | F105: CONTRATACION DIRECTA | G105: No aplica | H105: PRESTAR SERVICIOS ASISTENCIALES AL ÁREA DE GESTIÓN DE DESARROLLO LOCAL EN LOS PROCESOS RELACIONADOS CON LAS ACTIVIDADES DE GESTION ADMINISTRATIVA DE LA ALCALDÍA LOCAL DE LA CANDELARIA | I105: INVERSION | N105: O23011605570000002021 | O105: 1 | P105: 80108185 | Q105: ALEXIS ROLANDO CASTELLANOS MOSQUERA | R105: PERSONA NATURAL | T105: NO APLICA | U105: NO APLICA | W105: 26400000 | Y105: N/A | Z105: 0 | AA105: 26400000 | AB105: 24000000 | AC105: 2023-01-25 | AD105: 2023-01-26 | AE105: 2023-12-25 | AF105: 330 | AG105: N/A | AH105: N/A | AI105: N/A | AJ105: N/A | AK105: N/A | AM105: TERMINADO | AN105: 0.9090909091
A106: FDLC-CPS-093-2023 | B106: 2023 | C106: FDLC-CPS-093-2023 | D106: https://community.secop.gov.co/Public/Tendering/OpportunityDetail/Index?noticeUID=CO1.NTC.3847511&isFromPublicArea=True&isModal=true&asPopupView=true | E106: Contrato de Prestación de Servicios Profesionales y de Apoyo a la gestión | F106: CONTRATACION DIRECTA | G106: No aplica | H106: PRESTACIÓN DE SERVICIOS DE APOYO LOGÍSTICO EN LOS EVENTOS Y ACTIVIDADES DE LA ADMINISTRACIÓN LOCAL DE LA LOCALIDAD DE LA CANDELARIA | I106: INVERSION | N106: O23011605570000002021 | O106: 1 | P106: 79594412 | Q106: FABIO ALBERTO MOLINA GUTIERREZ | R106: PERSONA NATURAL | T106: NO APLICA | U106: NO APLICA | W106: 29700000 | Y106: N/A | Z106: 0 | AA106: 29700000 | AB106: 27450000 | AC106: 2023-01-25 | AD106: 2023-01-26 | AE106: 2023-12-25 | AF106: 330 | AG106: N/A | AH106: N/A | AI106: N/A | AJ106: N/A | AK106: N/A | AM106: TERMINADO | AN106: 0.9242424242
A107: FDLC-CPS-094-2023 | B107: 2023 | C107: FDLC-CPS-094-2023 | D107: https://community.secop.gov.co/Public/Tendering/OpportunityDetail/Index?noticeUID=CO1.NTC.3848035&isFromPublicArea=True&isModal=true&asPopupView=true | E107: Contrato de Prestación de Servicios Profesionales y de Apoyo a la gestión | F107: CONTRATACION DIRECTA | G107: No aplica | H107: PRESTAR SERVICIOS PROFESIONALES AL FONDO DE DESARROLLO LOCAL DE LA CANDELARIA PARA APOYAR TÉCNICAMENTE A LOS RESPONSABLES E INTEGRANTES DE LOS PROCESOS EN LA IMPLEMENTACIÓN DE HERRAMIENTAS DE GESTIÓN SIGUIENDO LOS LINEAMIENTOS METODOLÓGICOS ESTABLECIDOS POR LA OFICINA ASESORA DE PLANEACIÓN DE LA SECRETARÍA DISTRITAL DE GOBIERNO | I107: INVERSION | N107: O23011605570000002021 | O107: 1 | P107: 1030563592 | Q107: LUIS CARLOS CARRILLO AHUMADA | R107: PERSONA NATURAL | T107: NO APLICA | U107: NO APLICA | W107: 56100000 | Y107: N/A | Z107: 0 | AA107: =+W107+X107+Z107 -> 56100000 | AB107: 51850000 | AC107: 2023-01-25 | AD107: 2023-01-26 | AE107: 2023-12-25 | AF107: 330 | AG107: N/A | AH107: N/A | AI107: N/A | AJ107: N/A | AK107: N/A | AM107: TERMINADO | AN107: 0.9242424242
A108: FDLC-CPS-095-2023 | B108: 2023 | C108: FDLC-CPS-095-2023 | D108: https://community.secop.gov.co/Public/Tendering/OpportunityDetail/Index?noticeUID=CO1.NTC.3847287&isFromPublicArea=True&isModal=true&asPopupView=true | E108: Contrato de Prestación de Servicios Profesionales y de Apoyo a la gestión | F108: CONTRATACION DIRECTA | G108: No aplica | H108: PRESTAR SERVICIOS PROFESIONALES PARA APOYAR JURÍDICAMENTE A LA ALCALDIA LOCAL DE LA CANDELARIA | I108: INVERSION | N108: O23011605570000002023 | O108: 1 | P108: 80729376 | Q108: MAURICIO ANTONIO BOHADA CARDENAS | R108: PERSONA NATURAL | T108: NO APLICA | U108: NO APLICA | W108: 60500000 | Y108: N/A | Z108: 0 | AA108: 60500000 | AB108: 55916667 | AC108: 2023-01-26 | AD108: 2023-01-26 | AE108: 2023-12-25 | AF108: 330 | AG108: N/A | AH108: N/A | AI108: N/A | AJ108: N/A | AK108: N/A | AM108: TERMINADO | AN108: 0.9242424298
A109: FDLC-CPS-096-2023 | B109: 2023 | C109: FDLC-CPS-096-2023 | D109: https://community.secop.gov.co/Public/Tendering/OpportunityDetail/Index?noticeUID=CO1.NTC.3856841&isFromPublicArea=True&isModal=true&asPopupView=true | E109: Contrato de Prestación de Servicios Profesionales y de Apoyo a la gestión | F109: CONTRATACION DIRECTA | G109: No aplica | H109: PRESTAR SERVICIOS PROFESIONALES AL FONDO DE DESARROLLO LOCAL DE LA CANDELARIA PARA LA OPERACIÓN PRESTACIÓN SEGUIMIENTO Y CUMPLIMIENTO DE LOS PROCEDIMIENTOS ADMINISTRATIVOS OPERATIVOS Y PROGRAMÁTICOS DEL SERVICIO APOYO ECONÓMICO TIPO C QUE CONTRIBUYAN A LA GARANTÍA DE LOS DERECHOS DE LA POBLACIÓN MAYOR EN EL MARCO DE LA POLÍTICA PÚBLICA SOCIAL PARA EL ENVEJECIMIENTO Y LA VEJEZ EN EL DISTRITO CAPITAL A CARGO DELA ALCALDÍA LOCAL | I109: INVERSION | N109: O23011601010000001605 | O109: 1 | P109: 1033749239 | Q109: AZUCENA SALAZAR GIRALDO | R109: PERSONA NATURAL | T109: NO APLICA | U109: NO APLICA | W109: 60500000 | Y109: 2 | Z109: 11000002 | AA109: 71500002 | AB109: 55733333 | AC109: 2023-01-26 | AD109: 2023-01-27 | AE109: 2024-02-26 | AF109: 330 | AG109: 2 | AH109: 60 | AI109: N/A | AJ109: N/A | AK109: N/A | AM109: EJECUCION | AN109: 0.779487153
A110: FDLC-CPS-097-2023 | B110: 2023 | C110: FDLC-CPS-097-2023 | D110: https://community.secop.gov.co/Public/Tendering/OpportunityDetail/Index?noticeUID=CO1.NTC.3850044&isFromPublicArea=True&isModal=true&asPopupView=true | E110: Contrato de Prestación de Servicios Profesionales y de Apoyo a la gestión | F110: CONTRATACION DIRECTA | G110: No aplica | H110: PRESTAR SERVICIOS PROFESIONALES AL FONDO DE DESARROLLO LOCAL DE LA CANDELARIA PARA APOYAR LAS GESTIONES RELACIONADAS CON EL PRESUPUESTO DE LA ENTIDAD | I110: INVERSION | N110: O23011605570000002021 | O110: 1 | P110: 50875779 | Q110: ISABELA RAQUEL FERNANDEZ PEREZ | R110: PERSONA NATURAL | T110: NO APLICA | U110: NO APLICA | W110: 55000000 | Y110: 2 | Z110: 10000002 | AA110: 65000002 | AB110: 50666667 | AC110: 2023-01-26 | AD110: 2023-01-27 | AE110: 2024-02-26 | AF110: 330 | AG110: 2 | AH110: 60 | AI110: N/A | AJ110: N/A | AK110: N/A | AM110: EJECUCION | AN110: 0.7794871606
A111: FDLC-CPS-098-2023 | B111: 2023 | C111: FDLC-CPS-098-2023 | D111: https://community.secop.gov.co/Public/Tendering/OpportunityDetail/Index?noticeUID=CO1.NTC.3855904&isFromPublicArea=True&isModal=true&asPopupView=true | E111: Contrato de Prestación de Servicios Profesionales y de Apoyo a la gestión | F111: CONTRATACION DIRECTA | G111: No aplica | H111: PRESTAR SUS SERVICIOS PROFESIONALES DE APOYO Y ACOMPAÑAMIENTO RELACIONADOS CON LOS PROYECTOS DE OBRA PÚBLICA E INFRAESTRUCTURA PARA LOGRAR EL CUMPLIMIENTO DE LAS METAS DEL PLAN DE DESARROLLO LOCAL 20212024 | I111: INVERSION | N111: O23011604490000002020 | O111: 1 | P111: 1015395116 | Q111: JHON EDWIN MORALES HERRERA | R111: PERSONA NATURAL | T111: NO APLICA | U111: NO APLICA | W111: 30000000 | X111: -3000000 | Y111: N/A | Z111: 0 | AA111: 27000000 | AB111: 27000000 | AC111: 2023-01-26 | AD111: 2023-01-30 | AE111: 2023-06-29 | AF111: 150 | AG111: N/A | AH111: N/A | AI111: N/A | AJ111: N/A | AK111: N/A | AM111: TERMINADO | AN111: 1
A112: FDLC-CPS-099-2023 | B112: 2023 | C112: FDLC-CPS-099-2023 | D112: https://community.secop.gov.co/Public/Tendering/OpportunityDetail/Index?noticeUID=CO1.NTC.3851206&isFromPublicArea=True&isModal=true&asPopupView=true | E112: Contrato de Prestación de Servicios Profesionales y de Apoyo a la gestión | F112: CONTRATACION DIRECTA | G112: No aplica | H112: PRESTAR LOS SERVICIOS DE APOYO TECNICO AL FONDO DE DESARRROLLO LOCAL DE LA CANDELARIA QUE LE SEAN REQUERIDOS POR EL DESPACHO DEL ALCALDESA LOCAL DE LA CANDELARIA | I112: INVERSION | N112: O23011605570000002021 | O112: 1 | P112: 1054121677 | Q112: LINA MARCELA HOLGUIN HURTADO | R112: PERSONA NATURAL | T112: NO APLICA | U112: NO APLICA | W112: 35167000 | X112: -19714833 | Y112: N/A | Z112: 0 | AA112: =+W112+X112+Z112 -> 15452167 | AB112: 15452167 | AC112: 2023-01-26 | AD112: 2023-01-27 | AE112: 2023-06-21 | AF112: 330 | AG112: N/A | AH112: N/A | AI112: N/A | AJ112: N/A | AK112: N/A | AM112: TERMINADO | AN112: 1
A113: FDLC-CPS-100-2023 | B113: 2023 | C113: FDLC-CPS-100-2023 | D113: https://community.secop.gov.co/Public/Tendering/OpportunityDetail/Index?noticeUID=CO1.NTC.3848098&isFromPublicArea=True&isModal=true&asPopupView=true | E113: Contrato de Prestación de Servicios Profesionales y de Apoyo a la gestión | F113: CONTRATACION DIRECTA | G113: No aplica | H113: PRESTAR SERVICIOS DE APOYO TÉCNICO AL FONDO DEDESARROLLO LOCAL DE LA CANDELARIA EN LOS PROCEDIMIENTOSADMINISTRATIVOS DERIVADOS DE LOS PROYECTOS SOCIALES Y DESALUD EN LA LOCALIDAD | I113: INVERSION | N113: O23011601060000001664 | O113: 1 | P113: 79907754 | Q113: JUAN ANGEL LOPEZ ARDILA | R113: PERSONA NATURAL | T113: NO APLICA | U113: NO APLICA | W113: 28000000 | Y113: N/A | Z113: 2800000 | AA113: 30800000 | AB113: 28373333 | AC113: 2023-01-25 | AD113: 2023-01-27 | AE113: 2023-12-26 | AF113: 330 | AG113: 1 | AH113: 30 | AI113: N/A | AJ113: N/A | AK113: N/A | AM113: TERMINADO | AN113: 0.9212121104
A114: FDLC-CPS-101-2023 | B114: 2023 | C114: FDLC-CPS-101-2023 | D114: https://community.secop.gov.co/Public/Tendering/OpportunityDetail/Index?noticeUID=CO1.NTC.3855778&isFromPublicArea=True&isModal=true&asPopupView=true | E114: Contrato de Prestación de Servicios Profesionales y de Apoyo a la gestión | F114: CONTRATACION DIRECTA | G114: No aplica | H114: COORDINA LIDERA Y ASESORA LOS PLANES Y ESTRATEGIAS DE COMUNICACIÓN INTERNA Y EXTERNA PARA LA DIVULGACIÓN DE LOS PROGRAMAS PROYECTOS Y ACTIVIDADES DE LA ALCALDÍA LOCAL | I114: INVERSION | N114: O23011605570000002021 | O114: 1 | P114: 79943624 | Q114: FRANCISCO ARTURO TAFUR LÓPEZ | R114: PERSONA NATURAL | T114: NO APLICA | U114: NO APLICA | W114: 77000000 | Y114: N/A | Z114: 0 | AA114: =+W114+X114+Z114 -> 77000000 | AB114: 70933333 | AC114: 2023-01-26 | AD114: 2023-01-27 | AE114: 2023-12-26 | AF114: 330 | AG114: N/A | AH114: N/A | AI114: N/A | AJ114: N/A | AK114: N/A | AM114: TERMINADO | AN114: 0.9212121169
A115: FDLC-CPS-102-2023 | B115: 2023 | C115: FDLC-CPS-102-2023 | D115: https://community.secop.gov.co/Public/Tendering/OpportunityDetail/Index?noticeUID=CO1.NTC.3856358&isFromPublicArea=True&isModal=true&asPopupView=true | E115: Contrato de Prestación de Servicios Profesionales y de Apoyo a la gestión | F115: CONTRATACION DIRECTA | G115: No aplica | H115: PRESTAR SERVICIOS DE APOYO EN LAS ACTIVIDADES DE SEGURIDAD Y CONVIVENCIA CIUDADANA DE ACUERDO A LAS NECESIDADES Y ESTRATEGIAS DE LA ALCALDIA LOCAL DE LA CANDELARIA | I115: INVERSION | N115: O23011605570000002021 | O115: 1 | P115: 1069763701 | Q115: MARIA YULI BERNATE CASTILLO | R115: PERSONA NATURAL | T115: NO APLICA | U115: NO APLICA | W115: 20680000 | Y115: 2 | Z115: 86480002 | AA115: 107160002 | AB115: 18674667 | AC115: 2023-01-26 | AD115: 2023-02-03 | AE115: 2024-06-15 | AF115: 330 | AG115: 2 | AH115: 165 | AI115: N/A | AJ115: N/A | AK115: N/A | AM115: EJECUCION | AN115: 0.1742690057
A116: FDLC-CPS-103-2023 | B116: 2023 | C116: FDLC-CPS-103-2023 | D116: https://community.secop.gov.co/Public/Tendering/OpportunityDetail/Index?noticeUID=CO1.NTC.3856165&isFromPublicArea=True&isModal=true&asPopupView=true | E116: Contrato de Prestación de Servicios Profesionales y de Apoyo a la gestión | F116: CONTRATACION DIRECTA | G116: No aplica | H116: PRESTAR SERVICIOS PROFESIONALES AL FONDO DE DESARROLLO LOCAL DE LA CANDELARIA PARA APOYAR EL SEGUIMIENTO LIQUIDACIÓN DEPURACIÓN Y CONSOLIDACIÓN DE LA INFORMACIÓN DE LAS OBLIGACIONES POR PAGAR DERIVADAS DE LA GESTIÓN CONTRACTUAL DE LA ENTIDAD Y SU RESPECTIVA LIQUIDACION | I116: INVERSION | N116: O23011605570000002021 | O116: 1 | P116: 53029549 | Q116: GINNA ANDUKLEY ARIAS MORENO | R116: PERSONA NATURAL | T116: NO APLICA | U116: NO APLICA | W116: 30000000 | Y116: 1 | Z116: 15000001 | AA116: 45000001 | AB116: 40666667 | AC116: 2023-01-26 | AD116: 2023-01-27 | AE116: 2023-10-26 | AF116: 180 | AG116: 1 | AH116: 90 | AI116: 1010207593 | AJ116: CESION DE LEIDY KATHERINE MIRANDA HERNANDEZ | AK116: 2023-06-27 | AM116: TERMINADO | AN116: 0.903703691
A117: FDLC-CPS-104-2023 | B117: 2023 | C117: FDLC-CPS-104-2023 | D117: https://community.secop.gov.co/Public/Tendering/OpportunityDetail/Index?noticeUID=CO1.NTC.3855895&isFromPublicArea=True&isModal=true&asPopupView=true | E117: Contrato de Prestación de Servicios Profesionales y de Apoyo a la gestión | F117: CONTRATACION DIRECTA | G117: No aplica | H117: PRESTAR SERVICIOS TÉCNICOS DE APOYO AL FONDO DE DESARROLLO LOCAL DE LA CANDELARIA PARA LA GESTION DE LOS ASUNTOS RELACIONADOS CON SEGURIDAD CIUDADANA CONVIVENCIA PREVENCIÓN DE CONFLICTIVIDADES VIOLENCIAS Y DELITOS EN LA LOCALIDAD | I117: INVERSION | N117: O23011605570000002023 | O117: 1 | P117: 1010235642 | Q117: YENCI CAMILA PASTOR BULLA | R117: PERSONA NATURAL | T117: NO APLICA | U117: NO APLICA | W117: 30107000 | Y117: N/A | Z117: 0 | AA117: 30107000 | AB117: 27734933 | AC117: 2023-01-27 | AD117: 2023-01-27 | AE117: 2023-12-26 | AF117: 330 | AG117: N/A | AH117: N/A | AI117: N/A | AJ117: N/A | AK117: N/A | AM117: TERMINADO | AN117: 0.9212121101
A118: FDLC-CPS-105-2023 | B118: 2023 | C118: FDLC-CPS-105-2023 | D118: https://community.secop.gov.co/Public/Tendering/OpportunityDetail/Index?noticeUID=CO1.NTC.3894626&isFromPublicArea=True&isModal=true&asPopupView=true | E118: Contrato de Prestación de Servicios Profesionales y de Apoyo a la gestión | F118: CONTRATACION DIRECTA | G118: No aplica | H118: PRESTAR SUS SERVICIOS PROFESIONALES DE APOYO Y ACOMPAÑAMIENTO RELACIONADOS CON LOS PROYECTOS Y ESTRATEGIAS DE EMPRENDIMIENTO E INNOVACIÓN DEL SECTOR CULTURAL Y CREATIVO DE LA LOCALIDAD EN CUMPLIMIENTO DE LAS METAS DEL PLAN DE DESARROLLO LOCAL 20212024 | I118: INVERSION | N118: O23011601240000001627 | O118: 1 | P118: 1012362649 | Q118: ALEXANDER JUNIOR VALEGA LOZANO | R118: PERSONA NATURAL | T118: NO APLICA | U118: NO APLICA | W118: 30000000 | Y118: N/A | Z118: 0 | AA118: 30000000 | AB118: 25000000 | AC118: 2023-01-31 | AD118: 2023-02-01 | AE118: 2023-07-31 | AF118: 180 | AG118: N/A | AH118: N/A | AI118: 1022370301 | AJ118: CESION DE DIEGO ALEXANDER SAMUDIO CABALLERO | AK118: 2023-05-24 | AM118: TERMINADO | AN118: 0.8333333333
A119: FDLC-CPS-106-2023 | B119: 2023 | C119: FDLC-CPS-106-2023 | D119: https://community.secop.gov.co/Public/Tendering/OpportunityDetail/Index?noticeUID=CO1.NTC.3852537&isFromPublicArea=True&isModal=true&asPopupView=true | E119: Contrato de Prestación de Servicios Profesionales y de Apoyo a la gestión | F119: CONTRATACION DIRECTA | G119: No aplica | H119: PRESTAR SUS SERVICIOS PROFESIONALES DE APOYO Y ACOMPAÑAMIENTO RELACIONADOS CON LOS PROYECTOS DE OBRA PÚBLICA E INFRAESTRUCTURA PARA LOGRAR EL CUMPLIMIENTO DE LAS METAS DEL PLAN DE DESARROLLO LOCAL 20212024 | I119: INVERSION | N119: O23011604490000002020 | O119: 1 | P119: 80879007 | Q119: JUAN PABLO SANABRIA VEGA | R119: PERSONA NATURAL | T119: NO APLICA | U119: NO APLICA | W119: 30000000 | X119: -2400000 | Y119: N/A | Z119: 0 | AA119: 27600000 | AB119: 27600000 | AC119: 2023-01-26 | AD119: 2023-01-27 | AE119: 2023-06-14 | AF119: 150 | AG119: N/A | AH119: N/A | AI119: N/A | AJ119: N/A | AK119: N/A | AM119: TERMINADO | AN119: 1
A120: FDLC-CPS-107-2023 | B120: 2023 | C120: FDLC-CPS-107-2023 | D120: https://community.secop.gov.co/Public/Tendering/OpportunityDetail/Index?noticeUID=CO1.NTC.3862122&isFromPublicArea=True&isModal=true&asPopupView=true | E120: Contrato de Prestación de Servicios Profesionales y de Apoyo a la gestión | F120: CONTRATACION DIRECTA | G120: No aplica | H120: PRESTAR SERVICIOS DE APOYO ADMINISTRATIVO Y ASISTENCIAL ENLOS PROCESOS DE LOS ASUNTOS JURÍDICOS Y ACTUACIONESADMINISTRATIVAS ADELANTADOS POR LA ALCALDÍA LOCAL DE LACANDELARIA | I120: INVERSION | N120: O23011605570000002023 | O120: 1 | P120: 1026567453 | Q120: FABIAN ALONSO MORENO RODRIGUEZ | R120: PERSONA NATURAL | T120: NO APLICA | U120: NO APLICA | W120: 19800000 | Y120: N/A | Z120: 0 | AA120: 19800000 | AB120: 18060000 | AC120: 2023-01-27 | AD120: 2023-01-30 | AE120: 2023-12-29 | AF120: 330 | AG120: N/A | AH120: N/A | AI120: 43904066 | AJ120: CESION DE MARIA NATHALIE INFANTE GOMEZ | AK120: 2023-06-27 | AM120: TERMINADO | AN120: 0.9121212121
A121: FDLC-CPS-108-2023 | B121: 2023 | C121: FDLC-CPS-108-2023 | D121: https://community.secop.gov.co/Public/Tendering/OpportunityDetail/Index?noticeUID=CO1.NTC.3863089&isFromPublicArea=True&isModal=true&asPopupView=true | E121: Contrato de Prestación de Servicios Profesionales y de Apoyo a la gestión | F121: CONTRATACION DIRECTA | G121: No aplica | H121: PRESTAR SERVICIOS PROFESIONALES PARA EL SEGUIMIENTOJURÍDICO DE LOS PROYECTOS DE INFRAESTRUCTURA ASÍ COMOLOS ASUNTOS CONTRACTUALES QUE SE REQUIERAN | I121: INVERSION | N121: O23011604490000002020 | O121: 1 | P121: 1015453498 | Q121: JAVIER EDUARDO SANTIAGO MÉNDEZ | R121: PERSONA NATURAL | T121: NO APLICA | U121: NO APLICA | W121: 40000000 | Y121: 2 | Z121: 16833335 | AA121: 56833335 | AB121: 50000000 | AC121: 2023-01-27 | AD121: 2023-01-31 | AE121: 2024-01-11 | AF121: 240 | AG121: 2 | AH121: 101 | AI121: N/A | AJ121: N/A | AK121: N/A | AM121: TERMINADO | AN121: 0.8797653701
A122: FDCL-CPS-109-2023 | B122: 2023 | C122: FDCL-CPS-109-2023 | D122: https://community.secop.gov.co/Public/Tendering/OpportunityDetail/Index?noticeUID=CO1.NTC.3861610&isFromPublicArea=True&isModal=true&asPopupView=true | E122: Contrato de Prestación de Servicios Profesionales y de Apoyo a la gestión | F122: CONTRATACION DIRECTA | G122: No aplica | H122: PRESTAR SERVICIOS TÉCNICOS PARA APOYAR AL FONDO DE DESARROLLO LOCAL DE LA CANDELARIA EN LAS TAREAS OPERATIVAS DE CARÁCTER ARCHIVÍSTICO DESARROLLADAS PARA GARANTIZAR LA APLICACIÓN CORRECTA DE LOS PROCEDIMIENTOS TÉCNICOS | I122: INVERSION | N122: O23011605570000002021 | O122: 1 | P122: 52496566 | Q122: SONIA MORENO SALGUERO | R122: PERSONA NATURAL | T122: NO APLICA | U122: NO APLICA | W122: 44000000 | Y122: 2 | Z122: 22000002 | AA122: 66000002 | AB122: 40533333 | AC122: 2023-01-27 | AD122: 2023-01-27 | AE122: 2024-06-11 | AF122: 330 | AG122: 2 | AH122: 165 | AI122: N/A | AJ122: N/A | AK122: N/A | AM122: EJECUCION | AN122: 0.6141413905
A123: FDLC-CPS-110-2023 | B123: 2023 | C123: FDLC-CPS-110-2023 | D123: https://community.secop.gov.co/Public/Tendering/OpportunityDetail/Index?noticeUID=CO1.NTC.3861473&isFromPublicArea=True&isModal=true&asPopupView=true | E123: Contrato de Prestación de Servicios Profesionales y de Apoyo a la gestión | F123: CONTRATACION DIRECTA | G123: No aplica | H123: PRESTAR SERVICIOS DE APOYO A LA GESTIÓN DEL FONDO DE DESARROLLO LOCAL DE LA CANDELARIA EN EL CENTRO DE INFORMACIÓN Y DOCUMENTACIÓN CDI PARA EL MANEJO Y PROCESO DE DISTRIBUCIÓN DE CORRESPONDENCIA EN GENERAL | I123: INVERSION | N123: O23011605570000002021 | O123: 1 | P123: 1012339492 | Q123: DIANA CAROLINA MOLANO MENDEZ | R123: PERSONA NATURAL | T123: NO APLICA | U123: NO APLICA | W123: 28600000 | Y123: 2 | Z123: 5200002 | AA123: 33800002 | AB123: 26346667 | AC123: 2023-01-27 | AD123: 2023-01-27 | AE123: 2024-02-26 | AF123: 330 | AG123: 2 | AH123: 60 | AI123: N/A | AJ123: N/A | AK123: N/A | AM123: EJECUCION | AN123: 0.7794871432
A124: FDLC-CPS-111-2023 | B124: 2023 | C124: FDLC-CPS-111-2023 | D124: https://community.secop.gov.co/Public/Tendering/OpportunityDetail/Index?noticeUID=CO1.NTC.3892824&isFromPublicArea=True&isModal=true&asPopupView=true | E124: Contrato de Prestación de Servicios Profesionales y de Apoyo a la gestión | F124: CONTRATACION DIRECTA | G124: No aplica | H124: PRESTAR SERVICIOS PROFESIONALES DE APOYO A LA ALCALDÍA LOCAL DE LA CANDELARIA EN EL FORTALECIMIENTO E INCLUSIÓN DE LOS PUEBLOS INDÍGENAS EN EL MARCO DE LA POLÍTICA PÚBLICA DISTRITAL PARA LOS PUEBLOS INDÍGENAS ASÍ COMO LOS PROCESOS COMUNITARIOS Y DEMÁS ESPACIOS DE PARTICIPACIÓN DESIGNADOS | I124: INVERSION | N124: O23011605570000002021 | O124: 1 | P124: 1032368719 | Q124: ANA PATRICIA JACANAMIJOY JACANAMIJOY | R124: PERSONA NATURAL | T124: NO APLICA | U124: NO APLICA | W124: 55000000 | Y124: N/A | Z124: 0 | AA124: =+W124+X124+Z124 -> 55000000 | AB124: 50000000 | AC124: 2023-01-31 | AD124: 2023-02-01 | AE124: 2023-12-31 | AF124: 330 | AG124: N/A | AH124: N/A | AI124: N/A | AJ124: N/A | AK124: N/A | AM124: TERMINADO | AN124: 0.9090909091
A125: FDLC-CPS-112-2023 | B125: 2023 | C125: FDLC-CPS-112-2023 | D125: https://community.secop.gov.co/Public/Tendering/OpportunityDetail/Index?noticeUID=CO1.NTC.3892857&isFromPublicArea=True&isModal=true&asPopupView=true | E125: Contrato de Prestación de Servicios Profesionales y de Apoyo a la gestión | F125: CONTRATACION DIRECTA | G125: No aplica | H125: PRESTAR SERVICIOS PROFESIONALES PARA APOYAR LA GESTION DE LOS ASUNTOS RELACIONADOS CON LA PROTECCIÓN CUIDADO Y CONSERVACIÓN DE LA MALLA VIAL COMO COMPONENTE PATRIMONIAL DE LA CANDELARIA | I125: INVERSION | N125: O23011604490000002020 | O125: 1 | P125: 52359710 | Q125: MARTHA JANNETH TRIANA RUBIANO | R125: PERSONA NATURAL | T125: NO APLICA | U125: NO APLICA | W125: 55000000 | Y125: 1 | Z125: 15000001 | AA125: 70000001 | AB125: 45000000 | AC125: 2023-01-31 | AD125: 2023-02-01 | AE125: 2024-03-31 | AF125: 330 | AG125: 1 | AH125: 90 | AI125: N/A | AJ125: N/A | AK125: N/A | AM125: EJECUCION | AN125: 0.6428571337
A126: FDLC-CPS-113-2023 | B126: 2023 | C126: FDLC-CPS-113-2023 | D126: https://community.secop.gov.co/Public/Tendering/OpportunityDetail/Index?noticeUID=CO1.NTC.3892774&isFromPublicArea=True&isModal=true&asPopupView=true | E126: Contrato de Prestación de Servicios Profesionales y de Apoyo a la gestión | F126: CONTRATACION DIRECTA | G126: No aplica | H126: PRESTAR SERVICIOS DE APOYO EN LAS ACTIVIDADES DE PROTECCIÓN CUIDADO Y CONSERVACIÓN DE LA MALLA VIAL COMO COMPONENTE PATRIMONIAL DE LA CANDELARIA | I126: INVERSION | N126: O23011604490000002020 | O126: 1 | P126: 79314172 | Q126: JULIO ALBERTO OSUNA RAMIREZ | R126: PERSONA NATURAL | T126: NO APLICA | U126: NO APLICA | W126: 9250000 | X126: -616667 | Y126: N/A | Z126: 0 | AA126: 8633333 | AB126: 8633333 | AC126: 2023-02-01 | AD126: 2023-02-01 | AE126: 2023-06-20 | AF126: 150 | AG126: N/A | AH126: N/A | AI126: N/A | AJ126: N/A | AK126: N/A | AM126: TERMINADO | AN126: 1
A127: FDLC-CPS-114-2023 | B127: 2023 | C127: FDLC-CPS-114-2023 | D127: https://community.secop.gov.co/Public/Tendering/OpportunityDetail/Index?noticeUID=CO1.NTC.3892769&isFromPublicArea=True&isModal=true&asPopupView=true | E127: Contrato de Prestación de Servicios Profesionales y de Apoyo a la gestión | F127: CONTRATACION DIRECTA | G127: No aplica | H127: PRESTAR SERVICIOS PROFESIONALES PARA EL SEGUIMIENTO JURÍDICO DE LOS PROYECTOS DE INFRAESTRUCTURA ASÍ COMO LOS DEMÁS ASUNTOS CONTRACTUALES QUE SE REQUIERAN | I127: INVERSION | N127: O23011604490000002020 | O127: 1 | P127: 1010235944 | Q127: JUAN PABLO ORTIZ MARTINEZ | R127: PERSONA NATURAL | T127: NO APLICA | U127: NO APLICA | W127: 40000000 | Y127: 2 | Z127: 20000002 | AA127: 60000002 | AB127: 49000000 | AC127: 2023-01-31 | AD127: 2023-02-08 | AE127: 2024-02-07 | AF127: 240 | AG127: 2 | AH127: 120 | AI127: N/A | AJ127: N/A | AK127: N/A | AM127: TERMINADO | AN127: 0.8166666394
A128: FDLC-CPS-115-2023 | B128: 2023 | C128: FDLC-CPS-115-2023 | D128: https://community.secop.gov.co/Public/Tendering/OpportunityDetail/Index?noticeUID=CO1.NTC.3922047&isFromPublicArea=True&isModal=true&asPopupView=true | E128: Contrato de Prestación de Servicios Profesionales y de Apoyo a la gestión | F128: CONTRATACION DIRECTA | G128: No aplica | H128: PRESTAR SERVICIOS DE APOYO EN LAS ACTIVIDADES DE PROTECCIÓN CUIDADO Y CONSERVACIÓN DE LA MALLA VIAL COMO COMPONENTE PATRIMONIAL DE LA CANDELARIA | I128: INVERSION | N128: O23011604490000002020 | O128: 1 | P128: 1122727530 | Q128: JESSE JOSE VILLEGAS CABRERA | R128: PERSONA NATURAL | T128: NO APLICA | U128: NO APLICA | W128: 9250000 | X128: -986667 | Y128: N/A | Z128: 0 | AA128: 8263333 | AB128: 8263333 | AC128: 2023-02-03 | AD128: 2023-02-07 | AE128: 2023-06-20 | AF128: 150 | AG128: N/A | AH128: N/A | AI128: N/A | AJ128: N/A | AK128: N/A | AM128: TERMINADO | AN128: 1
A129: FDLC-CPS-116-2023 | B129: 2023 | C129: FDLC-CPS-116-2023 | D129: https://community.secop.gov.co/Public/Tendering/OpportunityDetail/Index?noticeUID=CO1.NTC.3891710&isFromPublicArea=True&isModal=true&asPopupView=true | E129: Contrato de Prestación de Servicios Profesionales y de Apoyo a la gestión | F129: CONTRATACION DIRECTA | G129: No aplica | H129: PRESTAR SERVICIOS PROFESIONALES AL FONDO DE DESARROLLOLOCAL DE LA CANDELARIA PARA APOYAR EN LA FORMULACIÓNPRESENTACIÓN EVALUACIÓN Y SEGUIMIENTO DE LOS PROYECTOSDE INVERSIÓN DEL SECTOR CULTURAL Y CREATIVO EN LALOCALIDAD | I129: INVERSION | N129: O23011601240000001627 | O129: 1 | P129: 1013607417 | Q129: YESID FERNANDO BUSTOS AGUILAR | R129: PERSONA NATURAL | T129: NO APLICA | U129: NO APLICA | W129: 30000000 | X129: -5666667 | Y129: N/A | Z129: 0 | AA129: 24333333 | AB129: 24333333 | AC129: 2023-02-01 | AD129: 2023-02-02 | AE129: 2023-06-27 | AF129: 180 | AG129: N/A | AH129: N/A | AI129: N/A | AJ129: N/A | AK129: N/A | AM129: TERMINADO | AN129: 1
A130: FDLC-CPS-117-2023 | B130: 2023 | C130: FDLC-CPS-117-2023 | D130: https://community.secop.gov.co/Public/Tendering/OpportunityDetail/Index?noticeUID=CO1.NTC.3882274&isFromPublicArea=True&isModal=true&asPopupView=true | E130: Contrato de Prestación de Servicios Profesionales y de Apoyo a la gestión | F130: CONTRATACION DIRECTA | G130: No aplica | H130: PRESTAR SERVICIOS ASISTENCIALES PARA APOYAR EN LAS TAREAS RELACIONADAS CON LA GESTIÓN DOCUMENTAL DE LA ALCALDIA LOCAL DE LA CANDELARIA | I130: INVERSION | N130: O23011605570000002021 | O130: 1 | P130: 52380326 | Q130: ALEXANDRA GARZON BELTRAN | R130: PERSONA NATURAL | T130: NO APLICA | U130: NO APLICA | W130: 19800000 | Y130: N/A | Z130: 0 | AA130: 19800000 | AB130: 17220000 | AC130: 2023-01-31 | AD130: 2023-02-03 | AE130: 2023-12-31 | AF130: 330 | AG130: N/A | AH130: N/A | AI130: N/A | AJ130: N/A | AK130: N/A | AM130: TERMINADO | AN130: 0.8696969697
A131: FDLC-CPS-118-2023 | B131: 2023 | C131: FDLC-CPS-118-2023 | D131: https://community.secop.gov.co/Public/Tendering/OpportunityDetail/Index?noticeUID=CO1.NTC.3884640&isFromPublicArea=True&isModal=true&asPopupView=true | E131: Contrato de Prestación de Servicios Profesionales y de Apoyo a la gestión | F131: CONTRATACION DIRECTA | G131: No aplica | H131: PRESTAR SERVICIOS PROFESIONALES PARA EL SEGUIMIENTO JURÍDICO DE LOS PROYECTOS DE INFRAESTRUCTURA ASÍ COMO LOS DEMÁS ASUNTOS CONTRACTUALES QUE SE REQUIERA | I131: INVERSION | N131: O23011604490000002020 | O131: 1 | P131: 81740245 | Q131: DAVID RICARDO PEÑALOZA LOMBO | R131: PERSONA NATURAL | T131: NO APLICA | U131: NO APLICA | W131: 40000000 | Y131: 1 | Z131: 10000001 | AA131: 50000001 | AB131: 47500000 | AC131: 2023-01-31 | AD131: 2023-02-02 | AE131: 2023-09-30 | AF131: 240 | AG131: 1 | AH131: 60 | AI131: 79428611 | AJ131: CESION DE CARLOS GUILLERMO VANEGAS SALGADO | AK131: 2023-05-15 | AM131: TERMINADO | AN131: 0.949999981
A132: FDLC-CPS-119-2023 | B132: 2023 | C132: FDLC-CPS-119-2023 | D132: https://community.secop.gov.co/Public/Tendering/OpportunityDetail/Index?noticeUID=CO1.NTC.3884841&isFromPublicArea=True&isModal=true&asPopupView=true | E132: Contrato de Prestación de Servicios Profesionales y de Apoyo a la gestión | F132: CONTRATACION DIRECTA | G132: No aplica | H132: PRESTAR LOS SERVICIOS PROFESIONALES PARA APOYAR EN LA ELABORACIÓN GESTIÓN Y PUBLICACIÓN DE CONTENIDOS Y MATERIAL GRÁFICO DE COMUNICACIÓN EN LAS REDES SOCIALES HERRAMIENTAS INSTITUCIONALES DE COMUNICACIÓN DE LA JUNTA ADMINISTRADORA LOCAL DE LA CANDELARIA | I132: INVERSION | N132: O23011605570000002021 | O132: 1 | P132: 80238737 | Q132: JOHANNI JAVIER MORALES AMAYA | R132: PERSONA NATURAL | T132: NO APLICA | U132: NO APLICA | W132: 51700000 | Y132: N/A | Z132: 0 | AA132: 51700000 | AB132: 46843333 | AC132: 2023-01-31 | AD132: 2023-02-02 | AE132: 2023-12-31 | AF132: 330 | AG132: N/A | AH132: N/A | AI132: N/A | AJ132: N/A | AK132: N/A | AM132: TERMINADO | AN132: 0.9060605996
A133: FDLC-CPS-120-2023 | B133: 2023 | C133: FDLC-CPS-120-2023 | D133: https://community.secop.gov.co/Public/Tendering/OpportunityDetail/Index?noticeUID=CO1.NTC.3882217&isFromPublicArea=True&isModal=true&asPopupView=true | E133: Contrato de Prestación de Servicios Profesionales y de Apoyo a la gestión | F133: CONTRATACION DIRECTA | G133: No aplica | H133: PRESTAR SERVICIOS PROFESIONALES PARA APOYAR EN LA FORMULACION TECNICA Y SEGUIMIENTOS DE PLANES POLITICAS PROGRAMAS Y PROYECTOS RELACIONADOS CON OBRAS E INFRAESTRUCTURA QUE DESARROLLE LA ALCALDIA LOCAL DE LA CANDELARIA | I133: INVERSION | N133: O23011604490000002020 | O133: 1 | P133: 1015446434 | Q133: CATERINE JOHANNA GUZMAN RINCON | R133: PERSONA NATURAL | T133: NO APLICA | U133: NO APLICA | W133: 36112000 | Y133: 2 | Z133: 15789002 | AA133: 51901002 | AB133: 45140000 | AC133: 2023-01-31 | AD133: 2023-02-01 | AE133: 2024-01-15 | AF133: 240 | AG133: 2 | AH133: 105 | AI133: N/A | AJ133: N/A | AK133: N/A | AM133: TERMINADO | AN133: 0.8697327269
A134: FDLC-CPS-121-2023 | B134: 2023 | C134: FDLC-CPS-121-2023 | D134: https://community.secop.gov.co/Public/Tendering/OpportunityDetail/Index?noticeUID=CO1.NTC.3892939&isFromPublicArea=True&isModal=true&asPopupView=true | E134: Contrato de Prestación de Servicios Profesionales y de Apoyo a la gestión | F134: CONTRATACION DIRECTA | G134: No aplica | H134: PRESTAR SERVICIOS DE APOYO EN LAS ACTIVIDADES DE SEGURIDAD Y CONVIVENCIA CIUDADANA DE ACUERDO A LAS NECESIDADES Y ESTRATEGIAS DE LA ALCALDIA LOCAL DE LA CANDELARIA | I134: INVERSION | N134: O23011605570000002021 | O134: 1 | P134: 52319984 | Q134: CLAUDA BEATRIZ FLOREZ RINCON | R134: PERSONA NATURAL | T134: NO APLICA | U134: NO APLICA | W134: 20680000 | Y134: 2 | Z134: 10340002 | AA134: 31020002 | AB134: 18737333 | AC134: 2023-01-31 | AD134: 2023-02-02 | AE134: 2024-06-15 | AF134: 330 | AG134: 2 | AH134: 165 | AI134: N/A | AJ134: N/A | AK134: N/A | AM134: EJECUCION | AN134: 0.6040403543
A135: FDLC-CPS-122-2023 | B135: 2023 | C135: FDLC-CPS-122-2023 | D135: https://community.secop.gov.co/Public/Tendering/OpportunityDetail/Index?noticeUID=CO1.NTC.3891490&isFromPublicArea=True&isModal=true&asPopupView=true | E135: Contrato de Prestación de Servicios Profesionales y de Apoyo a la gestión | F135: CONTRATACION DIRECTA | G135: No aplica | H135: PRESTACIÓN DE SERVICIOS PROFESIONALES AL FONDO DEDESARROLLO LOCAL DE LA CANDELARIA PARA ATENDER LASPETICIONES QUEJAS RECLAMOS YO SOLICITUDES PRESENTADASPOR LA CIUDADANÍA DE CONFORMIDAD CON LOS TÉRMINOSLEGALES ESTABLECIDOS Y APOYAR LAS RESPUESTAS REQUERIDASPOR LOS ENTES DE CONTROL | I135: INVERSION | N135: O23011605570000002021 | O135: 1 | P135: 1033757530 | Q135: CHRISTIAN ALEJANDRO TORRES PATIÑO | R135: PERSONA NATURAL | T135: NO APLICA | U135: NO APLICA | W135: 40000000 | Y135: 1 | Z135: 5000001 | AA135: 45000001 | AB135: 39833000 | AC135: 2023-01-31 | AD135: 2023-02-02 | AE135: 2023-11-01 | AF135: 240 | AG135: 1 | AH135: 30 | AI135: N/A | AJ135: N/A | AK135: N/A | AM135: TERMINADO | AN135: 0.8851777581
A136: FDLC-CPS-123-2023 | B136: 2023 | C136: FDLC-CPS-123-2023 | D136: https://community.secop.gov.co/Public/Tendering/OpportunityDetail/Index?noticeUID=CO1.NTC.3892850&isFromPublicArea=True&isModal=true&asPopupView=true | E136: Contrato de Prestación de Servicios Profesionales y de Apoyo a la gestión | F136: CONTRATACION DIRECTA | G136: No aplica | H136: PRESTAR SERVICIOS ASISTENCIALES AL FONDO DE DESARROLLO LOCAL DE LA CANDELARIA PARA LA ADMINISTRACIÓN DE LA CASA DEL ZIPA DE CONFORMIDAD CON EL ACUERDO LOCAL 034 DE 2021 | I136: INVERSION | N136: O23011605570000002021 | O136: 1 | P136: 41762577 | Q136: LUZ MYRIAM TELLEZ PERILLA | R136: PERSONA NATURAL | T136: NO APLICA | U136: NO APLICA | W136: 29700000 | Y136: N/A | Z136: 0 | AA136: 29700000 | AB136: 27000000 | AC136: 2023-01-31 | AD136: 2023-02-01 | AE136: 2023-12-31 | AF136: 330 | AG136: N/A | AH136: N/A | AI136: N/A | AJ136: N/A | AK136: N/A | AM136: TERMINADO | AN136: 0.9090909091
A137: FDLC-CPS-124-2023 | B137: 2023 | C137: FDLC-CPS-124-2023 | D137: https://community.secop.gov.co/Public/Tendering/OpportunityDetail/Index?noticeUID=CO1.NTC.3941510&isFromPublicArea=True&isModal=true&asPopupView=true | E137: Contrato de Prestación de Servicios Profesionales y de Apoyo a la gestión | F137: CONTRATACION DIRECTA | G137: No aplica | H137: PRESTAR SERVICIOS DE APOYO EN LAS ACTIVIDADES DE PROTECCIÓN CUIDADO Y CONSERVACIÓN DE LA MALLA VIAL COMO COMPONENTE PATRIMONIAL DE LA CANDELARIA | I137: INVERSION | N137: O23011604490000002020 | O137: 1 | P137: 1010181876 | Q137: DAVID ANDRES SEGURA ORTIZ | R137: PERSONA NATURAL | T137: NO APLICA | U137: NO APLICA | W137: 9250000 | X137: -1295000 | Y137: N/A | Z137: 0 | AA137: 7955000 | AB137: 7030000 | AC137: 2023-02-06 | AD137: 2023-02-07 | AE137: 2023-06-15 | AF137: 150 | AG137: N/A | AH137: N/A | AI137: N/A | AJ137: N/A | AK137: N/A | AM137: TERMINADO | AN137: 0.8837209302
A138: FDLC-CPS-125-2023 | B138: 2023 | C138: FDLC-CPS-125-2023 | D138: https://community.secop.gov.co/Public/Tendering/OpportunityDetail/Index?noticeUID=CO1.NTC.3893006&isFromPublicArea=True&isModal=true&asPopupView=true | E138: Contrato de Prestación de Servicios Profesionales y de Apoyo a la gestión | F138: CONTRATACION DIRECTA | G138: No aplica | H138: PRESTAR SERVICIOS PROFESIONALES PARA APOYAR JURÍDICAMENTE LA EJECUCIÓN DE LAS ACCIONES REQUERIDAS PARA LA DEPURACIÓN DE LAS ACTUACIONES ADMINISTRATIVAS QUE CURSAN EN LA ALCALDÍA LOCAL DE LA CANDELARIA | I138: INVERSION | N138: O23011605570000002023 | O138: 1 | P138: 41794885 | Q138: TERESA HERREÑO SOLANO | R138: PERSONA NATURAL | T138: NO APLICA | U138: NO APLICA | W138: 60500000 | Y138: N/A | Z138: 0 | AA138: 60500000 | AB138: 55000000 | AC138: 2023-01-31 | AD138: 2023-02-01 | AE138: 2023-12-31 | AF138: 330 | AG138: N/A | AH138: N/A | AI138: N/A | AJ138: N/A | AK138: N/A | AM138: TERMINADO | AN138: 0.9090909091
A139: FDLC-CPS-126-2023 | B139: 2023 | C139: FDLC-CPS-126-2023 | D139: https://community.secop.gov.co/Public/Tendering/OpportunityDetail/Index?noticeUID=CO1.NTC.3891795&isFromPublicArea=True&isModal=true&asPopupView=true | E139: Contrato de Prestación de Servicios Profesionales y de Apoyo a la gestión | F139: CONTRATACION DIRECTA | G139: No aplica | H139: PRESTAR SERVICIOS PROFESIONALES AL FONDO DE DESARROLLO LOCAL DE LA CANDELARIA EN LOS TRÁMITES RELACIONADOS CON LOS PROCESOS PRECONTRACTUALES CONTRACTUALES Y POS CONTRACTUALES QUE SE ADELANTEN A TRAVÉS DE SECOP I Y II ASÍ COMO LA ADQUISICIÓN DE BIENES Y SERVICIOS A TRAVÉS DE LA TIENDA VIRTUAL DEL ESTADO COLOMBIANO | I139: INVERSION | N139: O23011605570000002021 | O139: 1 | P139: 1065578160 | Q139: FRANCISCO ORLANDO HERRERA TORRES | R139: PERSONA NATURAL | T139: NO APLICA | U139: NO APLICA | W139: 69300000 | Y139: N/A | Z139: 0 | AA139: =+W139+X139+Z139 -> 69300000 | AB139: 63000000 | AC139: 2023-01-31 | AD139: 2023-02-01 | AE139: 2023-12-31 | AF139: 330 | AG139: N/A | AH139: N/A | AI139: N/A | AJ139: N/A | AK139: N/A | AM139: TERMINADO | AN139: 0.9090909091
A140: FDLC-CPS-127-2023 | B140: 2023 | C140: FDLC-CPS-127-2023 | D140: https://community.secop.gov.co/Public/Tendering/OpportunityDetail/Index?noticeUID=CO1.NTC.3893985&isFromPublicArea=True&isModal=true&asPopupView=true | E140: Contrato de Prestación de Servicios Profesionales y de Apoyo a la gestión | F140: CONTRATACION DIRECTA | G140: No aplica | H140: PRESTAR SERVICIOS DE APOYO EN LAS ACTIVIDADES DE SEGURIDADY CONVIVENCIA CIUDADANA DE ACUERDO A LAS NECESIDADES YESTRATEGIAS DE LA ALCALDIA LOCAL DE LA CANDELARIA | I140: INVERSION | N140: O23011605570000002021 | O140: 1 | P140: 79301032 | Q140: OSCAR WILLIAM MONROY PEREZ | R140: PERSONA NATURAL | T140: NO APLICA | U140: NO APLICA | W140: 20680000 | Y140: 2 | Z140: 10340002 | AA140: =+W140+X140+Z140 -> 31020002 | AB140: 18800000 | AC140: 2023-01-31 | AD140: 2023-01-31 | AE140: 2024-06-15 | AF140: 330 | AG140: 2 | AH140: 165 | AI140: N/A | AJ140: N/A | AK140: N/A | AM140: EJECUCION | AN140: 0.606060567
A141: FDLC-CPS-128-2023 | B141: 2023 | C141: FDLC-CPS-128-2023 | D141: https://community.secop.gov.co/Public/Tendering/OpportunityDetail/Index?noticeUID=CO1.NTC.3892923&isFromPublicArea=True&isModal=true&asPopupView=true | E141: Contrato de Prestación de Servicios Profesionales y de Apoyo a la gestión | F141: CONTRATACION DIRECTA | G141: No aplica | H141: PRESTAR SERVICIOS PROFESIONALES AL FONDO DE DESARROLLO LOCAL DE LA CANDELARIA PARA APOYAR Y FORTALECER LAS GESTIONES CONTABLES DE LA ENTIDAD | I141: INVERSION | N141: O23011605570000002021 | O141: 1 | P141: 52293713 | Q141: NUBIA ALEXANDRA PARRA LACHE | R141: PERSONA NATURAL | T141: NO APLICA | U141: NO APLICA | W141: 49654000 | Y141: N/A | Z141: 0 | AA141: 49654000 | AB141: 45140000 | AC141: 2023-01-31 | AD141: 2023-01-31 | AE141: 2023-12-30 | AF141: 330 | AG141: 0 | AH141: NA | AI141: 80374036 | AJ141: CESION DE OSCAR ALEXANDER FLECHAS OROZCO | AK141: 2023-08-17 | AM141: TERMINADO | AN141: 0.9090909091
A142: FDLC-CPS-129-2023 | B142: 2023 | C142: FDLC-CPS-129-2023 | D142: https://community.secop.gov.co/Public/Tendering/OpportunityDetail/Index?noticeUID=CO1.NTC.3911780&isFromPublicArea=True&isModal=true&asPopupView=true | E142: Contrato de Prestación de Servicios Profesionales y de Apoyo a la gestión | F142: CONTRATACION DIRECTA | G142: No aplica | H142: PRESTACIÓN DE SERVICIOS DE APOYO ADMINISTRATIVO Y ASISTENCIAL A LA ALCALDIA LOCAL DE LA CANDELARIA EN LOS PROCESOS DE FORMACIÓN PARA LA PARTICIPACIÓN | I142: INVERSION | N142: O23011605550000002019 | O142: 1 | P142: 52288993 | Q142: DIANA YEISY MENDEZ CUERVO | R142: PERSONA NATURAL | T142: NO APLICA | U142: NO APLICA | W142: 27500000 | Y142: 1 | Z142: 4416668 | AA142: 31916668 | AB142: 24833333 | AC142: 2023-02-02 | AD142: 2023-02-03 | AE142: 2024-02-23 | AF142: 330 | AG142: 1 | AH142: 53 | AI142: N/A | AJ142: N/A | AK142: N/A | AM142: EJECUCION | AN142: 0.7780678422
A143: FDLC-CPS-130-2023 | B143: 2023 | C143: FDLC-CPS-130-2023 | D143: https://community.secop.gov.co/Public/Tendering/OpportunityDetail/Index?noticeUID=CO1.NTC.3903166&isFromPublicArea=True&isModal=true&asPopupView=true | E143: Contrato de Prestación de Servicios Profesionales y de Apoyo a la gestión | F143: CONTRATACION DIRECTA | G143: No aplica | H143: PRESTAR SERVICIOS DE APOYO A LA GESTIÓN DEL FONDO DE DESARROLLO LOCAL DE LA CANDELARIA EN EL CENTRO DE INFORMACIÓN Y DOCUMENTACIÓN CDI PARA EL MANEJO Y PROCESO DE DISTRIBUCIÓN DE CORRESPONDENCIA EN GENERAL | I143: INVERSION | N143: O23011605570000002021 | O143: 1 | P143: 1032471469 | Q143: JESICA ESTEFANIA CARRILLO CUBILLOS | R143: PERSONA NATURAL | T143: NO APLICA | U143: NO APLICA | W143: 28600000 | Y143: N/A | Z143: 0 | AA143: 28600000 | AB143: 28513333 | AC143: 2023-01-02 | AD143: 2023-02-02 | AE143: 2023-12-31 | AF143: 330 | AG143: N/A | AH143: N/A | AI143: N/A | AJ143: N/A | AK143: N/A | AM143: TERMINADO | AN143: 0.9969696853
A144: FDLC-CPS-131-2023 | B144: 2023 | C144: FDLC-CPS-131-2023 | D144: https://community.secop.gov.co/Public/Tendering/OpportunityDetail/Index?noticeUID=CO1.NTC.3905716&isFromPublicArea=True&isModal=true&asPopupView=true | E144: Contrato de Prestación de Servicios Profesionales y de Apoyo a la gestión | F144: CONTRATACION DIRECTA | G144: No aplica | H144: PRESTAR SERVICIOS PROFESIONALES PARA APOYAR JURÍDICAMENTE LA EJECUCIÓN DE LAS ACCIONES REQUERIDAS PARA LA DEPURACIÓN DE LAS ACTUACIONES ADMINISTRATIVAS QUE CURSAN EN LA ALCALDÍA LOCAL DE LA CANDELARIA | I144: INVERSION | N144: O23011605570000002023 | O144: 1 | P144: 52449287 | Q144: ANGELICA MARIA PRECIADO SUAREZ | R144: PERSONA NATURAL | T144: NO APLICA | U144: NO APLICA | W144: 60500000 | Y144: N/A | Z144: 0 | AA144: 60500000 | AB144: 60316667 | AC144: 2023-02-02 | AD144: 2023-02-02 | AE144: 2023-12-31 | AF144: 330 | AG144: N/A | AH144: N/A | AI144: N/A | AJ144: N/A | AK144: N/A | AM144: TERMINADO | AN144: 0.9969697025
A145: FDLC-CPS-132-2023 | B145: 2023 | C145: FDLC-CPS-132-2023 | D145: https://community.secop.gov.co/Public/Tendering/OpportunityDetail/Index?noticeUID=CO1.NTC.3905472&isFromPublicArea=True&isModal=true&asPopupView=true | E145: Contrato de Prestación de Servicios Profesionales y de Apoyo a la gestión | F145: CONTRATACION DIRECTA | G145: No aplica | H145: PRESTAR SERVICIOS PROFESIONALES AL FONDO DE DESARROLLO LOCAL DE LA CANDELARIA PARA APOYAR EN LA FORMULACION PRESENTACIÓN EVALUACIÓN Y SEGUIMIENTO DE LOS PROYECTOS DE INVERSION EN LA LOCALIDAD | I145: INVERSION | N145: O23011605570000002021 | O145: 1 | P145: 1089242261 | Q145: ROMULO SIMON ESTRELLA PANTOJA | R145: PERSONA NATURAL | T145: NO APLICA | U145: NO APLICA | W145: 27084000 | X145: -5868200 | Y145: N/A | Z145: 0 | AA145: 21215800 | AB145: 21215800 | AC145: 2023-02-02 | AD145: 2023-02-03 | AE145: 2023-06-23 | AF145: 180 | AG145: N/A | AH145: N/A | AI145: N/A | AJ145: N/A | AK145: N/A | AM145: TERMINADO | AN145: =IF(ISERROR(AB145/AA145),"-",(AB145/AA145)) -> 1
A146: FDLC-CPS-133-2023 | B146: 2023 | C146: FDLC-CPS-133-2023 | D146: https://community.secop.gov.co/Public/Tendering/OpportunityDetail/Index?noticeUID=CO1.NTC.3905558&isFromPublicArea=True&isModal=true&asPopupView=true | E146: Contrato de Prestación de Servicios Profesionales y de Apoyo a la gestión | F146: CONTRATACION DIRECTA | G146: No aplica | H146: PRESTAR SERVICIOS PROFESIONALES PARA APOYAR EN LA FORMULACION TECNICA Y SEGUIMIENTOS DE PLANES POLITICAS PROGRAMAS Y PROYECTOS RELACIONADOS CON OBRAS E INFRAESTRUCTURA QUE DESARROLLE LA ALCALDIA LOCAL DE LA CANDELARIA | I146: INVERSION | N146: O23011604490000002020 | O146: 1 | P146: 1032475141 | Q146: LAURA DANIELA JACOME HERNANDEZ | R146: PERSONA NATURAL | T146: NO APLICA | U146: NO APLICA | W146: 66000000 | Y146: 2 | Z146: 33000002 | AA146: 99000002 | AB146: 59800000 | AC146: 2023-02-02 | AD146: 2023-02-02 | AE146: 2024-06-15 | AF146: 330 | AG146: 2 | AH146: 165 | AI146: N/A | AJ146: N/A | AK146: N/A | AM146: EJECUCION | AN146: 0.6040403918
A147: FDLC-CPS-134-2023 | B147: 2023 | C147: FDLC-CPS-134-2023 | D147: https://community.secop.gov.co/Public/Tendering/OpportunityDetail/Index?noticeUID=CO1.NTC.3906522&isFromPublicArea=True&isModal=true&asPopupView=true | E147: Contrato de Prestación de Servicios Profesionales y de Apoyo a la gestión | F147: CONTRATACION DIRECTA | G147: No aplica | H147: PRESTAR SERVICIOS PROFESIONALES EN MATERIA JURIDICA Y EN ARTICULACIÓN INTERINSTITUCIONAL A LA ALCALDIA LOCAL DE LA CANDELARIA | I147: INVERSION | N147: O23011605570000002021 | O147: 1 | P147: 1095800182 | Q147: LEIDY KARINA CASTILLO PUENTES | R147: PERSONA NATURAL | T147: NO APLICA | U147: NO APLICA | W147: 48000000 | Y147: 1 | Z147: 12000001 | AA147: 60000001 | AB147: 53800000 | AC147: 2023-02-02 | AD147: 2023-02-02 | AE147: 2023-12-01 | AF147: 240 | AG147: 1 | AH147: 60 | AI147: N/A | AJ147: N/A | AK147: N/A | AM147: TERMINADO | AN147: 0.8966666517
A148: FDLC-CPS-135-2023 | B148: 2023 | C148: FDLC-CPS-135-2023 | D148: https://community.secop.gov.co/Public/Tendering/OpportunityDetail/Index?noticeUID=CO1.NTC.3906354&isFromPublicArea=True&isModal=true&asPopupView=true | E148: Contrato de Prestación de Servicios Profesionales y de Apoyo a la gestión | F148: CONTRATACION DIRECTA | G148: No aplica | H148: PRESTAR SERVICIOS PROFESIONALES EN MATERIA JURIDICA Y EN ARTICULACIÓN INTERINSTITUCIONAL A LA ALCALDIA LOCAL DE LACANDELARIA | I148: INVERSION | N148: O23011605570000002021 | O148: 1 | P148: 1012433345 | Q148: LISETH VIVIANA GUERRA GONZALEZ | R148: PERSONA NATURAL | T148: NO APLICA | U148: NO APLICA | W148: 48000000 | Y148: 1 | Z148: 6000001 | AA148: 54000001 | AB148: 54000000 | AC148: 2023-02-02 | AD148: 2023-02-02 | AE148: 2023-11-01 | AF148: 240 | AG148: 1 | AH148: 30 | AI148: 1077973881 | AJ148: CESION DE JULIANA VASQUEZ KOMMAN | AK148: 2023-07-27 | AM148: TERMINADO | AN148: 0.9999999815
A149: FDLC-CPS-136-2023 | B149: 2023 | C149: FDLC-CPS-136-2023 | D149: https://community.secop.gov.co/Public/Tendering/OpportunityDetail/Index?noticeUID=CO1.NTC.3906644&isFromPublicArea=True&isModal=true&asPopupView=true | E149: Contrato de Prestación de Servicios Profesionales y de Apoyo a la gestión | F149: CONTRATACION DIRECTA | G149: No aplica | H149: PRESTAR SERVICIOS TÉCNICOS AL FONDO DE DESARROLLO LOCAL DE LA CANDELARIA PARA APOYAR EL SEGUIMIENTO Y EJECUCION DELOS PROGRAMAS AMBIENTALES EN LA LOCALIDAD | I149: INVERSION | N149: O23011605570000002021 | O149: 1 | P149: 1010223608 | Q149: LAURA CAMILA QUIROGA MILLAN | R149: PERSONA NATURAL | T149: NO APLICA | U149: NO APLICA | W149: 35167000 | Y149: N/A | Z149: 0 | AA149: =+W149+X149+Z149 -> 35167000 | AB149: 31756867 | AC149: 2023-02-03 | AD149: 2023-02-03 | AE149: 2023-12-31 | AF149: 330 | AG149: N/A | AH149: N/A | AI149: N/A | AJ149: N/A | AK149: N/A | AM149: TERMINADO | AN149: 0.9030303125
A150: FDLC-CPS-137-2023 | B150: 2023 | C150: FDLC-CPS-137-2023 | D150: https://community.secop.gov.co/Public/Tendering/OpportunityDetail/Index?noticeUID=CO1.NTC.3911485&isFromPublicArea=True&isModal=true&asPopupView=true | E150: Contrato de Prestación de Servicios Profesionales y de Apoyo a la gestión | F150: CONTRATACION DIRECTA | G150: No aplica | H150: PRESTAR SERVICIOS ASISTENCIALES PARA APOYAR EN LAS TAREASRELACIONADAS CON LA GESTIÓN DOCUMENTAL DE LA ALCALDÍALOCAL DE LA CANDELARIA | I150: INVERSION | N150: O23011605570000002021 | O150: 1 | P150: 53121023 | Q150: NUBIA ALEJANDRA TOVAR NUÑEZ | R150: PERSONA NATURAL | T150: NO APLICA | U150: NO APLICA | W150: 21600000 | Y150: 2 | Z150: 5400002 | AA150: =+W150+X150+Z150 -> 27000002 | AB150: 26820000 | AC150: 2023-02-02 | AD150: 2023-02-03 | AE150: 2023-12-02 | AF150: 240 | AG150: 2 | AH150: 60 | AI150: N/A | AJ150: N/A | AK150: N/A | AM150: TERMINADO | AN150: 0.9933332598
A151: FDLC-CPS-138-2023 | B151: 2023 | C151: FDLC-CPS-138-2023 | D151: https://community.secop.gov.co/Public/Tendering/OpportunityDetail/Index?noticeUID=CO1.NTC.3912020&isFromPublicArea=True&isModal=true&asPopupView=true | E151: Contrato de Prestación de Servicios Profesionales y de Apoyo a la gestión | F151: CONTRATACION DIRECTA | G151: No aplica | H151: PRESTAR SERVICIOS ASISTENCIALES AL ÁREA DE GESTIÓN DEDESARROLLO LOCAL EN LAS ACTIVIDADES DE GESTIÓNADMINISTRATIVA | I151: INVERSION | N151: O23011605570000002021 | O151: 1 | P151: 52443839 | Q151: ANDREA LILIANA MARTINEZ ACOSTA | R151: PERSONA NATURAL | T151: NO APLICA | U151: NO APLICA | W151: 29700000 | Y151: 2 | Z151: 14850002 | AA151: 44550002 | AB151: 26820000 | AC151: 2023-02-02 | AD151: 2023-02-03 | AE151: 2024-06-15 | AF151: 330 | AG151: 2 | AH151: 165 | AI151: N/A | AJ151: N/A | AK151: N/A | AM151: EJECUCION | AN151: 0.602020175
A152: FDLC-CPS-139-2023 | B152: 2023 | C152: FDLC-CPS-139-2023 | D152: https://community.secop.gov.co/Public/Tendering/OpportunityDetail/Index?noticeUID=CO1.NTC.3913049&isFromPublicArea=True&isModal=true&asPopupView=true | E152: Contrato de Prestación de Servicios Profesionales y de Apoyo a la gestión | F152: CONTRATACION DIRECTA | G152: No aplica | H152: PRESTACIÓN DE SERVICIOS DE APOYO LOGÍSTICO EN LOS EVENTOS Y ACTIVIDADES DE LA ADMINISTRACIÓN LOCAL DE LA LOCALIDAD DE LA CANDELARIA | I152: INVERSION | N152: O23011605570000002021 | O152: 1 | P152: 1010181876 | Q152: DAVID ANDRÉS SEGURA ORTIZ | R152: PERSONA NATURAL | T152: NO APLICA | U152: NO APLICA | W152: 29700000 | Y152: N/A | Z152: 0 | AA152: =+W152+X152+Z152 -> 29700000 | AB152: 26820000 | AC152: 2023-02-02 | AD152: 2023-02-03 | AE152: 2023-12-31 | AF152: 330 | AG152: N/A | AH152: N/A | AI152: 1026279653 | AJ152: CESION DE DIEGO JOHAN VARGAS TORRES | AK152: 2023-06-20 | AM152: TERMINADO | AN152: 0.903030303
A153: FDLC-CPS-140-2023 | B153: 2023 | C153: FDLC-CPS-140-2023 | D153: https://community.secop.gov.co/Public/Tendering/OpportunityDetail/Index?noticeUID=CO1.NTC.3920935&isFromPublicArea=True&isModal=true&asPopupView=true | E153: Contrato de Prestación de Servicios Profesionales y de Apoyo a la gestión | F153: CONTRATACION DIRECTA | G153: No aplica | H153: PRESTAR SERVICIOS PROFESIONALES AL FONDO DE DESARROLLO LOCAL DE LA CANDELARIA PARA APOYAR EL SEGUIMIENTO LIQUIDACIÓN DEPURACIÓN Y CONSOLIDACIÓN DE LA INFORMACIÓN DE LAS OBLIGACIONES POR PAGAR DERIVADAS DE LA GESTIÓN CONTRACTUAL DE LA ENTIDAD Y SU RESPECTIVA LIQUIDACION | I153: INVERSION | N153: O23011605570000002021 | O153: 1 | P153: 53120588 | Q153: YOSMILE RODRÍGUEZ CUARTAS | R153: PERSONA NATURAL | T153: NO APLICA | U153: NO APLICA | W153: 30000000 | Y153: 1 | Z153: 15000001 | AA153: 45000001 | AB153: 44000000 | AC153: 2023-02-03 | AD153: 2023-02-07 | AE153: 2023-11-06 | AF153: 180 | AG153: 1 | AH153: 90 | AI153: N/A | AJ153: N/A | AK153: N/A | AM153: TERMINADO | AN153: 0.977777756
A154: FDLC-CPS-141-2023 | B154: 2023 | C154: FDLC-CPS-141-2023 | D154: https://community.secop.gov.co/Public/Tendering/OpportunityDetail/Index?noticeUID=CO1.NTC.3922911&isFromPublicArea=True&isModal=true&asPopupView=true | E154: Contrato de Prestación de Servicios Profesionales y de Apoyo a la gestión | F154: CONTRATACION DIRECTA | G154: No aplica | H154: PRESTAR SERVICIOS PROFESIONALES PARA APOYAR JURÍDICAMENTE LA EJECUCIÓN DE LAS ACCIONES REQUERIDAS PARA LA DEPURACIÓN DE LAS ACTUACIONES ADMINISTRATIVAS QUE CURSAN EN LA ALCALDÍA LOCAL DE LA CANDELARIA | I154: INVERSION | N154: O23011605570000002023 | O154: 1 | P154: 49719195 | Q154: JULIETA LUCIA FAJARDO TELLEZ | R154: PERSONA NATURAL | T154: NO APLICA | U154: NO APLICA | W154: 60500000 | Y154: 2 | Z154: 11000002 | AA154: 71500002 | AB154: 53716667 | AC154: 2023-02-06 | AD154: 2023-02-08 | AE154: 2024-03-06 | AF154: 330 | AG154: 2 | AH154: 67 | AI154: N/A | AJ154: N/A | AK154: N/A | AM154: EJECUCION | AN154: 0.7512820349
A155: FDLC-CPS-142-2023 | B155: 2023 | C155: FDLC-CPS-142-2023 | D155: https://community.secop.gov.co/Public/Tendering/OpportunityDetail/Index?noticeUID=CO1.NTC.3927612&isFromPublicArea=True&isModal=true&asPopupView=true | E155: Contrato de Prestación de Servicios Profesionales y de Apoyo a la gestión | F155: CONTRATACION DIRECTA | G155: No aplica | H155: APOYAR AL A ALCALDE SA LOCAL EN EL FORTALECIMIENTO E INCLUSIÓN DE LAS COMUNIDADES NEGRAS AFROCOLOMBIANAS Y PALENQUERAS EN EL MARCO DE LA POLÍTICA PÚBLICA DISTRITAL AFRODESCENDIENTES Y LOS ESPACIOS DE PARTICIPACIÓN | I155: INVERSION | N155: O23011601060000001664 | O155: 1 | P155: 1026275427 | Q155: KAREN GUISELLA GUTIERREZ | R155: PERSONA NATURAL | T155: NO APLICA | U155: NO APLICA | W155: 40000000 | Y155: 1 | Z155: 5000001 | AA155: =+W155+X155+Z155 -> 45000001 | AB155: 45000000 | AC155: 2023-02-03 | AD155: 2023-02-06 | AE155: 2023-11-05 | AF155: 240 | AG155: 1 | AH155: 30 | AI155: N/A | AJ155: N/A | AK155: N/A | AM155: TERMINADO | AN155: 0.9999999778
A156: FDLC-CPS-143-2023 | B156: 2023 | C156: FDLC-CPS-143-2023 | D156: https://community.secop.gov.co/Public/Tendering/OpportunityDetail/Index?noticeUID=CO1.NTC.3927190&isFromPublicArea=True&isModal=true&asPopupView=true | E156: Contrato de Prestación de Servicios Profesionales y de Apoyo a la gestión | F156: CONTRATACION DIRECTA | G156: No aplica | H156: PRESTAR SERVICIOS PROFESIONALES PARA APOYAR JURÍDICAMENTE LA EJECUCIÓN DE LAS ACCIONES REQUERIDAS PARA LA DEPURACIÓN DE LAS ACTUACIONES ADMINISTRATIVAS QUE CURSAN EN LA ALCALDÍA LOCAL DE LA CANDELARIA | I156: INVERSION | N156: O23011605570000002023 | O156: 1 | P156: 80865633 | Q156: ANDRES FABIAN PEÑA MURILLO | R156: PERSONA NATURAL | T156: NO APLICA | U156: NO APLICA | W156: 60500000 | Y156: N/A | Z156: 0 | AA156: 60500000 | AB156: 53900000 | AC156: 2023-02-03 | AD156: 2023-02-07 | AE156: 2023-12-31 | AF156: 330 | AG156: N/A | AH156: N/A | AI156: 80865633 | AJ156: CESION DE ANDRES FABIAN PEÑA MURILLO | AK156: 2023-04-28 | AM156: TERMINADO | AN156: 0.8909090909
A157: FDLC-CPS-144-2023 | B157: 2023 | C157: FDLC-CPS-144-2023 | D157: https://community.secop.gov.co/Public/Tendering/OpportunityDetail/Index?noticeUID=CO1.NTC.3937313&isFromPublicArea=True&isModal=true&asPopupView=true | E157: Contrato de Prestación de Servicios Profesionales y de Apoyo a la gestión | F157: CONTRATACION DIRECTA | G157: No aplica | H157: PRESTAR SERVICIOS DE APOYO EN LAS ACTIVIDADES DE PROTECCIÓN CUIDADO Y CONSERVACIÓN DE LA MALLA VIAL COMO COMPONENTE PATRIMONIAL DE LA CANDELARIA | I157: INVERSION | N157: O23011604490000002020 | O157: 1 | P157: 52807317 | Q157: JENY GONZALEZ CANTOR | R157: PERSONA NATURAL | T157: NO APLICA | U157: NO APLICA | W157: 9250000 | X157: -1048334 | Y157: N/A | Z157: 0 | AA157: 8201666 | AB157: 8201666 | AC157: 2023-02-06 | AD157: 2023-02-08 | AE157: 2023-06-20 | AF157: 150 | AG157: N/A | AH157: N/A | AI157: N/A | AJ157: N/A | AK157: N/A | AM157: TERMINADO | AN157: 1
A158: FDLC-CPS-145-2023 | B158: 2023 | C158: FDLC-CPS-145-2023 | D158: https://community.secop.gov.co/Public/Tendering/OpportunityDetail/Index?noticeUID=CO1.NTC.3937844&isFromPublicArea=True&isModal=true&asPopupView=true | E158: Contrato de Prestación de Servicios Profesionales y de Apoyo a la gestión | F158: CONTRATACION DIRECTA | G158: No aplica | H158: PRESTAR SERVICIOS DE APOYO EN LAS ACTIVIDADES DE PROTECCIÓN CUIDADO Y CONSERVACIÓN DE LA MALLA VIAL COMO COMPONENTE PATRIMONIAL DE LA CANDELARIA | I158: INVERSION | N158: O23011604490000002020 | O158: 1 | P158: 1193555922 | Q158: LIZ DAIRA TORRES SALDAÑA | R158: PERSONA NATURAL | T158: NO APLICA | U158: NO APLICA | W158: 9250000 | X158: -1110000 | Y158: N/A | Z158: 0 | AA158: 8140000 | AB158: 8140000 | AC158: 2023-02-06 | AD158: 2023-02-09 | AE158: 2023-06-20 | AF158: 150 | AG158: N/A | AH158: N/A | AI158: N/A | AJ158: N/A | AK158: N/A | AM158: TERMINADO | AN158: 1
A159: FDLC-CPS-146-2023 | B159: 2023 | C159: FDLC-CPS-146-2023 | D159: https://community.secop.gov.co/Public/Tendering/OpportunityDetail/Index?noticeUID=CO1.NTC.3974963&isFromPublicArea=True&isModal=true&asPopupView=true | E159: Contrato de Prestación de Servicios Profesionales y de Apoyo a la gestión | F159: CONTRATACION DIRECTA | G159: No aplica | H159: PRESTAR SERVICIOS PROFESIONALES DE SERVICIOS PROFESIONALES DE APOYO EN LA ADMINISTRACION DEL PUNTO VIVE DIGITAL DE LA LOCALIDAD LA CANDELARIA PARA FOMENTAR EN LA COMUNIDAD EL USO DE LAS TICS COMO ESTRATEGIA DE APOYO A LOS EMPRENDIMIENTOS CULTURALES Y CREATIVOS LOCALES | I159: INVERSION | N159: O23011601060000001628 | O159: 1 | P159: 1093140396 | Q159: JESUS ESGUERRA DELGADO | R159: PERSONA NATURAL | T159: NO APLICA | U159: NO APLICA | W159: 49654000 | Y159: N/A | Z159: 0 | AA159: 49654000 | AB159: 43785800 | AC159: 2023-02-10 | AD159: 2023-02-10 | AE159: 2023-12-31 | AF159: 330 | AG159: N/A | AH159: N/A | AI159: N/A | AJ159: N/A | AK159: N/A | AM159: TERMINADO | AN159: 0.8818181818
A160: FDLC-CPS-147-2023 | B160: 2023 | C160: FDLC-CPS-147-2023 | D160: https://community.secop.gov.co/Public/Tendering/OpportunityDetail/Index?noticeUID=CO1.NTC.3973680&isFromPublicArea=True&isModal=true&asPopupView=true | E160: Contrato de Prestación de Servicios Profesionales y de Apoyo a la gestión | F160: CONTRATACION DIRECTA | G160: No aplica | H160: PRESTAR SERVICIOS ASISTENCIALES PARA APOYAR EN LAS TAREAS RELACIONADAS CON LA GESTIÓN DOCUMENTAL DE LA ALCALDIA LOCAL DE LA CANDELARIA | I160: INVERSION | N160: O23011605570000002021 | O160: 1 | P160: 79560172 | Q160: LUIS BARRIGA PINZON | R160: PERSONA NATURAL | T160: NO APLICA | U160: NO APLICA | W160: 19800000 | Y160: N/A | Z160: 0 | AA160: 19800000 | AB160: 17460000 | AC160: 2023-02-10 | AD160: 2023-02-10 | AE160: 2023-12-31 | AF160: 330 | AG160: N/A | AH160: N/A | AI160: N/A | AJ160: N/A | AK160: N/A | AM160: TERMINADO | AN160: 0.8818181818
A161: FDLC-COBM-148-2023 | B161: 2023 | C161: FDLC-COBM-148-2023 | D161: https://community.secop.gov.co/Public/Tendering/OpportunityDetail/Index?noticeUID=CO1.NTC.4003955&isFromPublicArea=True&isModal=False | E161: SUMINISTRO DE SERVICIOS | F161: SELECCION ABREVIADA BOLSA MERCANTIL | G161: No aplica | H161: La SCB actuará en nombre propio, pero por cuenta de la Entidad, quien en virtud de este contrato de comisión ostenta la calidad de comisionista comprador, adquirirá en el Mercado de Compras Públicas (MCP), "PRESTACIÓN DEL SERVICIO DE VIGILANCIA Y SEGURIDAD PRIVADA IINTEGRAL PERMANENTE PARA TODOS LOS BIENES MUEBLES E INMUEBLES DE PROPIEDAD DE LA ENTIDAD, Y DE LOS QUE LEGALMENTE SEA O LLEGARE A SER RESPONSABLE EL FONDO DE DESARROLLO LOCAL DE LA CANDELARIA." | I161: FUNCIONAMIENTO | N161: -O21202020080585250 | O161: 1 | P161: 830103828 | Q161: AGROBOLSA S.A. | R161: PERSONA JURIDICA | T161: NO APLICA | U161: NO APLICA | W161: 1101339847 | Y161: 1 | Z161: 124439507 | AA161: 1225779354 | AB161: 993156127 | AC161: 2023-02-14 | AD161: 2023-02-14 | AE161: 2024-01-27 | AF161: 360 | AG161: 1 | AH161: 30 | AI161: N/A | AJ161: N/A | AK161: N/A | AM161: TERMINADO | AN161: 0.8102242249
A162: FDLC-CPS-149-2023 | B162: 2023 | C162: FDLC-CPS-149-2023 | D162: https://community.secop.gov.co/Public/Tendering/OpportunityDetail/Index?noticeUID=CO1.NTC.3996340&isFromPublicArea=True&isModal=true&asPopupView=true | E162: Contrato de Prestación de Servicios Profesionales y de Apoyo a la gestión | F162: CONTRATACION DIRECTA | G162: No aplica | H162: PRESTAR SERVICIOS PROFESIONALES PARAAPOYAR EN LA FORMULACION TECNICA Y SEGUIMIENTOS DE PLANES POLITICASPROGRAMAS Y PROYECTOS RELACIONADOS CON OBRAS E INFRAESTRUCTURA QUEDESARROLLE LA ALCALDIA LOCAL DE LA CANDELARIA | I162: INVERSION | N162: O23011604490000002020 | O162: 1 | P162: 1018449224 | Q162: DAVID ALEJANDRO HURTADO PALMA | R162: PERSONA NATURAL | T162: NO APLICA | U162: NO APLICA | W162: 18056000 | Y162: N/A | Z162: 0 | AA162: 18056000 | AB162: 11435467 | AC162: 2023-02-14 | AD162: 2023-02-15 | AE162: 2023-06-13 | AF162: 120 | AG162: N/A | AH162: N/A | AI162: N/A | AJ162: N/A | AK162: N/A | AM162: TERMINADO | AN162: 0.6333333518
A163: FDLC-CPS-150-2023 | B163: 2023 | C163: FDLC-CPS-150-2023 | D163: https://community.secop.gov.co/Public/Tendering/OpportunityDetail/Index?noticeUID=CO1.NTC.3996224&isFromPublicArea=True&isModal=true&asPopupView=true | E163: Contrato de Prestación de Servicios Profesionales y de Apoyo a la gestión | F163: CONTRATACION DIRECTA | G163: No aplica | H163: PRESTAR SERVICIOS PROFESIONALES PARA APOYAR A LA ALCALDÍA LOCAL DE LA CANDELARIA EN LA PROMOCIÓN SEGUIMIENTO ACOMPAÑAMIENTO Y ATENCIÓN DE LAS INSTANCIAS DE PARTICIPACIÓN JUVENIL DE LA LOCALIDAD ASI COMO LOS PROCESOS COMUNITARIOS DE JUVENTUDES Y DEMÁS ESPACIOS DE PARTICIPACIÓN DESIGNADOS | I163: INVERSION | N163: O23011605570000002021 | O163: 1 | P163: 1010228793 | Q163: DAVID ALEJANDRO LUNA BARRERA | R163: PERSONA NATURAL | T163: NO APLICA | U163: NO APLICA | W163: 55000000 | X163: -4283333 | Y163: N/A | Z163: 0 | AA163: 50716667 | AB163: 12166667 | AC163: 2023-02-14 | AD163: 2023-02-16 | AE163: 2023-04-28 | AF163: 330 | AG163: N/A | AH163: N/A | AI163: N/A | AJ163: N/A | AK163: N/A | AM163: TERMINADO | AN163: 0.2398948456
A164: FDLC-CPS-151-2023 | B164: 2023 | C164: FDLC-CPS-151-2023 | D164: https://community.secop.gov.co/Public/Tendering/OpportunityDetail/Index?noticeUID=CO1.NTC.3996328&isFromPublicArea=True&isModal=true&asPopupView=true | E164: Contrato de Prestación de Servicios Profesionales y de Apoyo a la gestión | F164: CONTRATACION DIRECTA | G164: No aplica | H164: PRESTAR SERVICIOS ASISTENCIALES AL ÁREA DE GESTIÓN DE DESARROLLO LOCAL EN LOS PROCESOS Y ACTIVIDADES DE GESTIÓN ADMINISTRATIVA DE LOS PROYECTOS CULTURALES ARTÍSTICOS Y PATRIMONIALES DE LA ENTIDAD Y DEMÁS ASIGNADOS POR EL ÁREA DE GESTIÓN DEL DESARROLLO LOCAL PARA EL CUMPLIMIENTO DE LAS METAS DEL PLAN DE DESARROLLO LOCAL 20212024 | I164: INVERSION | N164: O23011601210000001625 | O164: 1 | P164: 1016049004 | Q164: LUIS HERNANDO AMAYA | R164: PERSONA NATURAL | T164: NO APLICA | U164: NO APLICA | W164: 19800000 | Y164: N/A | Z164: 0 | AA164: 19800000 | AB164: 17220000 | AC164: 2023-02-13 | AD164: 2023-02-14 | AE164: 2023-12-31 | AF164: 330 | AG164: N/A | AH164: N/A | AI164: N/A | AJ164: N/A | AK164: N/A | AM164: TERMINADO | AN164: 0.8696969697
A165: FDLC-CPS-152-2023 | B165: 2023 | C165: FDLC-CPS-152-2023 | D165: https://community.secop.gov.co/Public/Tendering/OpportunityDetail/Index?noticeUID=CO1.NTC.3999888&isFromPublicArea=True&isModal=true&asPopupView=true | E165: Contrato de Prestación de Servicios Profesionales y de Apoyo a la gestión | F165: CONTRATACION DIRECTA | G165: No aplica | H165: PRESTAR SERVICIOS PROFESIONALES ALFONDO DE DESARROLLO LOCAL DE LA CANDELARIA PARA LA FORMULACIÓN Y SEGUIMIENTODE PLANES POLITICAS PROGRAMAS Y PROYECTOS DE INVERSIÓN RELACIONADOS CON LAESTRATEGIA DE CUIDADO PREVENCIÓN DE VIOLENCIAS Y PROYECTOS CON ENFOQUE DEGÉNERO DEL PLAN DE DESARROLLO LOCAL | I165: INVERSION | N165: O23011601060000001662 | O165: 1 | P165: 52540454 | Q165: ALBA LUCIA CRUZ CARDENAS | R165: PERSONA NATURAL | T165: NO APLICA | U165: NO APLICA | W165: 22570000 | Y165: 1 | Z165: 10833601 | AA165: 33403601 | AB165: 33403600 | AC165: 2023-02-14 | AD165: 2023-02-16 | AE165: 2023-09-27 | AF165: 150 | AG165: 1 | AH165: 72 | AI165: N/A | AJ165: N/A | AK165: N/A | AM165: TERMINADO | AN165: 0.9999999701
A166: FDLC-CPS-153-2023 | B166: 2023 | C166: FDLC-CPS-153-2023 | D166: https://community.secop.gov.co/Public/Tendering/OpportunityDetail/Index?noticeUID=CO1.NTC.4003174&isFromPublicArea=True&isModal=true&asPopupView=true | E166: Contrato de Prestación de Servicios Profesionales y de Apoyo a la gestión | F166: CONTRATACION DIRECTA | G166: No aplica | H166: PRESTAR SERVICIOS ASISTENCIALES PARA APOYAR EN LAS TAREAS RELACIONADAS CON LA GESTIÓN DOCUMENTAL DE LA ALCALDIA LOCAL DE LA CANDELARIA | I166: INVERSION | N166: O23011605570000002021 | O166: 1 | P166: 1030639805 | Q166: JEFERSON PARRA TRIVIÑO | R166: PERSONA NATURAL | T166: NO APLICA | U166: NO APLICA | W166: 19800000 | Y166: N/A | Z166: 0 | AA166: 19800000 | AB166: 17040000 | AC166: 2023-02-14 | AD166: 2023-02-17 | AE166: 2023-12-31 | AF166: 330 | AG166: N/A | AH166: N/A | AI166: N/A | AJ166: N/A | AK166: N/A | AM166: TERMINADO | AN166: 0.8606060606
A167: FDLC-CPS-154-2023 | B167: 2023 | C167: FDLC-CPS-154-2023 | D167: https://community.secop.gov.co/Public/Tendering/OpportunityDetail/Index?noticeUID=CO1.NTC.4011728&isFromPublicArea=True&isModal=true&asPopupView=true | E167: Contrato de Prestación de Servicios Profesionales y de Apoyo a la gestión | F167: CONTRATACION DIRECTA | G167: No aplica | H167: PRESTAR SERVICIOS PROFESIONALES AL FONDO DE DESARROLLO LOCAL DE LA CANDELARIA PARA LA PLANEACIÓN FORMULACIÓN EVALUACIÓN ARTICULACIÓN ACOMPAÑAMIENTO Y SEGUIMIENTO DEL PROYECTO DE INVERSIÓN 1608 LA CANDELARIA PEDAGÓGICA BASES SÓLIDAS PARA LA VIDA Y DE LOS PROYECTOS DE INVERSIÓN ASIGNADOS POR EL ALCALDE SA LOCAL | I167: INVERSION | N167: O23011601120000001608 | O167: 1 | P167: 1022366476 | Q167: CRISTHIAN CAMILO GÓMEZ LÓPEZ | R167: PERSONA NATURAL | T167: NO APLICA | U167: NO APLICA | W167: 47397000 | Y167: 1 | Z167: 13542001 | AA167: 60939001 | AB167: 42883000 | AC167: 2023-02-16 | AD167: 2023-02-16 | AE167: 2024-03-31 | AF167: 330 | AG167: 1 | AH167: 90 | AI167: 1010166790 | AJ167: CESION DE GABRIEL GUTIERREZ GARCIA | AK167: 2024-01-12 | AM167: EJECUCION | AN167: 0.7037036922
A168: FDLC-CPS-155-2023 | B168: 2023 | C168: FDLC-CPS-155-2023 | D168: https://community.secop.gov.co/Public/Tendering/OpportunityDetail/Index?noticeUID=CO1.NTC.4034608&isFromPublicArea=True&isModal=true&asPopupView=true | E168: Contrato de Prestación de Servicios Profesionales y de Apoyo a la gestión | F168: CONTRATACION DIRECTA | G168: No aplica | H168: PRESTAR SERVICIOS PROFESIONALES PARA APOYAR EN LA FORMULACION PRESENTACIÓN EVALUACIÓN Y SEGUIMIENTO JURÍDICO DEL PROYECTO 1606 LA CANDELARIA PEDAGÓGICA MÁS Y MEJOR TIEMPO EN LOS COLEGIOS Y DE LOS PROYECTOS DE INVERSION DE LA ALCALDÍA LOCAL DE LA CANDELARIA | I168: INVERSION | N168: O23011601140000001606 | O168: 1 | P168: 60348070 | Q168: EDEL ZARAY RAMIREZ LEON | R168: PERSONA NATURAL | T168: NO APLICA | U168: NO APLICA | W168: 27084000 | Y168: 1 | Z168: 12940134 | AA168: 40024134 | AB168: 39873666 | AC168: 2023-02-20 | AD168: 2023-02-20 | AE168: 2023-11-14 | AF168: 180 | AG168: 1 | AH168: 86 | AI168: N/A | AJ168: N/A | AK168: N/A | AM168: TERMINADO | AN168: 0.9962405683
A169: FDLC-CPS-156-2023 | B169: 2023 | C169: FDLC-CPS-156-2023 | D169: https://community.secop.gov.co/Public/Tendering/OpportunityDetail/Index?noticeUID=CO1.NTC.4035062&isFromPublicArea=True&isModal=true&asPopupView=true | E169: Contrato de Prestación de Servicios Profesionales y de Apoyo a la gestión | F169: CONTRATACION DIRECTA | G169: No aplica | H169: PRESTAR SERVICIOS PROFESIONALES AL FONDO DE DESARROLLO LOCAL DE LA CANDELARIA EN ASUNTOS RELACIONADOS CON LA GESTIÓN Y ATENCIÓN DEL RIESGO Y CAMBIO CLIMÁTICO EN LA LOCALIDAD | I169: INVERSION | N169: O23011605570000002021 | O169: 1 | P169: 1010201105 | Q169: JESUS DANIEL OÑATE OLIVELLA | R169: PERSONA NATURAL | T169: NO APLICA | U169: NO APLICA | W169: 55000000 | Y169: N/A | Z169: 0 | AA169: 55000000 | AB169: 46833333 | AC169: 2023-02-20 | AD169: 2023-02-20 | AE169: 2023-12-31 | AF169: 330 | AG169: N/A | AH169: N/A | AI169: N/A | AJ169: N/A | AK169: N/A | AM169: TERMINADO | AN169: 0.8515151455
A170: FDLC-CPS-157-2023 | B170: 2023 | C170: FDLC-CPS-157-2023 | D170: https://community.secop.gov.co/Public/Tendering/OpportunityDetail/Index?noticeUID=CO1.NTC.4062038&isFromPublicArea=True&isModal=true&asPopupView=true | E170: Contrato de Prestación de Servicios Profesionales y de Apoyo a la gestión | F170: CONTRATACION DIRECTA | G170: No aplica | H170: PRESTAR SERVICIOS PROFESIONALES PARA APOYAR JURÍDICAMENTE LA EJECUCIÓN DE LAS ACCIONES REQUERIDAS PARA LA DEPURACIÓN DE LAS ACTUACIONES ADMINISTRATIVAS QUE CURSAN EN LA ALCALDÍA LOCAL DE LA CANDELARIA | I170: INVERSION | N170: O23011605570000002023 | O170: 1 | P170: 4266577 | Q170: FABIO HERNÁN DAZA MORENO | R170: PERSONA NATURAL | T170: NO APLICA | U170: NO APLICA | W170: 60500000 | Y170: N/A | Z170: 0 | AA170: 60500000 | AB170: 50233333 | AC170: 00/01/1900 | AD170: 2023-02-27 | AE170: 2023-12-31 | AF170: 330 | AG170: N/A | AH170: N/A | AI170: N/A | AJ170: N/A | AK170: N/A | AM170: TERMINADO | AN170: 0.8303030248
A171: FDLC-CPS-158-2023 | B171: 2023 | C171: FDLC-CPS-158-2023 | D171: https://community.secop.gov.co/Public/Tendering/OpportunityDetail/Index?noticeUID=CO1.NTC.4053894&isFromPublicArea=True&isModal=true&asPopupView=true | E171: Contrato de Prestación de Servicios Profesionales y de Apoyo a la gestión | F171: CONTRATACION DIRECTA | G171: No aplica | H171: PRESTACIÓN DE SERVICIOS DE APOYO LOGÍSTICO EN LOS EVENTOS Y ACTIVIDADES DE LA ADMINISTRACIÓN LOCAL DE LA LOCALIDAD DE LA CANDELARIA | I171: INVERSION | N171: O23011605570000002021 | O171: 1 | P171: 79914457 | Q171: TARCISIO TORO ZAMBRANO | R171: PERSONA NATURAL | T171: NO APLICA | U171: NO APLICA | W171: 29700000 | Y171: 2 | Z171: 13770002 | AA171: 43470002 | AB171: 24930000 | AC171: 2023-02-22 | AD171: 2023-02-24 | AE171: 2024-06-03 | AF171: 330 | AG171: 2 | AH171: 153 | AI171: N/A | AJ171: N/A | AK171: N/A | AM171: EJECUCION | AN171: 0.5734989384
A172: FDLC-CPS-159-2023 | B172: 2023 | C172: FDLC-CPS-159-2023 | D172: https://community.secop.gov.co/Public/Tendering/OpportunityDetail/Index?noticeUID=CO1.NTC.4059800&isFromPublicArea=True&isModal=true&asPopupView=true | E172: Contrato de Prestación de Servicios Profesionales y de Apoyo a la gestión | F172: CONTRATACION DIRECTA | G172: No aplica | H172: PRESTAR SUS SERVICIOS PROFESIONALES DE APOYO Y ACOMPAÑAMIENTO EN LA FORMULACION Y EJECUCION DE LOS PROYECTOS Y ESTRATEGIAS DE DOTACIÓN PEDAGOGICA A COLEGIOS DE LA LOCALIDAD Y DE LOS DEMAS ASIGNADOS POR EL ALCALDE SA LOCAL EN CUMPLIMIENTO DE LAS METAS DEL PLAN DE DESARROLLO LOCAL 20212024 | I172: INVERSION | N172: O23011601140000001606 | O172: 1 | P172: 1070331732 | Q172: IVONNE JULIETH ROJAS ROJAS | R172: PERSONA NATURAL | T172: NO APLICA | U172: NO APLICA | W172: 27084000 | Y172: 1 | Z172: 13542001 | AA172: 40626001 | AB172: 37165267 | AC172: 2023-02-22 | AD172: 2023-02-24 | AE172: 2023-11-23 | AF172: 180 | AG172: 1 | AH172: 90 | AI172: N/A | AJ172: N/A | AK172: N/A | AM172: TERMINADO | AN172: 0.9148148005
A173: FDLC-CPS-160-2023 | B173: 2023 | C173: FDLC-CPS-160-2023 | D173: https://community.secop.gov.co/Public/Tendering/OpportunityDetail/Index?noticeUID=CO1.NTC.4060434&isFromPublicArea=True&isModal=true&asPopupView=true | E173: Contrato de Prestación de Servicios Profesionales y de Apoyo a la gestión | F173: CONTRATACION DIRECTA | G173: No aplica | H173: PRESTAR SERVICIOS PROFESIONALES PARA APOYAR EN LA FORMULACION PRESENTACIÓN EVALUACIÓN Y SEGUIMIENTO JURÍDICO DEL PROYECTO 1706 LA CANDELARIA RECREATIVA PARQUES PARA LA VIDA Y DE LOS PROYECTOS DE INVERSION DE LA ALCALDÍA LOCAL DE LA CANDELARIA | I173: INVERSION | N173: O23011602330000001706 | O173: 1 | P173: 79386264 | Q173: NESTOR IVAN ACERO ALMANZA | R173: PERSONA NATURAL | T173: NO APLICA | U173: NO APLICA | W173: 25000000 | Y173: N/A | Z173: 0 | AA173: 25000000 | AB173: 16333333 | AC173: 2023-02-22 | AD173: 2023-02-23 | AE173: 2023-07-22 | AF173: 150 | AG173: N/A | AH173: N/A | AI173: N/A | AJ173: N/A | AK173: N/A | AM173: TERMINADO | AN173: 0.65333332
A174: FDLC-CPS-161-2023 | B174: 2023 | C174: FDLC-CPS-161-2023 | D174: https://community.secop.gov.co/Public/Tendering/OpportunityDetail/Index?noticeUID=CO1.NTC.4069089&isFromPublicArea=True&isModal=true&asPopupView=true | E174: Contrato de Prestación de Servicios Profesionales y de Apoyo a la gestión | F174: CONTRATACION DIRECTA | G174: No aplica | H174: PRESTAR SERVICIOS DE APOYO TÉCNICO AL FONDO DEDESARROLLO LOCAL DE LA CANDELARIA EN LA ADMINISTRACIÓN DELAS CASAS COMUNITARIAS DE LA LOCALIDAD DE LA CANDELARIA DECONFORMIDAD CON EL ACUERDO LOCAL 006 DE 2013 | I174: INVERSION | N174: O23011605570000002021 | O174: 1 | P174: 51870502 | Q174: CLAUDIA EUGENIA CORREA RODRIGUEZ | R174: PERSONA NATURAL | T174: NO APLICA | U174: NO APLICA | W174: 33579000 | Y174: N/A | Z174: 0 | AA174: 33579000 | AB174: 29208000 | AC174: 2023-02-24 | AD174: 2023-02-27 | AE174: 2023-12-31 | AF174: 315 | AG174: N/A | AH174: N/A | AI174: N/A | AJ174: N/A | AK174: N/A | AM174: TERMINADO | AN174: 0.8698293576
A175: FDLC-CPS-162-2023 | B175: 2023 | C175: FDLC-CPS-162-2023 | D175: https://community.secop.gov.co/Public/Tendering/OpportunityDetail/Index?noticeUID=CO1.NTC.4068286&isFromPublicArea=True&isModal=true&asPopupView=true | E175: Contrato de Prestación de Servicios Profesionales y de Apoyo a la gestión | F175: CONTRATACION DIRECTA | G175: No aplica | H175: PRESTAR SERVICIOS DE APOYO EN LAS ACTIVIDADES ARTÍSTICAS CULTURALES MUSICALES TURÍSTICAS DEPORTIVAS COMUNITARIAS Y PATRIMONIALES DE COMPETENCIA DE LA ENTIDAD | I175: INVERSION | N175: O23011601210000001625 | O175: 1 | P175: 1030528720 | Q175: JENNY JAZMIN CAMACHO QUINTANA | R175: PERSONA NATURAL | T175: NO APLICA | U175: NO APLICA | W175: 9250000 | Y175: N/A | Z175: 0 | AA175: 9250000 | AB175: 9250000 | AC175: 2023-02-24 | AD175: 2023-02-24 | AE175: 2023-07-23 | AF175: 150 | AG175: N/A | AH175: N/A | AI175: N/A | AJ175: N/A | AK175: N/A | AM175: TERMINADO | AN175: 1
A176: FDLC-SUM-163-2023 | B176: 2023 | C176: FDLC-IMC-002-2023 | D176: https://community.secop.gov.co/Public/Tendering/OpportunityDetail/Index?noticeUID=CO1.NTC.4034320&isFromPublicArea=True&isModal=False | E176: SUMINISTRO | F176: MINIMA CUANTIA | G176: No aplica | H176: SUMINISTRO A MONTO AGOTABLE DEL SERVICIO DE COMBUSTIBLE, GASOLINA Y DIÉSEL PARA LOS VEHÍCULOS DE PROPIEDAD DEL FONDO DE DESARROLLO LOCAL DE LA CANDELARIA" | I176: FUNCIONAMIENTO | N176: O2120201003033331101 | O176: 1 | P176: 900459737 | Q176: GRUPO EDS AUTOGAS S.A.S | R176: PERSONA JURIDICA | T176: NO APLICA | U176: NO APLICA | W176: 25000000 | Y176: N/A | Z176: 0 | AA176: 1077935000 | AB176: 9320199 | AC176: 2023-03-03 | AD176: 2023-03-07 | AE176: 2023-12-31 | AF176: 300 | AG176: N/A | AH176: N/A | AI176: N/A | AJ176: N/A | AK176: N/A | AM176: TERMINADO | AN176: 0.008646346023
A177: FDLC-CPS-164-2023 | B177: 2023 | C177: FDLC-CPS-164-2023 | D177: https://community.secop.gov.co/Public/Tendering/OpportunityDetail/Index?noticeUID=CO1.NTC.4110652&isFromPublicArea=True&isModal=true&asPopupView=true | E177: Contrato de Prestación de Servicios Profesionales y de Apoyo a la gestión | F177: CONTRATACION DIRECTA | G177: No aplica | H177: PRESTAR SERVICIOS DE APOYO EN LAS ACTIVIDADES ARTÍSTICAS CULTURALES MUSICALES TURÍSTICAS DEPORTIVAS COMUNITARIAS Y PATRIMONIALES DE COMPETENCIA DE LA ENTIDAD | I177: INVERSION | N177: O23011601210000001625 | O177: 1 | P177: 53105934 | Q177: VIVIANA ANDREA JUEZ RODRIGUEZ | R177: PERSONA NATURAL | T177: NO APLICA | U177: NO APLICA | W177: 9250000 | Y177: N/A | Z177: 0 | AA177: =+W177+X177+Z177 -> 9250000 | AB177: 3391667 | AC177: 2023-03-03 | AD177: 2023-03-06 | AE177: 2023-08-05 | AF177: 150 | AG177: N/A | AH177: N/A | AI177: N/A | AJ177: N/A | AK177: N/A | AM177: TERMINADO | AN177: =IF(ISERROR(AB178/AA177),"-",(AB178/AA177)) -> 0.76
A178: FDLC-CPS-165-2023 | B178: 2023 | C178: FDLC-CPS-165-2023 | D178: https://community.secop.gov.co/Public/Tendering/OpportunityDetail/Index?noticeUID=CO1.NTC.4109267&isFromPublicArea=True&isModal=true&asPopupView=true | E178: Contrato de Prestación de Servicios Profesionales y de Apoyo a la gestión | F178: CONTRATACION DIRECTA | G178: No aplica | H178: PRESTAR SERVICIOS DE APOYO EN LAS ACTIVIDADES ARTÍSTICAS CULTURALES MUSICALES TURÍSTICAS DEPORTIVAS COMUNITARIAS Y PATRIMONIALES DE COMPETENCIA DE LA ENTIDAD | I178: INVERSION | N178: O23011601210000001625 | O178: 1 | P178: 1019044580 | Q178: YEIMY JULIETA LOPEZ BALLESTEROS | R178: PERSONA NATURAL | T178: NO APLICA | U178: NO APLICA | W178: 9250000 | Y178: N/A | Z178: 0 | AA178: 9250000 | AB178: 7030000 | AC178: 2023-03-03 | AD178: 2023-03-07 | AE178: 2023-02-08 | AF178: 150 | AG178: N/A | AH178: N/A | AI178: N/A | AJ178: N/A | AK178: N/A | AM178: TERMINADO | AN178: 1
A179: FDLC-CPS-166-2023 | B179: 2023 | C179: FDLC-CPS-166-2023 | D179: https://community.secop.gov.co/Public/Tendering/OpportunityDetail/Index?noticeUID=CO1.NTC.4133878&isFromPublicArea=True&isModal=False | E179: Contrato de Prestación de Servicios Profesionales y de Apoyo a la gestión | F179: CONTRATACION DIRECTA | G179: No aplica | H179: PRESTAR SERVICIOS DE APOYO EN LAS ACTIVIDADES ARTÍSTICAS CULTURALES MUSICALES TURÍSTICAS DEPORTIVAS COMUNITARIAS Y PATRIMONIALES DE COMPETENCIA DE LA ENTIDAD | I179: INVERSION | N179: O23011601210000001625 | O179: 1 | P179: 52163108 | Q179: MARISOL MARIÑO VACA | R179: PERSONA NATURAL | T179: NO APLICA | U179: NO APLICA | W179: 9250000 | Y179: N/A | Z179: 0 | AA179: 9250000 | AB179: 9250000 | AC179: 2023-03-07 | AD179: 2023-03-08 | AE179: 2023-08-07 | AF179: 150 | AG179: N/A | AH179: N/A | AI179: N/A | AJ179: N/A | AK179: N/A | AM179: TERMINADO | AN179: 0.9210810811
A180: FDLC-CPS-167-2023 | B180: 2023 | C180: FDLC-CPS-167-2023 | D180: https://community.secop.gov.co/Public/Tendering/OpportunityDetail/Index?noticeUID=CO1.NTC.4134875&isFromPublicArea=True&isModal=true&asPopupView=true | E180: Contrato de Prestación de Servicios Profesionales y de Apoyo a la gestión | F180: CONTRATACION DIRECTA | G180: No aplica | H180: PRESTAR SERVICIOS ASISTENCIALES AL ÁREA DE GESTIÓN DE DESARROLLO LOCAL EN LOS PROCESOS Y ACTIVIDADES DE GESTIÓN ADMINISTRATIVA DE LA ALCALDÍA LOCAL DE LA CANDELARIA.SIPSE 88533 | I180: INVERSION | N180: O23011605570000002021 | O180: 1 | P180: 1010007337 | Q180: PAULA ANDREA RODRIGUEZ YARA | R180: PERSONA NATURAL | T180: NO APLICA | U180: NO APLICA | W180: 18000000 | Y180: N/A | Z180: 0 | AA180: 18000000 | AB180: 8520000 | AC180: 2023-03-07 | AD180: 2023-03-09 | AE180: 2023-12-31 | AF180: 300 | AG180: N/A | AH180: N/A | AI180: N/A | AJ180: N/A | AK180: N/A | AM180: TERMINADO | AN180: 1.155622222
A181: FDLC-CPS-168-2023 | B181: 2023 | C181: FDLC-CPS-168-2023 | D181: https://community.secop.gov.co/Public/Tendering/OpportunityDetail/Index?noticeUID=CO1.NTC.4148848&isFromPublicArea=True&isModal=true&asPopupView=true | E181: Contrato de Prestación de Servicios Profesionales y de Apoyo a la gestión | F181: CONTRATACION DIRECTA | G181: No aplica | H181: PRESTAR SERVICIOS TÉCNICOS DE APOYO AL FONDO DE DESARROLLO LOCAL DE LA CANDELARIA PARA LA GESTION DE LOS ASUNTOS RELACIONADOS CON LA DESTINACIÓN Y BUEN USO DEL ESPACIO PÚBLICO | I181: INVERSION | N181: O23011605570000002021 | O181: 1 | P181: 1000588937 | Q181: WILSON DAVID QUIROGA VELASQUEZ | R181: PERSONA NATURAL | T181: NO APLICA | U181: NO APLICA | W181: 16422000 | Y181: 1 | Z181: 5474001 | AA181: 21896001 | AB181: 20801200 | AC181: 2023-03-09 | AD181: 2023-03-13 | AE181: 2023-11-12 | AF181: 180 | AG181: 1 | AH181: 60 | AI181: N/A | AJ181: N/A | AK181: N/A | AM181: TERMINADO | AN181: 0.6252283237
A182: FDLC-CPS-169-2023 | B182: 2023 | C182: FDLC-CPS-169-2023 | D182: https://community.secop.gov.co/Public/Tendering/OpportunityDetail/Index?noticeUID=CO1.NTC.4149356&isFromPublicArea=True&isModal=true&asPopupView=true | E182: Contrato de Prestación de Servicios Profesionales y de Apoyo a la gestión | F182: CONTRATACION DIRECTA | G182: No aplica | H182: PRESTAR SERVICIOS DE APOYO EN LAS ACTIVIDADES ARTÍSTICAS CULTURALES MUSICALES TURÍSTICAS DEPORTIVAS COMUNITARIAS Y PATRIMONIALES DE COMPETENCIA DE LA ENTIDAD | I182: INVERSION | N182: O23011601210000001625 | O182: 1 | P182: 1026580557 | Q182: CAMILO ANDRES AVELLA SARMIENTO | R182: PERSONA NATURAL | T182: NO APLICA | U182: NO APLICA | W182: 9250000 | Y182: 1 | Z182: 4400001 | AA182: 13650001 | AB182: 13690000 | AC182: 2023-03-09 | AD182: 2023-03-13 | AE182: 2023-10-25 | AF182: 150 | AG182: 1 | AH182: 72 | AI182: N/A | AJ182: N/A | AK182: N/A | AM182: TERMINADO | AN182: 0.677655628
A183: FDLC-CPS-170-2023 | B183: 2023 | C183: FDLC-CPS-170-2023 | D183: https://community.secop.gov.co/Public/Tendering/OpportunityDetail/Index?noticeUID=CO1.NTC.4149450&isFromPublicArea=True&isModal=true&asPopupView=true | E183: Contrato de Prestación de Servicios Profesionales y de Apoyo a la gestión | F183: CONTRATACION DIRECTA | G183: No aplica | H183: PRESTAR SERVICIOS DE APOYO EN LAS ACTIVIDADES ARTÍSTICAS CULTURALES MUSICALES TURÍSTICAS DEPORTIVAS COMUNITARIAS Y PATRIMONIALES DE COMPETENCIA DE LA ENTIDAD | I183: INVERSION | N183: O23011601210000001625 | O183: 1 | P183: 1013680370 | Q183: ANDRES FELIPE RUIZ GAITAN | R183: PERSONA NATURAL | T183: NO APLICA | U183: NO APLICA | W183: 9250000 | Y183: N/A | Z183: 0 | AA183: 9250000 | AB183: 9250000 | AC183: 2023-03-09 | AD183: 2023-03-14 | AE183: 2023-08-13 | AF183: 150 | AG183: N/A | AH183: N/A | AI183: N/A | AJ183: N/A | AK183: N/A | AM183: TERMINADO | AN183: =IF(ISERROR(#REF!/AA183),"-",(#REF!/AA183)) -> -
A184: FDLC-CPS-171-2023 | B184: 2023 | C184: FDLC-SASI-001-2023 | D184: https://community.secop.gov.co/Public/Tendering/OpportunityDetail/Index?noticeUID=CO1.NTC.4094693&isFromPublicArea=True&isModal=true&asPopupView=true | E184: PRESTACION DE SERVICIOS | F184: SELECCION ABREVIADA SUBASTA INVERSA | G184: No aplica | H184: PRESTACIÓN INTEGRAL DE LOS SERVICIOS DE ASEO CAFETERÍA MANTENIMIENTO MENOR Y JARDINERIA REQUERIDOS PARA LAS DEPENDENCIAS DE LA ALCALDÍA LOCAL DE LA CANDELARIA | I184: FUNCIONAMIENTO | N184: O21202020060363399/O21202020080585330/O23011605570000002021 | O184: 7 | P184: 901346888 | Q184: GRUPO GESTION EMPRESARIAL COLOMBIA GEC | R184: PERSONA JURIDICA | T184: NO APLICA | U184: NO APLICA | W184: 214883590 | Y184: 1 | Z184: 60272257 | AA184: 275155847 | AB184: 210425238 | AC184: 2023-03-14 | AD184: 2023-03-16 | AE184: 2024-01-30 | AF184: 255 | AG184: 1 | AH184: 60 | AI184: N/A | AJ184: N/A | AK184: N/A | AM184: TERMINADO | AN184: 0.7647492877
A185: FDLC-CPS-172-2023 | B185: 2023 | C185: FDLC-CPS-172-2023 | D185: https://community.secop.gov.co/Public/Tendering/OpportunityDetail/Index?noticeUID=CO1.NTC.4244579&isFromPublicArea=True&isModal=true&asPopupView=true | E185: Contrato de Prestación de Servicios Profesionales y de Apoyo a la gestión | F185: CONTRATACION DIRECTA | G185: No aplica | H185: PRESTAR SERVICIOS DE APOYO Y ASISTENCIALES EN LAS ACTIVIDADES ARTÍSTICAS CULTURALES MUSICALES TURÍSTICAS DEPORTIVAS COMUNITARIAS Y PATRIMONIALES DE COMPETENCIA DE LA ENTIDAD | I185: INVERSION | N185: O23011601210000001625 | O185: 1 | P185: 80873255 | Q185: OMAR ALEXANDER RUIZ BARRERA | R185: PERSONA NATURAL | T185: NO APLICA | U185: NO APLICA | W185: 12000000 | Y185: N/A | Z185: 0 | AA185: 12000000 | AB185: 11840000 | AC185: 2023-03-30 | AD185: 2023-04-03 | AE185: 2023-09-02 | AF185: 150 | AG185: N/A | AH185: N/A | AI185: N/A | AJ185: N/A | AK185: N/A | AM185: TERMINADO | AN185: 0.9866666667
A186: FDLC-CPS-173-2023 | B186: 2023 | C186: FDLC-IMC-003-2023 | D186: https://community.secop.gov.co/Public/Tendering/OpportunityDetail/Index?noticeUID=CO1.NTC.4197996&isFromPublicArea=True&isModal=true&asPopupView=true | E186: PRESTACION DE SERVICIOS | F186: MINIMA CUANTIA | G186: No aplica | H186: PRESTACION DE SERVICIO DE RECARGA Y MANTENIMIENTO DE EXTINTORES DE LA ALCALDIA LOCAL DE LA CANDELARIA | I186: FUNCIONAMIENTO | N186: O2120201003053544203 | O186: 6 | P186: 901277134 | Q186: EXTINNTORES FIREXT SAS | R186: PERSONA JURIDICA | T186: NO APLICA | U186: NO APLICA | W186: 1938431 | Y186: N/A | Z186: 0 | AA186: 1938431 | AB186: 1938431 | AC186: 2023-04-03 | AD186: 2023-04-05 | AE186: 2023-05-04 | AF186: 30 | AG186: N/A | AH186: N/A | AI186: N/A | AJ186: N/A | AK186: N/A | AM186: TERMINADO | AN186: 1
A187: OC107321 | B187: 2023 | C187: ORDEN DE COMPRA 107321 | D187: https://www.colombiacompra.gov.co/tienda-virtual-del-estado-colombiano/ordenes-compra/107321 | E187: ORDEN DE COMPRA | F187: SELECCION ABREVIADA MENOR CUANTIA | G187: No aplica | H187: SUMINISTRO DE PRODUCTOS DE PAPELERÍA, ARTICULOS DE ESCRITORIO Y ELEMENTOS DE OFICINA, NECESARIOS PARA EL CUMPLIMIENTO DE LAS FUNCIONES ADMINISTRATIVAS Y MISIONALES DE LA ALCALDÍA LOCAL DE LA CANDELARIA”. | I187: FUNCIONAMIENTO | N187: O2120201003023212801 | O187: 1 | P187: 900019737 | Q187: VENEPLAST LTDA | R187: PERSONA JURIDICA | T187: NO APLICA | U187: NO APLICA | W187: 9342500 | Y187: N/A | Z187: 0 | AA187: 9342500 | AB187: 9342500 | AC187: 2023-04-04 | AD187: 2023-04-05 | AE187: 2023-05-04 | AF187: 30 | AG187: N/A | AH187: N/A | AI187: N/A | AJ187: N/A | AK187: N/A | AM187: TERMINADO | AN187: 1
A188: OC107324 | B188: 2023 | C188: ORDEN DE COMPRA 107324 | D188: https://www.colombiacompra.gov.co/tienda-virtual-del-estado-colombiano/ordenes-compra/107324 | E188: ORDEN DE COMPRA | F188: MINIMA CUANTIA | G188: No aplica | H188: SUMINISTRO DE PRODUCTOS DE PAPELERÍA, ARTICULOS DE ESCRITORIO Y ELEMENTOS DE OFICINA, NECESARIOS PARA EL CUMPLIMIENTO DE LAS FUNCIONES ADMINISTRATIVAS Y MISIONALES DE LA ALCALDÍA LOCAL DE LA CANDELARIA”. | I188: FUNCIONAMIENTO | N188: O2120201003083899998 | O188: 1 | P188: 830037946 | Q188: PANAMERICANA LIBRERIA Y PAPELERIA S.A. | R188: PERSONA JURIDICA | T188: NO APLICA | U188: NO APLICA | W188: 1691433 | Y188: N/A | Z188: 0 | AA188: 1691433 | AB188: 1691433 | AC188: 2023-04-04 | AD188: 2023-04-05 | AE188: 2023-05-04 | AF188: 30 | AG188: N/A | AH188: N/A | AI188: N/A | AJ188: N/A | AK188: N/A | AM188: TERMINADO | AN188: 1
A189: OC107325 | B189: 2023 | C189: ORDEN DE COMPRA 107325 | D189: https://www.colombiacompra.gov.co/tienda-virtual-del-estado-colombiano/ordenes-compra/107325 | E189: ORDEN DE COMPRA | F189: SELECCION ABREVIADA MENOR CUANTIA | G189: No aplica | H189: SUMINISTRO DE PRODUCTOS DE PAPELERÍA, ARTICULOS DE ESCRITORIO Y ELEMENTOS DE OFICINA, NECESARIOS PARA EL CUMPLIMIENTO DE LAS FUNCIONES ADMINISTRATIVAS Y MISIONALES DE LA ALCALDÍA LOCAL DE LA CANDELARIA”. | I189: FUNCIONAMIENTO | N189: O2120201003083899998 | O189: 1 | P189: 860007336 | Q189: CAJA COLOMBIANA DE SUBSIDIO FAMILIAR COLSUBSIDIO | R189: PERSONA JURIDICA | T189: NO APLICA | U189: NO APLICA | W189: 4116284 | Y189: N/A | Z189: 0 | AB189: 4116284 | AC189: 2023-04-04 | AD189: 2023-04-05 | AE189: 2023-05-04 | AF189: 30 | AG189: N/A | AH189: N/A | AI189: N/A | AJ189: N/A | AK189: N/A | AM189: TERMINADO
A190: OC107326 | B190: 2023 | C190: ORDEN DE COMPRA 107326 | D190: https://www.colombiacompra.gov.co/tienda-virtual-del-estado-colombiano/ordenes-compra/107326 | E190: ORDEN DE COMPRA | F190: SELECCION ABREVIADA MENOR CUANTIA | G190: No aplica | H190: SUMINISTRO DE PRODUCTOS DE PAPELERÍA, ARTICULOS DE ESCRITORIO Y ELEMENTOS DE OFICINA, NECESARIOS PARA EL CUMPLIMIENTO DE LAS FUNCIONES ADMINISTRATIVAS Y MISIONALES DE LA ALCALDÍA LOCAL DE LA CANDELARIA”. | I190: FUNCIONAMIENTO | N190: O2120201003063692002 | O190: 1 | P190: 10125834 | Q190: JAIME BELTRAN URIBE - POLYFLEX | R190: PERSONA JURIDICA | T190: NO APLICA | U190: NO APLICA | W190: 1788800 | Y190: N/A | Z190: 0 | AA190: =+W190+X190+Z190 -> 1788800 | AB190: 1788800 | AC190: 2023-04-04 | AD190: 2023-04-05 | AE190: 2023-05-18 | AF190: 30 | AG190: N/A | AH190: N/A | AI190: N/A | AJ190: N/A | AK190: N/A | AM190: TERMINADO | AN190: =IF(ISERROR(AB190/AA190),"-",(AB190/AA190)) -> 1
A191: OC107327 | B191: 2023 | C191: ORDEN DE COMPRA 107327 | D191: https://www.colombiacompra.gov.co/tienda-virtual-del-estado-colombiano/ordenes-compra/107327/2 | E191: ORDEN DE COMPRA | F191: MINIMA CUANTIA | G191: No aplica | H191: SUMINISTRO DE PRODUCTOS DE PAPELERÍA, ARTICULOS DE ESCRITORIO Y ELEMENTOS DE OFICINA, NECESARIOS PARA EL CUMPLIMIENTO DE LAS FUNCIONES ADMINISTRATIVAS Y MISIONALES DE LA ALCALDÍA LOCAL DE LA CANDELARIA”. | I191: FUNCIONAMIENTO | N191: O2120201003083899998 | O191: 1 | P191: 900365660 | Q191: PROVEER INSTITUCIONAL SAS | R191: PERSONA JURIDICA | T191: NO APLICA | U191: NO APLICA | W191: 1281690 | Y191: N/A | Z191: 0 | AB191: 1281690 | AC191: 2023-04-04 | AD191: 2023-05-01 | AE191: 2023-05-04 | AF191: 30 | AG191: N/A | AH191: N/A | AI191: N/A | AJ191: N/A | AK191: N/A | AM191: TERMINADO
A192: FDLC-CPS-174-2023 | B192: 2023 | C192: FDLC-CPS-174-2023 | D192: https://community.secop.gov.co/Public/Tendering/OpportunityDetail/Index?noticeUID=CO1.NTC.4298554&isFromPublicArea=True&isModal=true&asPopupView=true | E192: Contrato de Prestación de Servicios Profesionales y de Apoyo a la gestión | F192: CONTRATACION DIRECTA | G192: No aplica | H192: PRESTAR SERVICIOS PROFESIONALES PARA APOYAR LAS ACCIONES Y ESTRATEGIAS QUE SE INSCRIBEN EN EL MARCO DE LA POLÍTICA PÚBLICA DE MUJER Y EQUIDAD DE GÉNERO EN LA ALCALDÍA LOCAL DE LA CANDELARIA | I192: INVERSION | N192: O23011603400000001781 | O192: 1 | P192: 1073689465 | Q192: DEISSY PAOLA RODRIGUEZ CUERVO | R192: PERSONA NATURAL | T192: NO APLICA | U192: NO APLICA | W192: 54000000 | Y192: N/A | Z192: 0 | AA192: 54000000 | AB192: 44000000 | AC192: 2023-04-17 | AD192: 2023-04-21 | AE192: 2023-12-31 | AF192: 250 | AG192: N/A | AH192: N/A | AI192: N/A | AJ192: N/A | AK192: N/A | AM192: TERMINADO | AN192: 0.8148148148
A193: CIA175 | B193: 2023 | C193: FDLC-CIA-175-2023 | D193: https://www.contratos.gov.co/consultas/detalleProceso.do?numConstancia=23-22-65728&g | E193: CONVENIO INTERADMINISTRATIVO | F193: CONTRATACION DIRECTA | G193: No aplica | H193: Aunar esfuerzos técnicos, administrativos y financieros con el fin de desarrollar acciones articuladas entre la SCRD, la FUGA y los Fondos de Desarrollo Local de La Candelaria, Los Mártires y Santa Fe, orientadas a fomentar procesos de formación, cualificación, fortalecimiento y participación de los agentes culturales territoriales del Distrito Capital, en el marco de la creación, comercialización, apropiación y circulación de bienes y servicios culturales, artísticos y patrimoniales, de conformidad con las iniciativas priorizadas en la estrategia Distrital "Presupuestos Participativos", los acuerdos locales o las iniciativas concertadas con los pueblos étnicos y grupos de interés de los territorios y a las acciones adelantadas en el “Proceso Misional de Fomento”, de acuerdo con los proyectos a ejecutar asociados a las metas de cada localidad en el programa "Es Cultura Local 2023" | I193: INVERSION | N193: O23011601240000001627 | O193: 1 | P193: 860044113 - 899999061 | Q193: FUNDACION GILBERTO ALZATE AVENDAÑO - SECRETARIA DE CULTURA RECREACION Y DEPORTE SCRD | R193: PERSONA JURIDICA | T193: NO APLICA | U193: NO APLICA | W193: =111981600+248018400 -> 360000000 | Y193: N/A | Z193: 0 | AA193: 360000000 | AB193: 355251456 | AC193: 2023-04-24 | AD193: 2023-04-26 | AE193: 2024-07-31 | AF193: 464 | AG193: N/A | AH193: N/A | AI193: N/A | AJ193: N/A | AK193: N/A | AM193: EJECUCION | AN193: 0.9868096
A194: FDLC-CPS-176-2023 | B194: 2023 | C194: FDLC-IMC-004-2023 | D194: https://community.secop.gov.co/Public/Tendering/OpportunityDetail/Index?noticeUID=CO1.NTC.4322664&isFromPublicArea=True&isModal=true&asPopupView=true | E194: PRESTACION DE SERVICIOS | F194: MINIMA CUANTIA | G194: No aplica | H194: PRESTAR EL SERVICIO DE MANTENIMIENTO PREVENTIVO Y CORRECTIVO INTEGRAL CON SUMINISTRO DE REPUESTOS MANO DE OBRA Y EL SERVICIO DE REVISIÓN TÉCNICO MECÁNICA Y DE EMISIONES CONTAMINANTES PARA LOS VEHÍCULOS QUE CONFORMAN EL PARQUE AUTOMOTOR DEL FONDO DE DESARROLLO LOCAL DE LA CANDELARIA | I194: FUNCIONAMIENTO | N194: O2120202008078714102 | O194: 6 | P194: 800250589 | Q194: CENTRO CAR 19 LTDA | R194: PERSONA JURIDICA | T194: NO APLICA | U194: NO APLICA | W194: 32400000 | Y194: N/A | Z194: 0 | AA194: 32400000 | AB194: 0 | AC194: 2023-05-08 | AD194: 2023-05-09 | AE194: 2024-04-30 | AF194: 240 | AG194: N/A | AH194: N/A | AI194: N/A | AJ194: N/A | AK194: N/A | AM194: EJECUCION | AN194: 0
A195: FDLC-CC-177-2023 | B195: 2023 | C195: FDLC-IMC-005-2023 | D195: https://community.secop.gov.co/Public/Tendering/OpportunityDetail/Index?noticeUID=CO1.NTC.4335920&isFromPublicArea=True&isModal=true&asPopupView=true | E195: PRESTACION DE SERVICIOS | F195: MINIMA CUANTIA | G195: No aplica | H195: ADQUISICIÓN DE INSUMOS CONSUMIBLES PARA LOS EQUIPOS DE IMPRESIÓN DE LA ALCALDÍA LOCAL DE LA CANDELARIA CARTUCHOS TONERS | I195: FUNCIONAMIENTO | N195: O2120201003063649028 | O195: 12 | P195: 830089925 | Q195: PC PRONTO SAS | R195: PERSONA JURIDICA | T195: NO APLICA | U195: NO APLICA | W195: 11521580 | Y195: 1 | Z195: 5760791 | AA195: 17282371 | AB195: 17282370 | AC195: 2023-05-10 | AD195: 2023-05-11 | AE195: 2023-07-10 | AF195: 30 | AG195: 1 | AH195: 30 | AI195: N/A | AJ195: N/A | AK195: N/A | AM195: TERMINADO | AN195: 0.9999999421
A196: FDLC-CIA-178-2023 | B196: 2023 | C196: FDLC-CIA-178-2023 | D196: https://community.secop.gov.co/Public/Tendering/OpportunityDetail/Index?noticeUID=CO1.NTC.4424022&isFromPublicArea=True&isModal=true&asPopupView=true | E196: ContratosConveniosInteradministrativosConValor | F196: Contratación Directa (con ofertas) | G196: No aplica | H196: Aunar esfuerzos técnicos administrativos jurídicos y financieros para laimplementación del Programa Jóvenes a la U para el acceso y la permanencia de las y los jóvenes en la ciudad de Bogotá particularmente para los jóvenes de la localidad de La Candelaria | I196: INVERSION | N196: O23011601170000001607 | O196: 1 | P196: 901508361 | Q196: AGENCIA DISTRITAL PARA LA EDUCACIÓN SUPERIOR LA CIENCIA Y LA TECNOLOGÍA ATENEA | R196: PERSONA JURIDICA | T196: NO APLICA | U196: NO APLICA | W196: 1013000000 | Y196: N/A | Z196: 0 | AA196: 1013000000 | AB196: 1013000000 | AC196: 2023-05-18 | AD196: 2023-05-19 | AE196: 2030-12-31 | AF196: 2782 | AG196: N/A | AH196: N/A | AI196: N/A | AJ196: N/A | AK196: N/A | AM196: EJECUCION | AN196: 1
A197: FDLC-CPS-179-2023 | B197: 2023 | C197: FDLC-CPS-179-2023 | D197: https://community.secop.gov.co/Public/Tendering/OpportunityDetail/Index?noticeUID=CO1.NTC.4439429&isFromPublicArea=True&isModal=true&asPopupView=true | E197: Contrato de Prestación de Servicios Profesionales y de Apoyo a la gestión | F197: Contratación directa | G197: No aplica | H197: PRESTAR SERVICIOS PROFESIONALES PARA APOYAR EN LA FORMULACION PRESENTACIÓN EVALUACIÓN Y SEGUIMIENTO JURÍDICO DEL PROYECTO 1706 LA CANDELARIA RECREATIVA PARQUES PARA LA VIDA Y DE LOS PROYECTOS DE INVERSION DE LA ALCALDÍA LOCAL DE LA CANDELARIA | I197: INVERSION | N197: O23011602330000001706 | O197: 1 | P197: 52904967 | Q197: ANGELA CRISTNA CARVAJAL TOVAR | R197: PERSONA NATURAL | T197: NO APLICA | U197: NO APLICA | W197: 25000000 | Y197: 2 | Z197: 7000002 | AA197: 32000002 | AB197: 27000000 | AC197: 2023-05-18 | AD197: 2023-05-19 | AE197: 2023-11-29 | AF197: 150 | AG197: 2 | AH197: 42 | AI197: N/A | AJ197: N/A | AK197: N/A | AM197: TERMINADO | AN197: 0.8437499473
A198: FDLC-CPS-180-2023 | B198: 2023 | C198: FDLC-SAMC-001-2023 | D198: https://community.secop.gov.co/Public/Tendering/OpportunityDetail/Index?noticeUID=CO1.NTC.4322510&isFromPublicArea=True&isModal=true&asPopupView=true | E198: PRESTACION DE SERVICIOS | F198: SELECCION ABREVIADA MENOR CUANTIA | G198: No aplica | H198: PRESTAR LOS SERVICIOS PARA REALIZAR LA TOMA FÍSICA Y MEDICIÓNPOSTERIOR DETERIORO MODIFICACIÓN DE LA VIDA ÚTIL Y TOMA FISICA DE INVENTARIOS DE BIENES MUEBLES E INMUEBLES DE PROPIEDAD DEL FONDO DE DESARROLLO LOCAL DE LA CANDELARIA | I198: INVERSION | N198: O23011605570000002021 | O198: 4 | P198: 900354279 | Q198: LQ REVISORES FISCALES AUDITORES EXTERNOS SAS | R198: PERSONA JURIDICA | T198: NO APLICA | U198: NO APLICA | W198: 50803970 | Y198: N/A | Z198: 0 | AA198: 50803970 | AB198: 45723573 | AC198: 2023-05-24 | AD198: 2023-06-06 | AE198: 2023-10-05 | AF198: 120 | AG198: N/A | AH198: N/A | AI198: N/A | AJ198: N/A | AK198: N/A | AM198: TERMINADO | AN198: 0.9
A199: FDLC-CPS-181-2023 | B199: 2023 | C199: FDLC-SAMC-002-2023 | D199: https://community.secop.gov.co/Public/Tendering/OpportunityDetail/Index?noticeUID=CO1.NTC.4334522&isFromPublicArea=True&isModal=true&asPopupView=true | E199: PRESTACION DE SERVICIOS | F199: SELECCION ABREVIADA MENOR CUANTIA | G199: No aplica | H199: PRESTAR SERVICIO PARA EL DESARROLLO DE ACCIONES ENCAMINADAS A FORTALECER HABILIDADES Y CONOCIMIENTOS EN LA GESTION DE RESIDUOS SOLIDOS E IMPLEMENTAR ACCIONES DE FOMENTO PARA LA AGRICULTURA URBANA A TRAVES DE PROCESOS DE CAPACITACION SENSIBILIZACIÓN EDUCACIÓN Y PARTICIPACIÓN EN LA LOCALIDAD DE LA CANDELARIA EN EL MARCO DE LOS PROYECTOS 1705 LA CANDELARIA SOSTENIBLE ECOEFICIENCIA RECICLAJE Y CAMBIO DE HÁBITOS DE CONSUMO Y 1626 LA CANDELARIA SOSTENIBLE AGRICULTURA URBANA | I199: INVERSION | N199: O23011601240000001626-O23011602380000001705 | O199: 6 | P199: 900374639 | Q199: SOLUCIONES INTEGRALES TM SAS | R199: PERSONA JURIDICA | T199: NO APLICA | U199: NO APLICA | W199: 235085014 | Y199: N/A | Z199: 0 | AA199: 235085014 | AB199: 190599021 | AC199: 2023-05-24 | AD199: 2023-06-01 | AE199: 2023-09-30 | AF199: 120 | AG199: N/A | AH199: N/A | AI199: N/A | AJ199: N/A | AK199: N/A | AM199: TERMINADO | AN199: 0.8107663596
A200: FLDC-CPS-182-2023 | B200: 2023 | C200: FDLC-IMC-006-2023 | D200: https://community.secop.gov.co/Public/Tendering/OpportunityDetail/Index?noticeUID=CO1.NTC.4426007&isFromPublicArea=True&isModal=true&asPopupView=true | E200: PRESTACION DE SERVICIOS | F200: MINIMA CUANTIA | G200: No aplica | H200: PRESTAR SERVICIOS LOGISTICOS PARA ADELANTAR LOS DIFERENTES ESPACIOS DE RENDICIÓN DE CUENTAS CONTROL SOCIAL DIÁLOGO Y PARTICIPACIÓN DE LA LOCALIDAD DE LA CANDELARIA | I200: INVERSION | N200: O23011605550000002019-O23011605570000002021 | O200: 11 | P200: 9013538743 | Q200: CM INGENIERA Y SERVICIOS AMBIENTALES SAS | R200: PERSONA JURIDICA | T200: NO APLICA | U200: NO APLICA | W200: 20850000 | Y200: 1 | Z200: 10425001 | AA200: 31275001 | AB200: 27806000 | AC200: 2023-05-26 | AD200: 2023-05-29 | AE200: 2023-12-28 | AF200: 150 | AG200: 1 | AH200: 60 | AI200: N/A | AJ200: N/A | AK200: N/A | AM200: TERMINADO | AN200: 0.889080707
A201: FDLC-CPS-183-2023 | B201: 2023 | C201: FDLC-CPS-183-2023 | D201: https://community.secop.gov.co/Public/Tendering/OpportunityDetail/Index?noticeUID=CO1.NTC.4482110&isFromPublicArea=True&isModal=true&asPopupView=true | E201: Contrato de Prestación de Servicios Profesionales y de Apoyo a la gestión | F201: Contratación directa | G201: No aplica | H201: PRESTAR SERVICIOS PROFESIONALES PARA APOYAR A LA ALCALDÍA LOCAL DE LA CANDELARIA EN LA PROMOCIÓN SEGUIMIENTO ACOMPAÑAMIENTO Y ATENCIÓN DE LAS INSTANCIAS DE PARTICIPACIÓN JUVENIL DE LA LOCALIDAD ASI COMO LOS PROCESOS COMUNITARIOS DE JUVENTUDES Y DEMÁS ESPACIOS DE PARTICIPACIÓN DESIGNADOS | I201: INVERSION | N201: O23011605570000002021 | O201: 1 | P201: 1019099757 | Q201: ANGELA JIMENA SILVA GARCIA | R201: PERSONA NATURAL | T201: NO APLICA | U201: NO APLICA | W201: 35000000 | Y201: N/A | Z201: 0 | AA201: 35000000 | AB201: 30166667 | AC201: 2023-05-29 | AD201: 2023-05-30 | AE201: 2023-12-29 | AF201: 210 | AG201: N/A | AH201: N/A | AI201: N/A | AJ201: N/A | AK201: N/A | AM201: TERMINADO | AN201: 0.8619047714
A202: FDLC-CPS-184-2023 | B202: 2023 | C202: FDLC-SAMC-003-2023 | D202: https://community.secop.gov.co/Public/Tendering/OpportunityDetail/Index?noticeUID=CO1.NTC.4380040&isFromPublicArea=True&isModal=true&asPopupView=true | E202: PRESTACION DE SERVICIOS | F202: SELECCION ABREVIADA MENOR CUANTIA | G202: No aplica | H202: PRESTAR LOS SERVICIOS PARA FORTALECER LAS ORGANIZACIONES SOCIALES COMUNALES E INSTANCIAS DE PARTICIPACIÓN Y ADELANTAR PROCESOS DE FORMACIÓN PARA LA PARTICIPACIÓN DE LA LOCALIDAD DE LA CANDELARIA DE ACUERDO AL PROYECTO NO 2019 LA CANDELARIA PARTICIPATIVA | I202: INVERSION | N202: O23011605550000002019 | O202: 12 | P202: 800169622 | Q202: INGEPLANCO SAS BIC | R202: PERSONA JURIDICA | T202: NO APLICA | U202: NO APLICA | W202: 237755827 | Y202: N/A | Z202: 0 | AA202: 237755827 | AB202: 141505062 | AC202: 2023-06-02 | AD202: 2023-06-15 | AE202: 2023-12-14 | AF202: 180 | AG202: N/A | AH202: N/A | AI202: N/A | AJ202: N/A | AK202: N/A | AM202: TERMINADO | AN202: 0.5951696906
... 129 more rows

Sheet Tipo (hidden)
C1: Modalidad de Selección | D1: afectacion | E1: Naturaleza Jurídica
A2: 1 | C2: Concurso de méritos | D2: Funcionamiento | E2: Persona Natural
A3: 2 | C3: Contratación directa | D3: Inversión | E3: Persona Jurídica
A4: 3 | C4: Contratación mínima cuantia | D4: Operación | E4: Unión Temporal
A5: 4 | C5: Selección abreviada | E5: Consorcio
A6: 5 | C6: Licitación pública | E6: Sociedad con objeto único
A7: 6 | C7: Otros | E7: Persona jurídica extranjera
A8: 7 | C8: Régimen especial | E8: Sin ánimo de lucro
A9: 8 | E9: Cabildo indígena
A10: 9 | E10: Consejo comunitario de las comunidades negras
A11: 10 | C11: Selección abreviada | E11: Organizaciones de segundo nivel
A12: 11 | C12: Subasta inversa | E12: Formas o expresiones organizativas, afrocolombianas, raizales y palenqueras
A13: 12 | C13: Bolsas de productos | E13: Organizaciones de base de comunidades negras
A14: 13 | C14: Acuerdo marco de precios | E14: Asociaciones de autoridades tradicionales indígenas
A15: 14 | C15: Selección abreviada por menor cuantía
A16: 15
A17: 16 | C17: contratacion directa
A18: 17 | C18: Urgencia manifiesta
A19: 18 | C19: Contratación de empréstitos
A20: 19 | C20: Contratos interadministrativos
A21: 20 | C21: Contratación de bienes y servicios en el sector Defensa
B22: SECTOR | C22: Contratos para el desarrollo de actividades científicas y tecnológicas
A23: 1 | B23: Gestión Pública | C23: Contratos de encargo fiduciario que celebren las entidades territoriales cuando inician el Acuerdo de Reestructuración de Pasivos
A24: =+A23+1 -> 2 | B24: Gobierno | C24: Cuando no exista pluralidad de oferentes en el mercado
A25: =+A24+1 -> 3 | B25: Hacienda | C25: Prestación de servicios profesionales y de apoyo a la gestión, o para la ejecución de trabajos artísticos que sólo puedan encomendarse a determinadas personas naturales
A26: 4 | B26: Planeación | C26: El arrendamiento o adquisición de inmuebles
A27: 5 | B27: Desarrollo Económico, Industria y Turismo | C27: Contratación de bienes y servicios de la Dirección Nacional de Inteligencia (DNI)
A28: 6 | B28: Educación
A29: 7 | B29: Salud
A30: 8 | B30: Integración Social | C30: Decreto 92 de 2017
A31: 9 | B31: Cultura, Recreación y Deporte | C31: No aplica
A32: 10 | B32: Ambiente
A33: 11 | B33: Movilidad | C33: SECOP I
A34: 12 | B34: Hábitat | C34: SECOP II
A35: 13 | B35: Mujeres
A36: 14 | B36: Seguridad, Convivencia y Justicia | C36: Bogotá Mejor para Todos
A37: 15 | B37: Gestión Juridíca | C37: Un Nuevo Contrato Social y Ambiental para la Bogotá del Siglo XXI
A38: 16 | B38: descentralizado territorialmente
B40: 16 - AL | C40: Estado
C41: Celebrado o por iniciar
B42: Plan de desarrollo distrital | C42: En ejecución
B43: Un nuevo contrato social y ambiental para la Bogotá del Siglo XXI | C43: Terminado
C44: Liquidado
B46: Tipo
B47: Obra pública
B48: Consultoría
B49: Interventoría
B50: Contratos de prestación de servicios
B51: Contratos de prestación de servicios profesionales y de apoyo a la gestión
B52: Compraventa de bienes muebles
B53: Compraventa de bienes inmuebles
B54: Arrendamiento de bienes muebles
B55: Arrendamiento de bienes inmuebles
B56: Seguro
B57: Suministro
B58: Empréstitos
B59: Fiducia mercantil o encargo fiduciario
B60: Concesión
B61: Convenios de cooperacion
B62: Convenios/Contratos interadministrativos
B63: Convenios de apoyo o convenios de asociación
B64: Convenios solidarios
B65: Asociaciones Público Privadas
B66: Otros
B67: Otros gastos
